Workbook

Sheet Jan
C2: Fuel | D2: Oils | E2: Spare Parts | F2: Maintenance | G2: Communication | H2: Insurance | I2: Stamp Exp | J2: Total
B3: 1246 ه ج | C3: 270 | D3: 0 | E3: 0 | F3: 0 | G3: 0 | H3: 0 | I3: 30 | J3: 300
B4: 1526 ب س | C4: 19415.925 | D4: 0 | E4: 18800 | F4: 400 | G4: 102.19 | H4: 0 | I4: 23220 | J4: 61938.115
B5: 1794 ه س | C5: 0 | D5: 0 | E5: 200 | F5: 0 | G5: 24.85 | H5: 0 | I5: 0 | J5: 224.85
B6: 1937 ه س | C6: 0 | D6: 0 | E6: 2005.217236 | F6: 0 | G6: 132.97 | H6: 0 | I6: 0 | J6: 2138.187236
B7: 2259 د ع | C7: 0 | D7: 0 | E7: 0 | F7: 0 | G7: 24.85 | H7: 0 | I7: 0 | J7: 24.85
B8: 2318 ف س | C8: 14970 | D8: 0 | E8: 6973.030234 | F8: 550 | G8: 102.19 | H8: 0 | I8: 16550 | J8: 39145.22023
B9: 2573 ع ص | C9: 1400 | D9: 0 | E9: 2942.928419 | F9: 370 | G9: 24.85 | H9: 0 | I9: 10 | J9: 4747.778419
B10: 2593 ه س | C10: 860 | D10: 0 | E10: 810 | F10: 0 | G10: 102.19 | H10: 0 | I10: 190 | J10: 1962.19
B11: 2613 ع ص | C11: 0 | D11: 0 | E11: 149.9847627 | F11: 0 | G11: 24.85 | H11: 0 | I11: 0 | J11: 174.8347627
B12: 2635 ج س | C12: 4175 | D12: 316.4 | E12: 104.7 | F12: 50 | G12: 24.85 | H12: 0 | I12: 240 | J12: 4910.95
B13: 2658 ف س | C13: 3750 | D13: 0 | E13: 0 | F13: 0 | G13: 102.19 | H13: 0 | I13: 4520 | J13: 8372.19
B14: 2694 ج س | C14: 0 | D14: 0 | E14: 190 | F14: 0 | G14: 102.19 | H14: 965 | I14: 0 | J14: 1257.19
B15: 2719 ب س | C15: 0 | D15: 0 | E15: 0 | F15: 0 | G15: 102.19 | H15: 0 | I15: 0 | J15: 102.19
B16: 2724 س ر | C16: 0 | D16: 0 | E16: 0 | F16: 0 | G16: 0 | H16: 0 | I16: 0 | J16: 0
B17: 2793 ب س | C17: 3375 | D17: 723.2 | E17: 63335.69 | F17: 20 | G17: 194.53 | H17: 0 | I17: 380 | J17: 68028.42
B18: 3725 ه س | C18: 0 | D18: 0 | E18: 0 | F18: 0 | G18: 24.85 | H18: 0 | I18: 0 | J18: 24.85
B19: 4157 ب س | C19: 1825 | D19: 0 | E19: 340 | F19: 0 | G19: 24.85 | H19: 0 | I19: 230 | J19: 2419.85
B20: 4172 ج س | C20: 0 | D20: 0 | E20: 0 | F20: 0 | G20: 0 | H20: 0 | I20: 0 | J20: 0
B21: 4178 ج س | C21: 10307.1 | D21: 406.8 | E21: 340.4 | F21: 120 | G21: 102.19 | H21: 0 | I21: 5045 | J21: 16321.49
B22: 5374 س ي ر | C22: 0 | D22: 0 | E22: 0 | F22: 0 | G22: 163.75 | H22: 0 | I22: 85 | J22: 248.75
B23: 5963 ج س | C23: 340 | D23: 0 | E23: 0 | F23: 0 | G23: 102.19 | H23: 0 | I23: 160 | J23: 602.19
B24: 6159 ق ن | C24: 3540 | D24: 45.2 | E24: 0 | F24: 140 | G24: 102.19 | H24: 0 | I24: 0 | J24: 3827.39
B25: 6192 ط ص | C25: 3675 | D25: 0 | E25: 2444.806625 | F25: 855 | G25: 102.19 | H25: 3266 | I25: 380 | J25: 10722.99663
B26: 6193 ق ر | C26: 0 | D26: 0 | E26: 0 | F26: 0 | G26: 24.85 | H26: 0 | I26: 0 | J26: 24.85
B27: 6235 ط ص | C27: 4890 | D27: 0 | E27: 0 | F27: 1500 | G27: 163.75 | H27: 5415 | I27: 3940 | J27: 15908.75
B28: 6689 ن ل | C28: 1040 | D28: 0 | E28: 497 | F28: 0 | G28: 132.97 | H28: 0 | I28: 205 | J28: 1874.97
B29: 6723 ط ص | C29: 4881.3 | D29: 0 | E29: 797.5148308 | F29: 0 | G29: 163.75 | H29: 0 | I29: 0 | J29: 5842.564831
B30: 6783 ط س | C30: 5996.475 | D30: 235 | E30: 334.84 | F30: 32547 | G30: 132.97 | H30: 0 | I30: 1815 | J30: 41061.285
B31: 7429 ط ج | C31: 0 | D31: 0 | E31: 0 | F31: 0 | G31: 0 | H31: 0 | I31: 0 | J31: 0
B32: 7862 ط ص | C32: 12755 | D32: 361.6 | E32: 510.7 | F32: 100 | G32: 163.75 | H32: 0 | I32: 4320 | J32: 18211.05
B33: 8457 ه س | C33: 0 | D33: 0 | E33: 0 | F33: 0 | G33: 102.19 | H33: 0 | I33: 0 | J33: 102.19
B34: 8492 ف س | C34: 4393.0125 | D34: 0 | E34: 319.2117696 | F34: 200 | G34: 102.19 | H34: 0 | I34: 180 | J34: 5194.41427
B35: 8734 ط ج | C35: 5813.0125 | D35: 0 | E35: 622.2161593 | F35: 0 | G35: 102.19 | H35: 0 | I35: 2205 | J35: 8742.418659
B36: 9361 ب س | C36: 0 | D36: 0 | E36: 425 | F36: 0 | G36: 102.19 | H36: 0 | I36: 0 | J36: 527.19
B37: 9364 ق ر | C37: 0 | D37: 0 | E37: 0 | F37: 0 | G37: 24.85 | H37: 0 | I37: 0 | J37: 24.85
B38: 9417 ن س | C38: 13035 | D38: 1898.4 | E38: 1642.6 | F38: 6748 | G38: 163.75 | H38: 0 | I38: 5265 | J38: 28752.75
B39: 9529 ا د | C39: 0 | D39: 0 | E39: 0 | F39: 0 | G39: 24.85 | H39: 0 | I39: 0 | J39: 24.85
B40: 9678 ب س | C40: 2690 | D40: 1943.6 | E40: 681.5 | F40: 0 | G40: 102.19 | H40: 0 | I40: 390 | J40: 5807.29
C42: 189671.21 | D42: 16841.07 | E42: 150974.66 | F42: 49220 | G42: 5849.72 | H42: 23458 | I42: 118325 | J42: 554339.66
C44: Issue No | D44: Code | E44: Item Name | F44: Q | G44: P | H44: Value
B45: 1246 ه ج | C45: 90634 | D45: 02MFF0085 | E45: فلتر زيت شيفرولية فان N300 | F45: 1 | G45: 80 | H45: 80
B46: 1526 ب س | C46: 24525 | D46: 02MFF0102 | E46: Fuel Filter Element Mercedes 5230000 -PU 999X-KX80D -FF 5405 -57230000-50013627- E500 KP 02فلتر حشو جاز مرسيدس | F46: 1 | G46: 165.1573003 | H46: 165.1573003
C47: 24525 | D47: 02MLF0158 | E47: oil Filter Mercedes 1502x - OX168 D-LF 3829 -1183130000 -5014064-H012140X- E500 HD 129 | F47: 1 | G47: 165.2966747 | H47: 165.2966747
C48: 24590 | D48: UM207 | E48: بكرة تيفلون | F48: 1 | G48: 9.452271754 | H48: 9.452271754
C49: 24525 | D49: 02LOE0004 | E49: زيت موتور Engine oil 7400-15W40 | F49: 38 | G49: 45.20052649 | H49: 1717.620007
C50: 24590 | D50: UM283 | E50: محبس بلية 1/2" ايطالى | F50: 1 | G50: 53.92125237 | H50: 53.92125237
C51: 24590 | D51: UM195 | E51: نبل حديد 1/2- | F51: 1 | G51: 5.462168847 | H51: 5.462168847
B52: 1563 ا ي | C52: 24544 | D52: 02MFF0101 | E52: Fuel Filter ElementToyota OL041-23390 -2008 حشو فلتر جاز تويوتا | F52: 1 | G52: 136.9149118 | H52: 136.9149118
C53: 24627 | D53: 02MFF0101 | E53: Fuel Filter ElementToyota OL041-23390 -2008 حشو فلتر جاز تويوتا | F53: 1 | G53: 136.9149118 | H53: 136.9149118
C54: 90533 | D54: 02MFF0095 | E54: Fuel Filter Nissan spc 235 -FF3227 - فلتر جاز نيسان 2007 | F54: 1 | G54: 83.81555024 | H54: 83.81555024
C55: 90419 | D55: 02MLF0072 | E55: oil Filter Isuzu 4*4 - 8-97916993-1 - 8981650710 - فلتر زيت ايسوزو 2015 | F55: 1 | G55: 95.84398003 | H55: 95.84398003
C56: 90533 | D56: 02MLF0072 | E56: oil Filter Isuzu 4*4 - 8-97916993-1 - 8981650710 - فلتر زيت ايسوزو 2015 | F56: 1 | G56: 95.84398003 | H56: 95.84398003
C57: 90649 | D57: 02VBT0039 | E57: Tire 255 * 70 R 16 اطار كاوتش مقاس | F57: 1 | G57: 1829.9964 | H57: 1829.9964
C58: 90533 | D58: 02CPS0006 | E58: انبوبة سيليكون حرارى اسود | F58: 1 | G58: 32.82558966 | H58: 32.82558966
C59: 24544 | D59: 02LOE0004 | E59: زيت موتور Engine oil 7400-15W40 | F59: 7 | G59: 45.20052649 | H59: 316.4036854
B60: 1642 ا ي | C60: 24634 | D60: 02MFF0101 | E60: Fuel Filter ElementToyota OL041-23390 -2008 حشو فلتر جاز تويوتا | F60: 1 | G60: 136.9149118 | H60: 136.9149118
C61: 24634 | D61: 02MLF0072 | E61: oil Filter Isuzu 4*4 - 8-97916993-1 - 8981650710 - فلتر زيت ايسوزو 2015 | F61: 1 | G61: 131.7501486 | H61: 131.7501486
C62: 24634 | D62: 02LOE0004 | E62: زيت موتور Engine oil 7400-15W40 | F62: 8 | G62: 45.29817085 | H62: 362.3853668
B63: 1794 ه س | C63: 21 | D63: 02EDB0014 | E63: Battery 80 A Dry | F63: 1 | G63: 54.31333333 | H63: 850.0036667
C64: 24551 | D64: 02MFF0095 | E64: Fuel Filter Nissan spc 235 -FF3227 - فلتر جاز نيسان 2007 | F64: 1 | G64: 77.63110048 | H64: 77.63110048
C65: 24551 | D65: 02MLF0086 | E65: oil Filter SP202 -FO 1623 - فلتر زيت نيسان 2007 | F65: 1 | G65: 73.58181818 | H65: 73.58181818
C66: 90476 | D66: 02MPT0045 | E66: تيلة داخلى 62 mm | F66: 2 | G66: 10 | H66: 20
C67: 24551 | D67: 02LOE0004 | E67: زيت موتور Engine oil 7400-15W40 | F67: 8 | G67: 45.20052649 | H67: 361.6042119
C68: 90476 | D68: 02MPU0055 | E68: صليبة كردان نيسان | F68: 3 | G68: 142.7916667 | H68: 428.375
C69: 90476 | D69: 02MBB0044 | E69: كرسي نصف نيسان 37521 | F69: 1 | G69: 300 | H69: 300
B70: 1937 ه س | C70: 3821 | D70: 02VTT0022 | E70: Tire 1200 R 24 - اطار كاوتش بالداخلي والشريط | F70: 2 | G70: 6366.6625 | H70: 12733.325
C71: 3821 | D71: 02VBT0028 | E71: Tire 315 * 80 R 22.5 - اطار كاوتش مقاس | F71: 2 | G71: 7728.00811 | H71: 15456.01622
B72: 2259 د ع | C72: 90537 | D72: 02VBT0028 | E72: Tire 315 * 80 R 22.5 - اطار كاوتش مقاس | F72: 1 | G72: 6973.030234 | H72: 6973.030234
B73: 2318 ف س | C73: 24677 | D73: 02MFF0102 | E73: Fuel Filter Element Mercedes 5230000 -PU 999X-KX80D -FF 5405 -57230000-50013627- E500 KP 02فلتر حشو جاز مرسيدس | F73: 1 | G73: 165.1573003 | H73: 165.1573003
C74: 24677 | D74: 02MLF0158 | E74: oil Filter Mercedes 1502x - OX168 D-LF 3829 -1183130000 -5014064-H012140X- E500 HD 129 | F74: 1 | G74: 165.2966747 | H74: 165.2966747
C75: 24677 | D75: 02LOE0004 | E75: زيت موتور Engine oil 7400-15W40 | F75: 36 | G75: 45.30418158 | H75: 1630.950537
B76: 2573 ع ص | C76: 24550 | D76: 02MFF0101 | E76: Fuel Filter ElementToyota OL041-23390 -2008 حشو فلتر جاز تويوتا | F76: 1 | G76: 136.9149118 | H76: 136.9149118
C77: 24733 | D77: 02MFF0101 | E77: Fuel Filter ElementToyota OL041-23390 -2008 حشو فلتر جاز تويوتا | F77: 1 | G77: 76.49989025 | H77: 76.49989025
C78: 24733 | D78: 02MLF0151 | E78: Oil Filter Toyota 2008 (90915-30002) | F78: 1 | G78: 144.2984122 | H78: 144.2984122
C79: 24550 | D79: 02LOE0004 | E79: زيت موتور Engine oil 7400-15W40 | F79: 9 | G79: 45.20052649 | H79: 406.8047384
C80: 24733 | D80: 02LOE0004 | E80: زيت موتور Engine oil 7400-15W40 | F80: 8 | G80: 45.30418158 | H80: 362.4334527
B81: 2593 ه س | C81: 24738 | D81: 02VTW0003 | E81: طقم مساحة سيارة 18 بوصة | F81: 1 | G81: 25 | H81: 25
C82: 24738 | D82: 02EDC0002 | E82: كتاوت كلاكس 12 V | F82: 1 | G82: 36.4 | H82: 36.4
B83: 2613 ع ص | C83: 8 | D83: 02EDB0023 | E83: Battery 200 A Dry | F83: 2 | G83: 140.575 | H83: 4399.9975
B84: 2635 ج س | C84: 24633 | D84: 02VBR0002 | E84: ريشة مساحة سيارة 20 بوصة | F84: 2 | G84: 35 | H84: 70
C85: 24633 | D85: 02EDA0016 | E85: سارينة مارشديه (رجوع خلفية) 12 فولت | F85: 1 | G85: 70 | H85: 70
C86: 90580 | D86: 02VTI0001 | E86: طقم رشاشات جاز ايسوزو ديمكس | F86: 1 | G86: 6840 | H86: 6840
C87: 24612 | D87: 02VTW0003 | E87: طقم مساحة سيارة 18 بوصة | F87: 2 | G87: 25 | H87: 50
C88: 90580 | D88: 02MFP0008 | E88: طلمبة جاز ايسوزو 2007 | F88: 1 | G88: 7980 | H88: 7980
C89: 24633 | D89: 02EDL0006 | E89: فنار ضوء فقط 12 فولت | F89: 1 | G89: 205 | H89: 205
C90: 24633 | D90: 02EDF0005 | E90: كارت فيوز شوكه متعدد | F90: 1 | G90: 16.89767442 | H90: 16.89767442
C91: 24612 | D91: 02VTL0091 | E91: لمبة زئبق 3 شوكة 12V H4 - P43T | F91: 1 | G91: 39.92619848 | H91: 39.92619848
C92: 24633 | D92: 02VTL0091 | E92: لمبة زئبق 3 شوكة 12V H4 - P43T | F92: 1 | G92: 39.92619848 | H92: 39.92619848
B93: 2658 ف س | C93: 90412 | D93: 02MPS1227 | E93: Fuel Filter chervrolet jumbo 897172549 - فلتر جاز جامبو 2010 | F93: 1 | G93: 51.02827635 | H93: 51.02827635
C94: 90412 | D94: 02MLF0105 | E94: oil Filter LF 518 -FO 6757-SF 201 - 8970967770 - فلتر زيت شيفرولية جامبو - 8971482700 | F94: 1 | G94: 113.7308683 | H94: 113.7308683
C95: 90412 | D95: 02CPS0006 | E95: انبوبة سيليكون حرارى اسود | F95: 2 | G95: 32.82558966 | H95: 65.65117932
B96: 2694 ج س | C96: 90622 | D96: 02VBT0022 | E96: Tire 215*70 R 15 - اطار كاوتش مقاس | F96: 1 | G96: 1479.9993 | H96: 1479.9993
B97: 2719 ب س | C97: 90623 | D97: 02VBT0022 | E97: Tire 215*70 R 15 - اطار كاوتش مقاس | F97: 1 | G97: 1479.9993 | H97: 1479.9993
B98: 2724 س ر | C98: 90645 | D98: 02VBT0009 | E98: Tire 1100 R 20 اطار كاوتش بالداخلي و الشريط مقاس | F98: 4 | G98: 6060.0006 | H98: 24240.0024
B99: 2793 ب س | C99: 24543 | D99: 02MFF0101 | E99: Fuel Filter ElementToyota OL041-23390 -2008 حشو فلتر جاز تويوتا | F99: 1 | G99: 136.9149118 | H99: 136.9149118
C100: 24543 | D100: 02LOE0004 | E100: زيت موتور Engine oil 7400-15W40 | F100: 8 | G100: 45.20052649 | H100: 361.6042119
B101: 3725 ه س | C101: 90521 | D101: 02VPB0007 | E101: بارة دركسيون Demix | F101: 1 | G101: 300 | H101: 300
C102: 90521 | D102: 02VBW0003 | E102: سلك اكسراتير | F102: 1 | G102: 170 | H102: 170
C103: 90521 | D103: 02VTB0025 | E103: طقم بيض مقص علوى ايسوزو | F103: 1 | G103: 1300 | H103: 1300
C104: 90521 | D104: 02VTC0020 | E104: طقم مساعد امامى ايسوزو 2007 - PN : 9-8546747-21 | F104: 2 | G104: 733.3450087 | H104: 1466.690017
C105: 90521 | D105: 02MWC0012 | E105: غطاء ريداتير 5سم | F105: 1 | G105: 35 | H105: 35
C106: 90521 | D106: 02MFC0027 | E106: كارجة جاز ايسوزو ديمكس 2007 | F106: 1 | G106: 295 | H106: 295
C107: 90521 | D107: 02VTR0029 | E107: كاوتش اسكاترا ايسوزو | F107: 2 | G107: 75 | H107: 150
C108: 90521 | D108: 02MPG0097 | E108: كاوتش ميزان ايسوزو | F108: 2 | G108: 25 | H108: 50
C109: 90466 | D109: 02VTS0050 | E109: مساعد خلفى مرسيدس اكتروس pn : 30020677 | F109: 6 | G109: 1311 | H109: 7866
C110: 90521 | D110: 02MWS0026 | E110: مسمار عجل | F110: 10 | G110: 23.79880233 | H110: 237.9880233
C111: 90466 | D111: 02VTS0101 | E111: مسمار عجل ايسوزو | F111: 36 | G111: 51.3 | H111: 1846.8
B112: 4157 ب س | C112: 24724 | D112: LG233 | E112: فلتر جاز ST - 03213 - ( NKR ) | F112: 1 | G112: 75 | H112: 75
C113: 24724 | D113: LG004 | E113: فلتر زيت 894430983 - ( NKR ) | F113: 1 | G113: 75 | H113: 75
B114: 4172 ج س | C114: 24679 | D114: 02MFF0101 | E114: Fuel Filter ElementToyota OL041-23390 -2008 حشو فلتر جاز تويوتا | F114: 1 | G114: 76.49989025 | H114: 76.49989025
C115: 24679 | D115: 02MLF0151 | E115: Oil Filter Toyota 2008 (90915-30002) | F115: 1 | G115: 180.9224396 | H115: 180.9224396
C116: 24611 | D116: 02VBR0002 | E116: ريشة مساحة سيارة 20 بوصة | F116: 2 | G116: 35 | H116: 70
C117: 24679 | D117: 02LOE0004 | E117: زيت موتور Engine oil 7400-15W40 | F117: 8 | G117: 45.30418158 | H117: 362.4334527
C118: 24611 | D118: 02EDA0016 | E118: سارينة مارشديه (رجوع خلفية) 12 فولت | F118: 1 | G118: 70 | H118: 70
C119: 24611 | D119: 02VTH0010 | E119: طقم كلاكس هيلا 12 فولت | F119: 1 | G119: 178.0619048 | H119: 178.0619048
C120: 24611 | D120: 02EDC0005 | E120: قطاش بطاريه | F120: 2 | G120: 21.00645044 | H120: 42.01290088
B121: 4178 ج س | C121: 90470 | D121: 02MPS1227 | E121: Fuel Filter chervrolet jumbo 897172549 - فلتر جاز جامبو 2010 | F121: 1 | G121: 51.02827635 | H121: 51.02827635
C122: 90470 | D122: 02MLF0105 | E122: oil Filter LF 518 -FO 6757-SF 201 - 8970967770 - فلتر زيت شيفرولية جامبو - 8971482700 | F122: 1 | G122: 113.7308683 | H122: 113.7308683
B123: 5374 س ي ر | C123: 3774 | D123: 02MFF0161 | E123: Fuel Filter ElementToyota 0L070-23390 - 2018 حشو فلتر جاز تويوتا | F123: 1 | G123: 626.3611411 | H123: 626.3611411
C124: 3774 | D124: 02MLF0154 | E124: oil Filter LF 3349-BT 339-LF 3959 | F124: 1 | G124: 104.3760658 | H124: 104.3760658
B125: 5963 ج س | C125: 90585 | D125: 02MAF0122 | E125: Air Filter Chevrolet Jumbo HF 1549 - hf 7008 | F125: 2 | G125: 158.9740742 | H125: 317.9481484
C126: 90585 | D126: 02MPS1227 | E126: Fuel Filter chervrolet jumbo 897172549 - فلتر جاز جامبو 2010 | F126: 1 | G126: 48.57277506 | H126: 48.57277506
C127: 24539 | D127: 02MPS1227 | E127: Fuel Filter chervrolet jumbo 897172549 - فلتر جاز جامبو 2010 | F127: 1 | G127: 56.45655271 | H127: 56.45655271
C128: 24629 | D128: 02MPS1227 | E128: Fuel Filter chervrolet jumbo 897172549 - فلتر جاز جامبو 2010 | F128: 1 | G128: 56.45655271 | H128: 56.45655271
C129: 90585 | D129: 02MLF0105 | E129: oil Filter LF 518 -FO 6757-SF 201 - 8970967770 - فلتر زيت شيفرولية جامبو - 8971482700 | F129: 2 | G129: 117.6722494 | H129: 235.3444988
C130: 24539 | D130: 02LOE0004 | E130: زيت موتور Engine oil 7400-15W40 | F130: 9 | G130: 45.20052649 | H130: 406.8047384
C131: 24629 | D131: 02LOE0004 | E131: زيت موتور Engine oil 7400-15W40 | F131: 9 | G131: 45.29817085 | H131: 407.6835377
C132: 24708 | D132: 02VTL0022 | E132: فانوس جنب ليزر 12 فولت | F132: 8 | G132: 16.84272284 | H132: 134.7417827
C133: 24708 | D133: 02EDF0005 | E133: كارت فيوز شوكه متعدد | F133: 1 | G133: 16.89767442 | H133: 16.89767442
B134: 6159 ق ن | C134: 24652 | D134: 02MLF0003 | E134: Oil Filter Toyota Coaster 23303_56040 | F134: 1 | G134: 85 | H134: 85
C135: 24652 | D135: 02LOE0004 | E135: زيت موتور Engine oil 7400-15W40 | F135: 9 | G135: 45.30418158 | H135: 407.7376343
C136: 24652 | D136: LO160 | E136: فلتر جاز تويوتا كوستر موديل 1998 - FC - 1104 | F136: 1 | G136: 125 | H136: 125
B137: 6192 ط ص | C137: 90434 | D137: 02MFF0086 | E137: Fuel Filter Isuzu 8944489840 / 8979169930- فلتر جاز ايسوزو 2006 | F137: 1 | G137: 44.940918 | H137: 44.940918
C138: 90434 | D138: 02MLF0095 | E138: oil Filter Isuzu 8973099270 - فلتر زيت ايسوزو 2006 | F138: 1 | G138: 65 | H138: 65
C139: 90650 | D139: 02MLF0095 | E139: oil Filter Isuzu 8973099270 - فلتر زيت ايسوزو 2006 | F139: 1 | G139: 51.3 | H139: 51.3
C140: 90550 | D140: 02EDS0017 | E140: ماكينة بطال Demix | F140: 1 | G140: 245.2 | H140: 245.2
B141: 6193 ق ر | C141: 24545 | D141: 02MAF0094 | E141: Air Filter Isuzu - 8971730270 - فلتر هواء ايسوزو 2006 | F141: 1 | G141: 103.74 | H141: 103.74
B142: 6235 ط ص | C142: 12 | D142: 02EDB0023 | E142: Battery 200 A Dry | F142: 2 | G142: 140.575 | H142: 4399.9975
C143: 90561 | D143: 02MAS0016 | E143: قربة هواء كابينة مرسيدس 721700105 | F143: 2 | G143: 1254 | H143: 2508
B144: 6689 ن ل | C144: 24540 | D144: 02MFF0101 | E144: Fuel Filter ElementToyota OL041-23390 -2008 حشو فلتر جاز تويوتا | F144: 1 | G144: 136.9149118 | H144: 136.9149118
C145: 24540 | D145: 02MLF0151 | E145: Oil Filter Toyota 2008 (90915-30002) | F145: 1 | G145: 180.9224396 | H145: 180.9224396
C146: 3818 | D146: 02VBT0016 | E146: Tire tubeless 205 * 80 R 16 اطار كاوتش مقاس | F146: 2 | G146: 1969.9998 | H146: 3939.9996
C147: 24540 | D147: 02LOE0004 | E147: زيت موتور Engine oil 7400-15W40 | F147: 8 | G147: 45.20052649 | H147: 361.6042119
B148: 6723 ط ص | C148: 90487 | D148: 02LOT0001 | E148: زيت ترانسميشن ATF - Fluid transmission IID | F148: 1 | G148: 62.08388691 | H148: 62.08388691
B149: 6783 ط س | C149: 3779 | D149: 02MFF0102 | E149: Fuel Filter Element Mercedes 5230000 -PU 999X-KX80D -FF 5405 -57230000-50013627- E500 KP 02فلتر حشو جاز مرسيدس | F149: 1 | G149: 165.2625387 | H149: 165.2625387
C150: 3779 | D150: 02MLF0158 | E150: oil Filter Mercedes 1502x - OX168 D-LF 3829 -1183130000 -5014064-H012140X- E500 HD 129 | F150: 1 | G150: 165.289285 | H150: 165.289285
C151: 90644 | D151: 02VBT0028 | E151: Tire 315 * 80 R 22.5 - اطار كاوتش مقاس | F151: 2 | G151: 8029.99926 | H151: 16059.99852
C152: 24676 | D152: 02VBR0001 | E152: ريشة مساحة 26 بوصة | F152: 2 | G152: 35 | H152: 70
C153: 3708 | D153: 02ECR0039 | E153: كابل كهرباء مقطوره | F153: 1 | G153: 256.5 | H153: 256.5
B154: 7429 ط ج | C154: 90523 | D154: 02VTS0114 | E154: فولة مسمار عجل مقطورة | F154: 20 | G154: 3.42 | H154: 68.4
C155: 90523 | D155: 02VTS0020 | E155: مسمار مقطورة الماني | F155: 20 | G155: 39.9 | H155: 798
B156: 7862 ط ص | C156: 24542 | D156: 02MFF0102 | E156: Fuel Filter Element Mercedes 5230000 -PU 999X-KX80D -FF 5405 -57230000-50013627- E500 KP 02فلتر حشو جاز مرسيدس | F156: 1 | G156: 165.1573003 | H156: 165.1573003
C157: 24740 | D157: 02MFF0102 | E157: Fuel Filter Element Mercedes 5230000 -PU 999X-KX80D -FF 5405 -57230000-50013627- E500 KP 02فلتر حشو جاز مرسيدس | F157: 1 | G157: 165.1573003 | H157: 165.1573003
C158: 24542 | D158: 02MLF0158 | E158: oil Filter Mercedes 1502x - OX168 D-LF 3829 -1183130000 -5014064-H012140X- E500 HD 129 | F158: 1 | G158: 165.2966747 | H158: 165.2966747
C159: 24542 | D159: 02MLF0151 | E159: Oil Filter Toyota 2008 (90915-30002) | F159: 1 | G159: 180.9224396 | H159: 180.9224396
C160: 24740 | D160: 02MLF0151 | E160: Oil Filter Toyota 2008 (90915-30002) | F160: 1 | G160: 144.2984122 | H160: 144.2984122
C161: 90638 | D161: 02VBT0028 | E161: Tire 315 * 80 R 22.5 - اطار كاوتش مقاس | F161: 2 | G161: 8029.99926 | H161: 16059.99852
C162: 24542 | D162: 02LOE0004 | E162: زيت موتور Engine oil 7400-15W40 | F162: 40 | G162: 45.20052649 | H162: 1808.02106
C163: 24740 | D163: 02LOE0004 | E163: زيت موتور Engine oil 7400-15W40 | F163: 42 | G163: 45.30418158 | H163: 1902.775627
B164: 8457 ه س | C164: 24535 | D164: 02MTC0002 | E164: عبوة مزيل صداء 330 مم WD40 | F164: 1 | G164: 58.79631429 | H164: 58.79631429
B165: 8492 ف س | C165: 90559 | D165: 02MAF0179 | E165: Air Filter Isuzu HF 6311-8981402660 -فلتر هواء ايسوزو 2015 | F165: 1 | G165: 114 | H165: 114
C166: 90433 | D166: 02MFF0101 | E166: Fuel Filter ElementToyota OL041-23390 -2008 حشو فلتر جاز تويوتا | F166: 1 | G166: 81.70066138 | H166: 81.70066138
C167: 90559 | D167: 02MFF0101 | E167: Fuel Filter ElementToyota OL041-23390 -2008 حشو فلتر جاز تويوتا | F167: 1 | G167: 83.35033069 | H167: 83.35033069
C168: 90433 | D168: 02MLF0072 | E168: oil Filter Isuzu 4*4 - 8-97916993-1 - 8981650710 - فلتر زيت ايسوزو 2015 | F168: 1 | G168: 95.84398003 | H168: 95.84398003
C169: 90559 | D169: 02MLF0072 | E169: oil Filter Isuzu 4*4 - 8-97916993-1 - 8981650710 - فلتر زيت ايسوزو 2015 | F169: 1 | G169: 95.84398003 | H169: 95.84398003
B170: 8734 ط ج | C170: 90482 | D170: 02MPS1227 | E170: Fuel Filter chervrolet jumbo 897172549 - فلتر جاز جامبو 2010 | F170: 1 | G170: 51.02827635 | H170: 51.02827635
C171: 90482 | D171: 02MLF0105 | E171: oil Filter LF 518 -FO 6757-SF 201 - 8970967770 - فلتر زيت شيفرولية جامبو - 8971482700 | F171: 1 | G171: 113.7308683 | H171: 113.7308683
C172: 90441 | D172: 02LOA0002 | E172: علبة زيت باكم 4/1 لتر- توتال | F172: 1 | G172: 34.59010614 | H172: 34.59010614
B173: 9361 ب س | C173: 90531 | D173: 02MFF0095 | E173: Fuel Filter Nissan spc 235 -FF3227 - فلتر جاز نيسان 2007 | F173: 1 | G173: 83.81555024 | H173: 83.81555024
C174: 90625 | D174: 02VBT0022 | E174: Tire 215*70 R 15 - اطار كاوتش مقاس | F174: 1 | G174: 1479.9993 | H174: 1479.9993
C175: 90531 | D175: 02VTB0056 | E175: اويل سيل كرنك امامى | F175: 1 | G175: 180 | H175: 180
C176: 90531 | D176: 02VTI0011 | E176: كارجة جاز نيسان | F176: 1 | G176: 160 | H176: 160
B177: 9417 ن س | C177: 24549 | D177: 02MFF0102 | E177: Fuel Filter Element Mercedes 5230000 -PU 999X-KX80D -FF 5405 -57230000-50013627- E500 KP 02فلتر حشو جاز مرسيدس | F177: 1 | G177: 165.1573003 | H177: 165.1573003
C178: 24704 | D178: 02MFF0102 | E178: Fuel Filter Element Mercedes 5230000 -PU 999X-KX80D -FF 5405 -57230000-50013627- E500 KP 02فلتر حشو جاز مرسيدس | F178: 1 | G178: 165.1573003 | H178: 165.1573003
C179: 24549 | D179: 02MLF0158 | E179: oil Filter Mercedes 1502x - OX168 D-LF 3829 -1183130000 -5014064-H012140X- E500 HD 129 | F179: 1 | G179: 165.2966747 | H179: 165.2966747
C180: 24704 | D180: 02MLF0158 | E180: oil Filter Mercedes 1502x - OX168 D-LF 3829 -1183130000 -5014064-H012140X- E500 HD 129 | F180: 1 | G180: 165.2966747 | H180: 165.2966747
C181: 6 | D181: 02VTT0025 | E181: Tire 385 * 65 * 22.5 اطار كاوتش مقاس | F181: 2 | G181: 325 | H181: 10172.5
C182: 24549 | D182: 02LOE0004 | E182: زيت موتور Engine oil 7400-15W40 | F182: 32 | G182: 45.20052649 | H182: 1446.416848
C183: 24704 | D183: 02LOE0004 | E183: زيت موتور Engine oil 7400-15W40 | F183: 40 | G183: 45.30418158 | H183: 1812.167263
B184: 9678 ب س | C184: 90613 | D184: 02VBT0022 | E184: Tire 215*70 R 15 - اطار كاوتش مقاس | F184: 2 | G184: 1479.9993 | H184: 2959.9986
C185: 3772 | D185: 02MFF0128 | E185: Fuel Filter FF5018 -FF5074 -FF 5167-BF 988-WK731 | F185: 2 | G185: 57.86861329 | H185: 115.7372266
C186: 3710 | D186: 02LOA0002 | E186: علبة زيت باكم 4/1 لتر- توتال | F186: 2 | G186: 34.45033927 | H186: 68.90067853
C187: 24646 | D187: 02EDL0028 | E187: فانوس شبورة ليد مربع 16 ليد | F187: 4 | G187: 151.7712889 | H187: 607.0851556
C188: 24646 | D188: 02EDC0016 | E188: كتاوت نور 24 V | F188: 1 | G188: 64.4217284 | H188: 64.4217284
C189: 24646 | D189: 02EDP0003 | E189: مفتاح كهرباء 2 شده | F189: 1 | G189: 28.5 | H189: 28.5
C190: 24646 | D190: 02EDP0002 | E190: مفتاح كهرباء واحد شده | F190: 1 | G190: 15.19090909 | H190: 15.19090909

Sheet Feb
C2: Fuel | D2: Oils | E2: Spare Parts | F2: Maintenance | G2: Communication | H2: Insurance | I2: Stamp Exp | J2: Total
B3: 1246 ه ج | C3: 1445 | D3: 0 | E3: 0 | F3: 0 | G3: 0 | H3: 1215 | I3: 350 | J3: 3010
B4: 1526 ب س | C4: 7891.9125 | D4: 0 | E4: 2313.130342 | F4: 0 | G4: 92.34 | H4: 2526 | I4: 580 | J4: 13403.38284
B5: 1794 ه س | C5: 0 | D5: 0 | E5: 0 | F5: 0 | G5: 15 | H5: 0 | I5: 0 | J5: 15
B6: 1937 ه س | C6: 0 | D6: 1808.02106 | E6: 0 | F6: 0 | G6: 123.12 | H6: 0 | I6: 0 | J6: 1931.14106
B7: 2259 د ع | C7: 0 | D7: 4697.179383 | E7: 0 | F7: 0 | G7: 15 | H7: 0 | I7: 0 | J7: 4712.179383
B8: 2318 ف س | C8: 11755 | D8: 1627.218954 | E8: 8332.453975 | F8: 80 | G8: 92.34 | H8: 1770 | I8: 12730 | J8: 36387.01293
B9: 2573 ع ص | C9: 553.55 | D9: 0 | E9: 0 | F9: 0 | G9: 15 | H9: 0 | I9: 20 | J9: 588.55
B10: 2593 ه س | C10: 300 | D10: 0 | E10: 70 | F10: 200 | G10: 92.34 | H10: 0 | I10: 25 | J10: 687.34
B11: 2613 ع ص | C11: 4169.9625 | D11: 0 | E11: 639.9992952 | F11: 1030 | G11: 15 | H11: 0 | I11: 290 | J11: 6144.961795
B12: 2635 ج س | C12: 3980 | D12: 361.6042119 | E12: 2250.572327 | F12: 642 | G12: 15 | H12: 0 | I12: 155 | J12: 7404.176539
B13: 2658 ف س | C13: 4300 | D13: 0 | E13: 1267.68 | F13: 0 | G13: 92.34 | H13: 0 | I13: 5300 | J13: 10960.02
B14: 2694 ج س | C14: 0 | D14: 0 | E14: 900 | F14: 190 | G14: 92.34 | H14: 0 | I14: 0 | J14: 1182.34
B15: 2719 ب س | C15: 0 | D15: 0 | E15: 190 | F15: 0 | G15: 92.34 | H15: 0 | I15: 0 | J15: 282.34
B16: 2724 س ر | C16: 0 | D16: 0 | E16: 0 | F16: 0 | G16: 0 | H16: 0 | I16: 0 | J16: 0
B17: 2793 ب س | C17: 3075 | D17: 361.6042119 | E17: 1300.362351 | F17: 180 | G17: 184.68 | H17: 0 | I17: 180 | J17: 5281.646563
B18: 3725 ه س | C18: 0 | D18: 0 | E18: 0 | F18: 0 | G18: 15 | H18: 0 | I18: 0 | J18: 15
B19: 4157 ب س | C19: 1365 | D19: 0 | E19: 0 | F19: 140 | G19: 15 | H19: 0 | I19: 330 | J19: 1850
B20: 4172 ج س | C20: 0 | D20: 0 | E20: 0 | F20: 0 | G20: 0 | H20: 0 | I20: 0 | J20: 0
B21: 4178 ج س | C21: 7520 | D21: 739.3 | E21: 2531.802681 | F21: 25 | G21: 92.34 | H21: 0 | I21: 4060 | J21: 14968.44268
B22: 5374 س ي ر | C22: 0 | D22: 0 | E22: 3949.340342 | F22: 50 | G22: 153.9 | H22: 0 | I22: 0 | J22: 4153.240342
B23: 5963 ج س | C23: 4300 | D23: 0 | E23: 4223.124983 | F23: 160 | G23: 92.34 | H23: 2555 | I23: 1960 | J23: 13290.46498
B24: 6159 ق ن | C24: 3290 | D24: 611.4 | E24: 3704.018214 | F24: 0 | G24: 92.34 | H24: 3700 | I24: 20 | J24: 11417.75821
B25: 6192 ط ص | C25: 3695 | D25: 0 | E25: 4839 | F25: 114 | G25: 92.34 | H25: 0 | I25: 1230 | J25: 9970.34
B26: 6193 ق ر | C26: 0 | D26: 0 | E26: 0 | F26: 80 | G26: 15 | H26: 0 | I26: 0 | J26: 95
B27: 6235 ط ص | C27: 1190 | D27: 0 | E27: 0 | F27: 0 | G27: 153.9 | H27: 0 | I27: 2710 | J27: 4053.9
B28: 6689 ن ل | C28: 500.0225 | D28: 0 | E28: 0 | F28: 0 | G28: 123.12 | H28: 0 | I28: 35 | J28: 658.1425
B29: 6723 ط ص | C29: 0 | D29: 0 | E29: 142.5 | F29: 0 | G29: 153.9 | H29: 0 | I29: 530 | J29: 826.4
B30: 6783 ط س | C30: 5824.1625 | D30: 0 | E30: 476.5152312 | F30: 0 | G30: 123.12 | H30: 0 | I30: 0 | J30: 6423.797731
B31: 7429 ط ج | C31: 0 | D31: 0 | E31: 0 | F31: 0 | G31: 0 | H31: 0 | I31: 0 | J31: 0
B32: 7862 ط ص | C32: 10580 | D32: 1627.218954 | E32: 330.453975 | F32: 0 | G32: 153.9 | H32: 0 | I32: 3485 | J32: 16176.57293
B33: 8457 ه س | C33: 0 | D33: 0 | E33: 1110 | F33: 0 | G33: 92.34 | H33: 2100 | I33: 500 | J33: 3802.34
B34: 8492 ف س | C34: 1870 | D34: 0 | E34: 499.1945738 | F34: 0 | G34: 92.34 | H34: 0 | I34: 95 | J34: 2556.534574
B35: 8734 ط ج | C35: 3205 | D35: 0 | E35: 1737 | F35: 1325.52 | G35: 92.34 | H35: 7745 | I35: 1385 | J35: 15489.86
B36: 9361 ب س | C36: 0 | D36: 0 | E36: 275 | F36: 0 | G36: 92.34 | H36: 0 | I36: 0 | J36: 367.34
B37: 9364 ق ر | C37: 0 | D37: 0 | E37: 0 | F37: 0 | G37: 15 | H37: 0 | I37: 0 | J37: 15
B38: 9417 ن س | C38: 11285 | D38: 1627.218954 | E38: 1074.175083 | F38: 60 | G38: 153.9 | H38: 0 | I38: 6840 | J38: 21040.29404
B39: 9529 ا د | C39: 0 | D39: 0 | E39: 0 | F39: 0 | G39: 15 | H39: 0 | I39: 0 | J39: 15
B40: 9678 ب س | C40: 1410 | D40: 316.4036854 | E40: 390.3659468 | F40: 0 | G40: 92.34 | H40: 0 | I40: 145 | J40: 2354.109632
C42: 142368.5575 | D42: 32137.36654 | E42: 134418.1683 | F42: 19938.52 | G42: 5268.67 | H42: 33619 | I42: 71350 | J42: 439100.2823
C44: Issue No | D44: Code | E44: Item Name | F44: Q | G44: P | H44: Value
B45: 1246 ه ج | C45: 90634 | D45: 02MFF0085 | E45: فلتر زيت شيفرولية فان N300 | F45: 1 | G45: 80 | H45: 80
B46: 1526 ب س | C46: 24525 | D46: 02MFF0102 | E46: Fuel Filter Element Mercedes 5230000 -PU 999X-KX80D -FF 5405 -57230000-50013627- E500 KP 02فلتر حشو جاز مرسيدس | F46: 1 | G46: 165.1573003 | H46: 165.1573003
C47: 24525 | D47: 02MLF0158 | E47: oil Filter Mercedes 1502x - OX168 D-LF 3829 -1183130000 -5014064-H012140X- E500 HD 129 | F47: 1 | G47: 165.2966747 | H47: 165.2966747
C48: 24590 | D48: UM207 | E48: بكرة تيفلون | F48: 1 | G48: 9.452271754 | H48: 9.452271754
C49: 24525 | D49: 02LOE0004 | E49: زيت موتور Engine oil 7400-15W40 | F49: 38 | G49: 45.20052649 | H49: 1717.620007
C50: 24590 | D50: UM283 | E50: محبس بلية 1/2" ايطالى | F50: 1 | G50: 53.92125237 | H50: 53.92125237
C51: 24590 | D51: UM195 | E51: نبل حديد 1/2- | F51: 1 | G51: 5.462168847 | H51: 5.462168847
B52: 1563 ا ي | C52: 24544 | D52: 02MFF0101 | E52: Fuel Filter ElementToyota OL041-23390 -2008 حشو فلتر جاز تويوتا | F52: 1 | G52: 136.9149118 | H52: 136.9149118
C53: 24627 | D53: 02MFF0101 | E53: Fuel Filter ElementToyota OL041-23390 -2008 حشو فلتر جاز تويوتا | F53: 1 | G53: 136.9149118 | H53: 136.9149118
C54: 90533 | D54: 02MFF0095 | E54: Fuel Filter Nissan spc 235 -FF3227 - فلتر جاز نيسان 2007 | F54: 1 | G54: 83.81555024 | H54: 83.81555024
C55: 90419 | D55: 02MLF0072 | E55: oil Filter Isuzu 4*4 - 8-97916993-1 - 8981650710 - فلتر زيت ايسوزو 2015 | F55: 1 | G55: 95.84398003 | H55: 95.84398003
C56: 90533 | D56: 02MLF0072 | E56: oil Filter Isuzu 4*4 - 8-97916993-1 - 8981650710 - فلتر زيت ايسوزو 2015 | F56: 1 | G56: 95.84398003 | H56: 95.84398003
C57: 90649 | D57: 02VBT0039 | E57: Tire 255 * 70 R 16 اطار كاوتش مقاس | F57: 1 | G57: 1829.9964 | H57: 1829.9964
C58: 90533 | D58: 02CPS0006 | E58: انبوبة سيليكون حرارى اسود | F58: 1 | G58: 32.82558966 | H58: 32.82558966
C59: 24544 | D59: 02LOE0004 | E59: زيت موتور Engine oil 7400-15W40 | F59: 7 | G59: 45.20052649 | H59: 316.4036854
B60: 1642 ا ي | C60: 24634 | D60: 02MFF0101 | E60: Fuel Filter ElementToyota OL041-23390 -2008 حشو فلتر جاز تويوتا | F60: 1 | G60: 136.9149118 | H60: 136.9149118
C61: 24634 | D61: 02MLF0072 | E61: oil Filter Isuzu 4*4 - 8-97916993-1 - 8981650710 - فلتر زيت ايسوزو 2015 | F61: 1 | G61: 131.7501486 | H61: 131.7501486
C62: 24634 | D62: 02LOE0004 | E62: زيت موتور Engine oil 7400-15W40 | F62: 8 | G62: 45.29817085 | H62: 362.3853668
B63: 1794 ه س | C63: 21 | D63: 02EDB0014 | E63: Battery 80 A Dry | F63: 1 | G63: 54.31333333 | H63: 850.0036667
C64: 24551 | D64: 02MFF0095 | E64: Fuel Filter Nissan spc 235 -FF3227 - فلتر جاز نيسان 2007 | F64: 1 | G64: 77.63110048 | H64: 77.63110048
C65: 24551 | D65: 02MLF0086 | E65: oil Filter SP202 -FO 1623 - فلتر زيت نيسان 2007 | F65: 1 | G65: 73.58181818 | H65: 73.58181818
C66: 90476 | D66: 02MPT0045 | E66: تيلة داخلى 62 mm | F66: 2 | G66: 10 | H66: 20
C67: 24551 | D67: 02LOE0004 | E67: زيت موتور Engine oil 7400-15W40 | F67: 8 | G67: 45.20052649 | H67: 361.6042119
C68: 90476 | D68: 02MPU0055 | E68: صليبة كردان نيسان | F68: 3 | G68: 142.7916667 | H68: 428.375
C69: 90476 | D69: 02MBB0044 | E69: كرسي نصف نيسان 37521 | F69: 1 | G69: 300 | H69: 300
B70: 1937 ه س | C70: 3821 | D70: 02VTT0022 | E70: Tire 1200 R 24 - اطار كاوتش بالداخلي والشريط | F70: 2 | G70: 6366.6625 | H70: 12733.325
C71: 3821 | D71: 02VBT0028 | E71: Tire 315 * 80 R 22.5 - اطار كاوتش مقاس | F71: 2 | G71: 7728.00811 | H71: 15456.01622
B72: 2259 د ع | C72: 90537 | D72: 02VBT0028 | E72: Tire 315 * 80 R 22.5 - اطار كاوتش مقاس | F72: 1 | G72: 6973.030234 | H72: 6973.030234
B73: 2318 ف س | C73: 24677 | D73: 02MFF0102 | E73: Fuel Filter Element Mercedes 5230000 -PU 999X-KX80D -FF 5405 -57230000-50013627- E500 KP 02فلتر حشو جاز مرسيدس | F73: 1 | G73: 165.1573003 | H73: 165.1573003
C74: 24677 | D74: 02MLF0158 | E74: oil Filter Mercedes 1502x - OX168 D-LF 3829 -1183130000 -5014064-H012140X- E500 HD 129 | F74: 1 | G74: 165.2966747 | H74: 165.2966747
C75: 24677 | D75: 02LOE0004 | E75: زيت موتور Engine oil 7400-15W40 | F75: 36 | G75: 45.30418158 | H75: 1630.950537
B76: 2573 ع ص | C76: 24550 | D76: 02MFF0101 | E76: Fuel Filter ElementToyota OL041-23390 -2008 حشو فلتر جاز تويوتا | F76: 1 | G76: 136.9149118 | H76: 136.9149118
C77: 24733 | D77: 02MFF0101 | E77: Fuel Filter ElementToyota OL041-23390 -2008 حشو فلتر جاز تويوتا | F77: 1 | G77: 76.49989025 | H77: 76.49989025
C78: 24733 | D78: 02MLF0151 | E78: Oil Filter Toyota 2008 (90915-30002) | F78: 1 | G78: 144.2984122 | H78: 144.2984122
C79: 24550 | D79: 02LOE0004 | E79: زيت موتور Engine oil 7400-15W40 | F79: 9 | G79: 45.20052649 | H79: 406.8047384
C80: 24733 | D80: 02LOE0004 | E80: زيت موتور Engine oil 7400-15W40 | F80: 8 | G80: 45.30418158 | H80: 362.4334527
B81: 2593 ه س | C81: 24738 | D81: 02VTW0003 | E81: طقم مساحة سيارة 18 بوصة | F81: 1 | G81: 25 | H81: 25
C82: 24738 | D82: 02EDC0002 | E82: كتاوت كلاكس 12 V | F82: 1 | G82: 36.4 | H82: 36.4
B83: 2613 ع ص | C83: 8 | D83: 02EDB0023 | E83: Battery 200 A Dry | F83: 2 | G83: 140.575 | H83: 4399.9975
B84: 2635 ج س | C84: 24633 | D84: 02VBR0002 | E84: ريشة مساحة سيارة 20 بوصة | F84: 2 | G84: 35 | H84: 70
C85: 24633 | D85: 02EDA0016 | E85: سارينة مارشديه (رجوع خلفية) 12 فولت | F85: 1 | G85: 70 | H85: 70
C86: 90580 | D86: 02VTI0001 | E86: طقم رشاشات جاز ايسوزو ديمكس | F86: 1 | G86: 6840 | H86: 6840
C87: 24612 | D87: 02VTW0003 | E87: طقم مساحة سيارة 18 بوصة | F87: 2 | G87: 25 | H87: 50
C88: 90580 | D88: 02MFP0008 | E88: طلمبة جاز ايسوزو 2007 | F88: 1 | G88: 7980 | H88: 7980
C89: 24633 | D89: 02EDL0006 | E89: فنار ضوء فقط 12 فولت | F89: 1 | G89: 205 | H89: 205
C90: 24633 | D90: 02EDF0005 | E90: كارت فيوز شوكه متعدد | F90: 1 | G90: 16.89767442 | H90: 16.89767442
C91: 24612 | D91: 02VTL0091 | E91: لمبة زئبق 3 شوكة 12V H4 - P43T | F91: 1 | G91: 39.92619848 | H91: 39.92619848
C92: 24633 | D92: 02VTL0091 | E92: لمبة زئبق 3 شوكة 12V H4 - P43T | F92: 1 | G92: 39.92619848 | H92: 39.92619848
B93: 2658 ف س | C93: 90412 | D93: 02MPS1227 | E93: Fuel Filter chervrolet jumbo 897172549 - فلتر جاز جامبو 2010 | F93: 1 | G93: 51.02827635 | H93: 51.02827635
C94: 90412 | D94: 02MLF0105 | E94: oil Filter LF 518 -FO 6757-SF 201 - 8970967770 - فلتر زيت شيفرولية جامبو - 8971482700 | F94: 1 | G94: 113.7308683 | H94: 113.7308683
C95: 90412 | D95: 02CPS0006 | E95: انبوبة سيليكون حرارى اسود | F95: 2 | G95: 32.82558966 | H95: 65.65117932
B96: 2694 ج س | C96: 90622 | D96: 02VBT0022 | E96: Tire 215*70 R 15 - اطار كاوتش مقاس | F96: 1 | G96: 1479.9993 | H96: 1479.9993
B97: 2719 ب س | C97: 90623 | D97: 02VBT0022 | E97: Tire 215*70 R 15 - اطار كاوتش مقاس | F97: 1 | G97: 1479.9993 | H97: 1479.9993
B98: 2724 س ر | C98: 90645 | D98: 02VBT0009 | E98: Tire 1100 R 20 اطار كاوتش بالداخلي و الشريط مقاس | F98: 4 | G98: 6060.0006 | H98: 24240.0024
B99: 2793 ب س | C99: 24543 | D99: 02MFF0101 | E99: Fuel Filter ElementToyota OL041-23390 -2008 حشو فلتر جاز تويوتا | F99: 1 | G99: 136.9149118 | H99: 136.9149118
C100: 24543 | D100: 02LOE0004 | E100: زيت موتور Engine oil 7400-15W40 | F100: 8 | G100: 45.20052649 | H100: 361.6042119
B101: 3725 ه س | C101: 90521 | D101: 02VPB0007 | E101: بارة دركسيون Demix | F101: 1 | G101: 300 | H101: 300
C102: 90521 | D102: 02VBW0003 | E102: سلك اكسراتير | F102: 1 | G102: 170 | H102: 170
C103: 90521 | D103: 02VTB0025 | E103: طقم بيض مقص علوى ايسوزو | F103: 1 | G103: 1300 | H103: 1300
C104: 90521 | D104: 02VTC0020 | E104: طقم مساعد امامى ايسوزو 2007 - PN : 9-8546747-21 | F104: 2 | G104: 733.3450087 | H104: 1466.690017
C105: 90521 | D105: 02MWC0012 | E105: غطاء ريداتير 5سم | F105: 1 | G105: 35 | H105: 35
C106: 90521 | D106: 02MFC0027 | E106: كارجة جاز ايسوزو ديمكس 2007 | F106: 1 | G106: 295 | H106: 295
C107: 90521 | D107: 02VTR0029 | E107: كاوتش اسكاترا ايسوزو | F107: 2 | G107: 75 | H107: 150
C108: 90521 | D108: 02MPG0097 | E108: كاوتش ميزان ايسوزو | F108: 2 | G108: 25 | H108: 50
C109: 90466 | D109: 02VTS0050 | E109: مساعد خلفى مرسيدس اكتروس pn : 30020677 | F109: 6 | G109: 1311 | H109: 7866
C110: 90521 | D110: 02MWS0026 | E110: مسمار عجل | F110: 10 | G110: 23.79880233 | H110: 237.9880233
C111: 90466 | D111: 02VTS0101 | E111: مسمار عجل ايسوزو | F111: 36 | G111: 51.3 | H111: 1846.8
B112: 4157 ب س | C112: 24724 | D112: LG233 | E112: فلتر جاز ST - 03213 - ( NKR ) | F112: 1 | G112: 75 | H112: 75
C113: 24724 | D113: LG004 | E113: فلتر زيت 894430983 - ( NKR ) | F113: 1 | G113: 75 | H113: 75
B114: 4172 ج س | C114: 24679 | D114: 02MFF0101 | E114: Fuel Filter ElementToyota OL041-23390 -2008 حشو فلتر جاز تويوتا | F114: 1 | G114: 76.49989025 | H114: 76.49989025
C115: 24679 | D115: 02MLF0151 | E115: Oil Filter Toyota 2008 (90915-30002) | F115: 1 | G115: 180.9224396 | H115: 180.9224396
C116: 24611 | D116: 02VBR0002 | E116: ريشة مساحة سيارة 20 بوصة | F116: 2 | G116: 35 | H116: 70
C117: 24679 | D117: 02LOE0004 | E117: زيت موتور Engine oil 7400-15W40 | F117: 8 | G117: 45.30418158 | H117: 362.4334527
C118: 24611 | D118: 02EDA0016 | E118: سارينة مارشديه (رجوع خلفية) 12 فولت | F118: 1 | G118: 70 | H118: 70
C119: 24611 | D119: 02VTH0010 | E119: طقم كلاكس هيلا 12 فولت | F119: 1 | G119: 178.0619048 | H119: 178.0619048
C120: 24611 | D120: 02EDC0005 | E120: قطاش بطاريه | F120: 2 | G120: 21.00645044 | H120: 42.01290088
B121: 4178 ج س | C121: 90470 | D121: 02MPS1227 | E121: Fuel Filter chervrolet jumbo 897172549 - فلتر جاز جامبو 2010 | F121: 1 | G121: 51.02827635 | H121: 51.02827635
C122: 90470 | D122: 02MLF0105 | E122: oil Filter LF 518 -FO 6757-SF 201 - 8970967770 - فلتر زيت شيفرولية جامبو - 8971482700 | F122: 1 | G122: 113.7308683 | H122: 113.7308683
B123: 5374 س ي ر | C123: 3774 | D123: 02MFF0161 | E123: Fuel Filter ElementToyota 0L070-23390 - 2018 حشو فلتر جاز تويوتا | F123: 1 | G123: 626.3611411 | H123: 626.3611411
C124: 3774 | D124: 02MLF0154 | E124: oil Filter LF 3349-BT 339-LF 3959 | F124: 1 | G124: 104.3760658 | H124: 104.3760658
B125: 5963 ج س | C125: 90585 | D125: 02MAF0122 | E125: Air Filter Chevrolet Jumbo HF 1549 - hf 7008 | F125: 2 | G125: 158.9740742 | H125: 317.9481484
C126: 90585 | D126: 02MPS1227 | E126: Fuel Filter chervrolet jumbo 897172549 - فلتر جاز جامبو 2010 | F126: 1 | G126: 48.57277506 | H126: 48.57277506
C127: 24539 | D127: 02MPS1227 | E127: Fuel Filter chervrolet jumbo 897172549 - فلتر جاز جامبو 2010 | F127: 1 | G127: 56.45655271 | H127: 56.45655271
C128: 24629 | D128: 02MPS1227 | E128: Fuel Filter chervrolet jumbo 897172549 - فلتر جاز جامبو 2010 | F128: 1 | G128: 56.45655271 | H128: 56.45655271
C129: 90585 | D129: 02MLF0105 | E129: oil Filter LF 518 -FO 6757-SF 201 - 8970967770 - فلتر زيت شيفرولية جامبو - 8971482700 | F129: 2 | G129: 117.6722494 | H129: 235.3444988
C130: 24539 | D130: 02LOE0004 | E130: زيت موتور Engine oil 7400-15W40 | F130: 9 | G130: 45.20052649 | H130: 406.8047384
C131: 24629 | D131: 02LOE0004 | E131: زيت موتور Engine oil 7400-15W40 | F131: 9 | G131: 45.29817085 | H131: 407.6835377
C132: 24708 | D132: 02VTL0022 | E132: فانوس جنب ليزر 12 فولت | F132: 8 | G132: 16.84272284 | H132: 134.7417827
C133: 24708 | D133: 02EDF0005 | E133: كارت فيوز شوكه متعدد | F133: 1 | G133: 16.89767442 | H133: 16.89767442
B134: 6159 ق ن | C134: 24652 | D134: 02MLF0003 | E134: Oil Filter Toyota Coaster 23303_56040 | F134: 1 | G134: 85 | H134: 85
C135: 24652 | D135: 02LOE0004 | E135: زيت موتور Engine oil 7400-15W40 | F135: 9 | G135: 45.30418158 | H135: 407.7376343
C136: 24652 | D136: LO160 | E136: فلتر جاز تويوتا كوستر موديل 1998 - FC - 1104 | F136: 1 | G136: 125 | H136: 125
B137: 6192 ط ص | C137: 90434 | D137: 02MFF0086 | E137: Fuel Filter Isuzu 8944489840 / 8979169930- فلتر جاز ايسوزو 2006 | F137: 1 | G137: 44.940918 | H137: 44.940918
C138: 90434 | D138: 02MLF0095 | E138: oil Filter Isuzu 8973099270 - فلتر زيت ايسوزو 2006 | F138: 1 | G138: 65 | H138: 65
C139: 90650 | D139: 02MLF0095 | E139: oil Filter Isuzu 8973099270 - فلتر زيت ايسوزو 2006 | F139: 1 | G139: 51.3 | H139: 51.3
C140: 90550 | D140: 02EDS0017 | E140: ماكينة بطال Demix | F140: 1 | G140: 245.2 | H140: 245.2
B141: 6193 ق ر | C141: 24545 | D141: 02MAF0094 | E141: Air Filter Isuzu - 8971730270 - فلتر هواء ايسوزو 2006 | F141: 1 | G141: 103.74 | H141: 103.74
B142: 6235 ط ص | C142: 12 | D142: 02EDB0023 | E142: Battery 200 A Dry | F142: 2 | G142: 140.575 | H142: 4399.9975
C143: 90561 | D143: 02MAS0016 | E143: قربة هواء كابينة مرسيدس 721700105 | F143: 2 | G143: 1254 | H143: 2508
B144: 6689 ن ل | C144: 24540 | D144: 02MFF0101 | E144: Fuel Filter ElementToyota OL041-23390 -2008 حشو فلتر جاز تويوتا | F144: 1 | G144: 136.9149118 | H144: 136.9149118
C145: 24540 | D145: 02MLF0151 | E145: Oil Filter Toyota 2008 (90915-30002) | F145: 1 | G145: 180.9224396 | H145: 180.9224396
C146: 3818 | D146: 02VBT0016 | E146: Tire tubeless 205 * 80 R 16 اطار كاوتش مقاس | F146: 2 | G146: 1969.9998 | H146: 3939.9996
C147: 24540 | D147: 02LOE0004 | E147: زيت موتور Engine oil 7400-15W40 | F147: 8 | G147: 45.20052649 | H147: 361.6042119
B148: 6723 ط ص | C148: 90487 | D148: 02LOT0001 | E148: زيت ترانسميشن ATF - Fluid transmission IID | F148: 1 | G148: 62.08388691 | H148: 62.08388691
B149: 6783 ط س | C149: 3779 | D149: 02MFF0102 | E149: Fuel Filter Element Mercedes 5230000 -PU 999X-KX80D -FF 5405 -57230000-50013627- E500 KP 02فلتر حشو جاز مرسيدس | F149: 1 | G149: 165.2625387 | H149: 165.2625387
C150: 3779 | D150: 02MLF0158 | E150: oil Filter Mercedes 1502x - OX168 D-LF 3829 -1183130000 -5014064-H012140X- E500 HD 129 | F150: 1 | G150: 165.289285 | H150: 165.289285
C151: 90644 | D151: 02VBT0028 | E151: Tire 315 * 80 R 22.5 - اطار كاوتش مقاس | F151: 2 | G151: 8029.99926 | H151: 16059.99852
C152: 24676 | D152: 02VBR0001 | E152: ريشة مساحة 26 بوصة | F152: 2 | G152: 35 | H152: 70
C153: 3708 | D153: 02ECR0039 | E153: كابل كهرباء مقطوره | F153: 1 | G153: 256.5 | H153: 256.5
B154: 7429 ط ج | C154: 90523 | D154: 02VTS0114 | E154: فولة مسمار عجل مقطورة | F154: 20 | G154: 3.42 | H154: 68.4
C155: 90523 | D155: 02VTS0020 | E155: مسمار مقطورة الماني | F155: 20 | G155: 39.9 | H155: 798
B156: 7862 ط ص | C156: 24542 | D156: 02MFF0102 | E156: Fuel Filter Element Mercedes 5230000 -PU 999X-KX80D -FF 5405 -57230000-50013627- E500 KP 02فلتر حشو جاز مرسيدس | F156: 1 | G156: 165.1573003 | H156: 165.1573003
C157: 24740 | D157: 02MFF0102 | E157: Fuel Filter Element Mercedes 5230000 -PU 999X-KX80D -FF 5405 -57230000-50013627- E500 KP 02فلتر حشو جاز مرسيدس | F157: 1 | G157: 165.1573003 | H157: 165.1573003
C158: 24542 | D158: 02MLF0158 | E158: oil Filter Mercedes 1502x - OX168 D-LF 3829 -1183130000 -5014064-H012140X- E500 HD 129 | F158: 1 | G158: 165.2966747 | H158: 165.2966747
C159: 24542 | D159: 02MLF0151 | E159: Oil Filter Toyota 2008 (90915-30002) | F159: 1 | G159: 180.9224396 | H159: 180.9224396
C160: 24740 | D160: 02MLF0151 | E160: Oil Filter Toyota 2008 (90915-30002) | F160: 1 | G160: 144.2984122 | H160: 144.2984122
C161: 90638 | D161: 02VBT0028 | E161: Tire 315 * 80 R 22.5 - اطار كاوتش مقاس | F161: 2 | G161: 8029.99926 | H161: 16059.99852
C162: 24542 | D162: 02LOE0004 | E162: زيت موتور Engine oil 7400-15W40 | F162: 40 | G162: 45.20052649 | H162: 1808.02106
C163: 24740 | D163: 02LOE0004 | E163: زيت موتور Engine oil 7400-15W40 | F163: 42 | G163: 45.30418158 | H163: 1902.775627
B164: 8457 ه س | C164: 24535 | D164: 02MTC0002 | E164: عبوة مزيل صداء 330 مم WD40 | F164: 1 | G164: 58.79631429 | H164: 58.79631429
B165: 8492 ف س | C165: 90559 | D165: 02MAF0179 | E165: Air Filter Isuzu HF 6311-8981402660 -فلتر هواء ايسوزو 2015 | F165: 1 | G165: 114 | H165: 114
C166: 90433 | D166: 02MFF0101 | E166: Fuel Filter ElementToyota OL041-23390 -2008 حشو فلتر جاز تويوتا | F166: 1 | G166: 81.70066138 | H166: 81.70066138
C167: 90559 | D167: 02MFF0101 | E167: Fuel Filter ElementToyota OL041-23390 -2008 حشو فلتر جاز تويوتا | F167: 1 | G167: 83.35033069 | H167: 83.35033069
C168: 90433 | D168: 02MLF0072 | E168: oil Filter Isuzu 4*4 - 8-97916993-1 - 8981650710 - فلتر زيت ايسوزو 2015 | F168: 1 | G168: 95.84398003 | H168: 95.84398003
C169: 90559 | D169: 02MLF0072 | E169: oil Filter Isuzu 4*4 - 8-97916993-1 - 8981650710 - فلتر زيت ايسوزو 2015 | F169: 1 | G169: 95.84398003 | H169: 95.84398003
B170: 8734 ط ج | C170: 90482 | D170: 02MPS1227 | E170: Fuel Filter chervrolet jumbo 897172549 - فلتر جاز جامبو 2010 | F170: 1 | G170: 51.02827635 | H170: 51.02827635
C171: 90482 | D171: 02MLF0105 | E171: oil Filter LF 518 -FO 6757-SF 201 - 8970967770 - فلتر زيت شيفرولية جامبو - 8971482700 | F171: 1 | G171: 113.7308683 | H171: 113.7308683
C172: 90441 | D172: 02LOA0002 | E172: علبة زيت باكم 4/1 لتر- توتال | F172: 1 | G172: 34.59010614 | H172: 34.59010614
B173: 9361 ب س | C173: 90531 | D173: 02MFF0095 | E173: Fuel Filter Nissan spc 235 -FF3227 - فلتر جاز نيسان 2007 | F173: 1 | G173: 83.81555024 | H173: 83.81555024
C174: 90625 | D174: 02VBT0022 | E174: Tire 215*70 R 15 - اطار كاوتش مقاس | F174: 1 | G174: 1479.9993 | H174: 1479.9993
C175: 90531 | D175: 02VTB0056 | E175: اويل سيل كرنك امامى | F175: 1 | G175: 180 | H175: 180
C176: 90531 | D176: 02VTI0011 | E176: كارجة جاز نيسان | F176: 1 | G176: 160 | H176: 160
B177: 9417 ن س | C177: 24549 | D177: 02MFF0102 | E177: Fuel Filter Element Mercedes 5230000 -PU 999X-KX80D -FF 5405 -57230000-50013627- E500 KP 02فلتر حشو جاز مرسيدس | F177: 1 | G177: 165.1573003 | H177: 165.1573003
C178: 24704 | D178: 02MFF0102 | E178: Fuel Filter Element Mercedes 5230000 -PU 999X-KX80D -FF 5405 -57230000-50013627- E500 KP 02فلتر حشو جاز مرسيدس | F178: 1 | G178: 165.1573003 | H178: 165.1573003
C179: 24549 | D179: 02MLF0158 | E179: oil Filter Mercedes 1502x - OX168 D-LF 3829 -1183130000 -5014064-H012140X- E500 HD 129 | F179: 1 | G179: 165.2966747 | H179: 165.2966747
C180: 24704 | D180: 02MLF0158 | E180: oil Filter Mercedes 1502x - OX168 D-LF 3829 -1183130000 -5014064-H012140X- E500 HD 129 | F180: 1 | G180: 165.2966747 | H180: 165.2966747
C181: 6 | D181: 02VTT0025 | E181: Tire 385 * 65 * 22.5 اطار كاوتش مقاس | F181: 2 | G181: 325 | H181: 10172.5
C182: 24549 | D182: 02LOE0004 | E182: زيت موتور Engine oil 7400-15W40 | F182: 32 | G182: 45.20052649 | H182: 1446.416848
C183: 24704 | D183: 02LOE0004 | E183: زيت موتور Engine oil 7400-15W40 | F183: 40 | G183: 45.30418158 | H183: 1812.167263
B184: 9678 ب س | C184: 90613 | D184: 02VBT0022 | E184: Tire 215*70 R 15 - اطار كاوتش مقاس | F184: 2 | G184: 1479.9993 | H184: 2959.9986
C185: 3772 | D185: 02MFF0128 | E185: Fuel Filter FF5018 -FF5074 -FF 5167-BF 988-WK731 | F185: 2 | G185: 57.86861329 | H185: 115.7372266
C186: 3710 | D186: 02LOA0002 | E186: علبة زيت باكم 4/1 لتر- توتال | F186: 2 | G186: 34.45033927 | H186: 68.90067853
C187: 24646 | D187: 02EDL0028 | E187: فانوس شبورة ليد مربع 16 ليد | F187: 4 | G187: 151.7712889 | H187: 607.0851556
C188: 24646 | D188: 02EDC0016 | E188: كتاوت نور 24 V | F188: 1 | G188: 64.4217284 | H188: 64.4217284
C189: 24646 | D189: 02EDP0003 | E189: مفتاح كهرباء 2 شده | F189: 1 | G189: 28.5 | H189: 28.5
C190: 24646 | D190: 02EDP0002 | E190: مفتاح كهرباء واحد شده | F190: 1 | G190: 15.19090909 | H190: 15.19090909

Sheet Mar
C2: Fuel | D2: Oils | E2: Spare Parts | F2: Maintenance | G2: Communication | H2: Insurance | I2: Stamp Exp | J2: Total
B3: 1246 ه ج | C3: 0 | D3: 0 | E3: 0 | F3: 0 | G3: 0 | H3: 0 | I3: 0 | J3: 0
B4: 1526 ب س | C4: 0 | D4: 0 | E4: 0 | F4: 0 | G4: 0 | H4: 0 | I4: 0 | J4: 0
B5: 1794 ه س | C5: 0 | D5: 0 | E5: 0 | F5: 0 | G5: 0 | H5: 0 | I5: 0 | J5: 0
B6: 1937 ه س | C6: 0 | D6: 0 | E6: 0 | F6: 0 | G6: 0 | H6: 0 | I6: 0 | J6: 0
B7: 2259 د ع | C7: 0 | D7: 0 | E7: 0 | F7: 0 | G7: 0 | H7: 0 | I7: 0 | J7: 0
B8: 2318 ف س | C8: 0 | D8: 0 | E8: 0 | F8: 0 | G8: 0 | H8: 0 | I8: 0 | J8: 0
B9: 2573 ع ص | C9: 0 | D9: 0 | E9: 0 | F9: 0 | G9: 0 | H9: 0 | I9: 0 | J9: 0
B10: 2593 ه س | C10: 0 | D10: 0 | E10: 0 | F10: 0 | G10: 0 | H10: 0 | I10: 0 | J10: 0
B11: 2613 ع ص | C11: 0 | D11: 0 | E11: 0 | F11: 0 | G11: 0 | H11: 0 | I11: 0 | J11: 0
B12: 2635 ج س | C12: 0 | D12: 0 | E12: 0 | F12: 0 | G12: 0 | H12: 0 | I12: 0 | J12: 0
B13: 2658 ف س | C13: 0 | D13: 0 | E13: 0 | F13: 0 | G13: 0 | H13: 0 | I13: 0 | J13: 0
B14: 2694 ج س | C14: 0 | D14: 0 | E14: 0 | F14: 0 | G14: 0 | H14: 0 | I14: 0 | J14: 0
B15: 2719 ب س | C15: 0 | D15: 0 | E15: 0 | F15: 0 | G15: 0 | H15: 0 | I15: 0 | J15: 0
B16: 2724 س ر | C16: 0 | D16: 0 | E16: 0 | F16: 0 | G16: 0 | H16: 0 | I16: 0 | J16: 0
B17: 2793 ب س | C17: 0 | D17: 0 | E17: 0 | F17: 0 | G17: 0 | H17: 0 | I17: 0 | J17: 0
B18: 3725 ه س | C18: 0 | D18: 0 | E18: 0 | F18: 0 | G18: 0 | H18: 0 | I18: 0 | J18: 0
B19: 4157 ب س | C19: 0 | D19: 0 | E19: 0 | F19: 0 | G19: 0 | H19: 0 | I19: 0 | J19: 0
B20: 4172 ج س | C20: 0 | D20: 0 | E20: 0 | F20: 0 | G20: 0 | H20: 0 | I20: 0 | J20: 0
B21: 4178 ج س | C21: 0 | D21: 0 | E21: 0 | F21: 0 | G21: 0 | H21: 0 | I21: 0 | J21: 0
B22: 5374 س ي ر | C22: 0 | D22: 0 | E22: 0 | F22: 0 | G22: 0 | H22: 0 | I22: 0 | J22: 0
B23: 5963 ج س | C23: 0 | D23: 0 | E23: 0 | F23: 0 | G23: 0 | H23: 0 | I23: 0 | J23: 0
B24: 6159 ق ن | C24: 0 | D24: 0 | E24: 0 | F24: 0 | G24: 0 | H24: 0 | I24: 0 | J24: 0
B25: 6192 ط ص | C25: 0 | D25: 0 | E25: 0 | F25: 0 | G25: 0 | H25: 0 | I25: 0 | J25: 0
B26: 6193 ق ر | C26: 0 | D26: 0 | E26: 0 | F26: 0 | G26: 0 | H26: 0 | I26: 0 | J26: 0
B27: 6235 ط ص | C27: 0 | D27: 0 | E27: 0 | F27: 0 | G27: 0 | H27: 0 | I27: 0 | J27: 0
B28: 6689 ن ل | C28: 0 | D28: 0 | E28: 0 | F28: 0 | G28: 0 | H28: 0 | I28: 0 | J28: 0
B29: 6723 ط ص | C29: 0 | D29: 0 | E29: 0 | F29: 0 | G29: 0 | H29: 0 | I29: 0 | J29: 0
B30: 6783 ط س | C30: 0 | D30: 0 | E30: 0 | F30: 0 | G30: 0 | H30: 0 | I30: 0 | J30: 0
B31: 7429 ط ج | C31: 0 | D31: 0 | E31: 0 | F31: 0 | G31: 0 | H31: 0 | I31: 0 | J31: 0
B32: 7862 ط ص | C32: 0 | D32: 0 | E32: 0 | F32: 0 | G32: 0 | H32: 0 | I32: 0 | J32: 0
B33: 8457 ه س | C33: 0 | D33: 0 | E33: 0 | F33: 0 | G33: 0 | H33: 0 | I33: 0 | J33: 0
B34: 8492 ف س | C34: 0 | D34: 0 | E34: 0 | F34: 0 | G34: 0 | H34: 0 | I34: 0 | J34: 0
B35: 8734 ط ج | C35: 0 | D35: 0 | E35: 0 | F35: 0 | G35: 0 | H35: 0 | I35: 0 | J35: 0
B36: 9361 ب س | C36: 0 | D36: 0 | E36: 0 | F36: 0 | G36: 0 | H36: 0 | I36: 0 | J36: 0
B37: 9364 ق ر | C37: 0 | D37: 0 | E37: 0 | F37: 0 | G37: 0 | H37: 0 | I37: 0 | J37: 0
B38: 9417 ن س | C38: 0 | D38: 0 | E38: 0 | F38: 0 | G38: 0 | H38: 0 | I38: 0 | J38: 0
B39: 9529 ا د | C39: 0 | D39: 0 | E39: 0 | F39: 0 | G39: 0 | H39: 0 | I39: 0 | J39: 0
B40: 9678 ب س | C40: 0 | D40: 0 | E40: 0 | F40: 0 | G40: 0 | H40: 0 | I40: 0 | J40: 0
C42: 0 | D42: 0 | E42: 0 | F42: 0 | G42: 0 | H42: 0 | I42: 0 | J42: 0

Sheet Apr
C2: Fuel | D2: Oils | E2: Spare Parts | F2: Maintenance | G2: Communication | H2: Insurance | I2: Stamp Exp | J2: Total
B3: 1246 ه ج | C3: 0 | D3: 0 | E3: 0 | F3: 0 | G3: 0 | H3: 0 | I3: 0 | J3: 0
B4: 1526 ب س | C4: 0 | D4: 0 | E4: 0 | F4: 0 | G4: 0 | H4: 0 | I4: 0 | J4: 0
B5: 1794 ه س | C5: 0 | D5: 0 | E5: 0 | F5: 0 | G5: 0 | H5: 0 | I5: 0 | J5: 0
B6: 1937 ه س | C6: 0 | D6: 0 | E6: 0 | F6: 0 | G6: 0 | H6: 0 | I6: 0 | J6: 0
B7: 2259 د ع | C7: 0 | D7: 0 | E7: 0 | F7: 0 | G7: 0 | H7: 0 | I7: 0 | J7: 0
B8: 2318 ف س | C8: 0 | D8: 0 | E8: 0 | F8: 0 | G8: 0 | H8: 0 | I8: 0 | J8: 0
B9: 2573 ع ص | C9: 0 | D9: 0 | E9: 0 | F9: 0 | G9: 0 | H9: 0 | I9: 0 | J9: 0
B10: 2593 ه س | C10: 0 | D10: 0 | E10: 0 | F10: 0 | G10: 0 | H10: 0 | I10: 0 | J10: 0
B11: 2613 ع ص | C11: 0 | D11: 0 | E11: 0 | F11: 0 | G11: 0 | H11: 0 | I11: 0 | J11: 0
B12: 2635 ج س | C12: 0 | D12: 0 | E12: 0 | F12: 0 | G12: 0 | H12: 0 | I12: 0 | J12: 0
B13: 2658 ف س | C13: 0 | D13: 0 | E13: 0 | F13: 0 | G13: 0 | H13: 0 | I13: 0 | J13: 0
B14: 2694 ج س | C14: 0 | D14: 0 | E14: 0 | F14: 0 | G14: 0 | H14: 0 | I14: 0 | J14: 0
B15: 2719 ب س | C15: 0 | D15: 0 | E15: 0 | F15: 0 | G15: 0 | H15: 0 | I15: 0 | J15: 0
B16: 2724 س ر | C16: 0 | D16: 0 | E16: 0 | F16: 0 | G16: 0 | H16: 0 | I16: 0 | J16: 0
B17: 2793 ب س | C17: 0 | D17: 0 | E17: 0 | F17: 0 | G17: 0 | H17: 0 | I17: 0 | J17: 0
B18: 3725 ه س | C18: 0 | D18: 0 | E18: 0 | F18: 0 | G18: 0 | H18: 0 | I18: 0 | J18: 0
B19: 4157 ب س | C19: 0 | D19: 0 | E19: 0 | F19: 0 | G19: 0 | H19: 0 | I19: 0 | J19: 0
B20: 4172 ج س | C20: 0 | D20: 0 | E20: 0 | F20: 0 | G20: 0 | H20: 0 | I20: 0 | J20: 0
B21: 4178 ج س | C21: 0 | D21: 0 | E21: 0 | F21: 0 | G21: 0 | H21: 0 | I21: 0 | J21: 0
B22: 5374 س ي ر | C22: 0 | D22: 0 | E22: 0 | F22: 0 | G22: 0 | H22: 0 | I22: 0 | J22: 0
B23: 5963 ج س | C23: 0 | D23: 0 | E23: 0 | F23: 0 | G23: 0 | H23: 0 | I23: 0 | J23: 0
B24: 6159 ق ن | C24: 0 | D24: 0 | E24: 0 | F24: 0 | G24: 0 | H24: 0 | I24: 0 | J24: 0
B25: 6192 ط ص | C25: 0 | D25: 0 | E25: 0 | F25: 0 | G25: 0 | H25: 0 | I25: 0 | J25: 0
B26: 6193 ق ر | C26: 0 | D26: 0 | E26: 0 | F26: 0 | G26: 0 | H26: 0 | I26: 0 | J26: 0
B27: 6235 ط ص | C27: 0 | D27: 0 | E27: 0 | F27: 0 | G27: 0 | H27: 0 | I27: 0 | J27: 0
B28: 6689 ن ل | C28: 0 | D28: 0 | E28: 0 | F28: 0 | G28: 0 | H28: 0 | I28: 0 | J28: 0
B29: 6723 ط ص | C29: 0 | D29: 0 | E29: 0 | F29: 0 | G29: 0 | H29: 0 | I29: 0 | J29: 0
B30: 6783 ط س | C30: 0 | D30: 0 | E30: 0 | F30: 0 | G30: 0 | H30: 0 | I30: 0 | J30: 0
B31: 7429 ط ج | C31: 0 | D31: 0 | E31: 0 | F31: 0 | G31: 0 | H31: 0 | I31: 0 | J31: 0
B32: 7862 ط ص | C32: 0 | D32: 0 | E32: 0 | F32: 0 | G32: 0 | H32: 0 | I32: 0 | J32: 0
B33: 8457 ه س | C33: 0 | D33: 0 | E33: 0 | F33: 0 | G33: 0 | H33: 0 | I33: 0 | J33: 0
B34: 8492 ف س | C34: 0 | D34: 0 | E34: 0 | F34: 0 | G34: 0 | H34: 0 | I34: 0 | J34: 0
B35: 8734 ط ج | C35: 0 | D35: 0 | E35: 0 | F35: 0 | G35: 0 | H35: 0 | I35: 0 | J35: 0
B36: 9361 ب س | C36: 0 | D36: 0 | E36: 0 | F36: 0 | G36: 0 | H36: 0 | I36: 0 | J36: 0
B37: 9364 ق ر | C37: 0 | D37: 0 | E37: 0 | F37: 0 | G37: 0 | H37: 0 | I37: 0 | J37: 0
B38: 9417 ن س | C38: 0 | D38: 0 | E38: 0 | F38: 0 | G38: 0 | H38: 0 | I38: 0 | J38: 0
B39: 9529 ا د | C39: 0 | D39: 0 | E39: 0 | F39: 0 | G39: 0 | H39: 0 | I39: 0 | J39: 0
B40: 9678 ب س | C40: 0 | D40: 0 | E40: 0 | F40: 0 | G40: 0 | H40: 0 | I40: 0 | J40: 0
C42: 0 | D42: 0 | E42: 0 | F42: 0 | G42: 0 | H42: 0 | I42: 0 | J42: 0

Sheet May
C2: Fuel | D2: Oils | E2: Spare Parts | F2: Maintenance | G2: Communication | H2: Insurance | I2: Stamp Exp | J2: Total
B3: 1246 ه ج | C3: 0 | D3: 0 | E3: 0 | F3: 0 | G3: 0 | H3: 0 | I3: 0 | J3: 0
B4: 1526 ب س | C4: 0 | D4: 0 | E4: 0 | F4: 0 | G4: 0 | H4: 0 | I4: 0 | J4: 0
B5: 1794 ه س | C5: 0 | D5: 0 | E5: 0 | F5: 0 | G5: 0 | H5: 0 | I5: 0 | J5: 0
B6: 1937 ه س | C6: 0 | D6: 0 | E6: 0 | F6: 0 | G6: 0 | H6: 0 | I6: 0 | J6: 0
B7: 2259 د ع | C7: 0 | D7: 0 | E7: 0 | F7: 0 | G7: 0 | H7: 0 | I7: 0 | J7: 0
B8: 2318 ف س | C8: 0 | D8: 0 | E8: 0 | F8: 0 | G8: 0 | H8: 0 | I8: 0 | J8: 0
B9: 2573 ع ص | C9: 0 | D9: 0 | E9: 0 | F9: 0 | G9: 0 | H9: 0 | I9: 0 | J9: 0
B10: 2593 ه س | C10: 0 | D10: 0 | E10: 0 | F10: 0 | G10: 0 | H10: 0 | I10: 0 | J10: 0
B11: 2613 ع ص | C11: 0 | D11: 0 | E11: 0 | F11: 0 | G11: 0 | H11: 0 | I11: 0 | J11: 0
B12: 2635 ج س | C12: 0 | D12: 0 | E12: 0 | F12: 0 | G12: 0 | H12: 0 | I12: 0 | J12: 0
B13: 2658 ف س | C13: 0 | D13: 0 | E13: 0 | F13: 0 | G13: 0 | H13: 0 | I13: 0 | J13: 0
B14: 2694 ج س | C14: 0 | D14: 0 | E14: 0 | F14: 0 | G14: 0 | H14: 0 | I14: 0 | J14: 0
B15: 2719 ب س | C15: 0 | D15: 0 | E15: 0 | F15: 0 | G15: 0 | H15: 0 | I15: 0 | J15: 0
B16: 2724 س ر | C16: 0 | D16: 0 | E16: 0 | F16: 0 | G16: 0 | H16: 0 | I16: 0 | J16: 0
B17: 2793 ب س | C17: 0 | D17: 0 | E17: 0 | F17: 0 | G17: 0 | H17: 0 | I17: 0 | J17: 0
B18: 3725 ه س | C18: 0 | D18: 0 | E18: 0 | F18: 0 | G18: 0 | H18: 0 | I18: 0 | J18: 0
B19: 4157 ب س | C19: 0 | D19: 0 | E19: 0 | F19: 0 | G19: 0 | H19: 0 | I19: 0 | J19: 0
B20: 4172 ج س | C20: 0 | D20: 0 | E20: 0 | F20: 0 | G20: 0 | H20: 0 | I20: 0 | J20: 0
B21: 4178 ج س | C21: 0 | D21: 0 | E21: 0 | F21: 0 | G21: 0 | H21: 0 | I21: 0 | J21: 0
B22: 5374 س ي ر | C22: 0 | D22: 0 | E22: 0 | F22: 0 | G22: 0 | H22: 0 | I22: 0 | J22: 0
B23: 5963 ج س | C23: 0 | D23: 0 | E23: 0 | F23: 0 | G23: 0 | H23: 0 | I23: 0 | J23: 0
B24: 6159 ق ن | C24: 0 | D24: 0 | E24: 0 | F24: 0 | G24: 0 | H24: 0 | I24: 0 | J24: 0
B25: 6192 ط ص | C25: 0 | D25: 0 | E25: 0 | F25: 0 | G25: 0 | H25: 0 | I25: 0 | J25: 0
B26: 6193 ق ر | C26: 0 | D26: 0 | E26: 0 | F26: 0 | G26: 0 | H26: 0 | I26: 0 | J26: 0
B27: 6235 ط ص | C27: 0 | D27: 0 | E27: 0 | F27: 0 | G27: 0 | H27: 0 | I27: 0 | J27: 0
B28: 6689 ن ل | C28: 0 | D28: 0 | E28: 0 | F28: 0 | G28: 0 | H28: 0 | I28: 0 | J28: 0
B29: 6723 ط ص | C29: 0 | D29: 0 | E29: 0 | F29: 0 | G29: 0 | H29: 0 | I29: 0 | J29: 0
B30: 6783 ط س | C30: 0 | D30: 0 | E30: 0 | F30: 0 | G30: 0 | H30: 0 | I30: 0 | J30: 0
B31: 7429 ط ج | C31: 0 | D31: 0 | E31: 0 | F31: 0 | G31: 0 | H31: 0 | I31: 0 | J31: 0
B32: 7862 ط ص | C32: 0 | D32: 0 | E32: 0 | F32: 0 | G32: 0 | H32: 0 | I32: 0 | J32: 0
B33: 8457 ه س | C33: 0 | D33: 0 | E33: 0 | F33: 0 | G33: 0 | H33: 0 | I33: 0 | J33: 0
B34: 8492 ف س | C34: 0 | D34: 0 | E34: 0 | F34: 0 | G34: 0 | H34: 0 | I34: 0 | J34: 0
B35: 8734 ط ج | C35: 0 | D35: 0 | E35: 0 | F35: 0 | G35: 0 | H35: 0 | I35: 0 | J35: 0
B36: 9361 ب س | C36: 0 | D36: 0 | E36: 0 | F36: 0 | G36: 0 | H36: 0 | I36: 0 | J36: 0
B37: 9364 ق ر | C37: 0 | D37: 0 | E37: 0 | F37: 0 | G37: 0 | H37: 0 | I37: 0 | J37: 0
B38: 9417 ن س | C38: 0 | D38: 0 | E38: 0 | F38: 0 | G38: 0 | H38: 0 | I38: 0 | J38: 0
B39: 9529 ا د | C39: 0 | D39: 0 | E39: 0 | F39: 0 | G39: 0 | H39: 0 | I39: 0 | J39: 0
B40: 9678 ب س | C40: 0 | D40: 0 | E40: 0 | F40: 0 | G40: 0 | H40: 0 | I40: 0 | J40: 0
C42: 0 | D42: 0 | E42: 0 | F42: 0 | G42: 0 | H42: 0 | I42: 0 | J42: 0

Sheet Jun
C2: Fuel | D2: Oils | E2: Spare Parts | F2: Maintenance | G2: Communication | H2: Insurance | I2: Stamp Exp | J2: Total
B3: 1246 ه ج | C3: 0 | D3: 0 | E3: 0 | F3: 0 | G3: 0 | H3: 0 | I3: 0 | J3: 0
B4: 1526 ب س | C4: 0 | D4: 0 | E4: 0 | F4: 0 | G4: 0 | H4: 0 | I4: 0 | J4: 0
B5: 1794 ه س | C5: 0 | D5: 0 | E5: 0 | F5: 0 | G5: 0 | H5: 0 | I5: 0 | J5: 0
B6: 1937 ه س | C6: 0 | D6: 0 | E6: 0 | F6: 0 | G6: 0 | H6: 0 | I6: 0 | J6: 0
B7: 2259 د ع | C7: 0 | D7: 0 | E7: 0 | F7: 0 | G7: 0 | H7: 0 | I7: 0 | J7: 0
B8: 2318 ف س | C8: 0 | D8: 0 | E8: 0 | F8: 0 | G8: 0 | H8: 0 | I8: 0 | J8: 0
B9: 2573 ع ص | C9: 0 | D9: 0 | E9: 0 | F9: 0 | G9: 0 | H9: 0 | I9: 0 | J9: 0
B10: 2593 ه س | C10: 0 | D10: 0 | E10: 0 | F10: 0 | G10: 0 | H10: 0 | I10: 0 | J10: 0
B11: 2613 ع ص | C11: 0 | D11: 0 | E11: 0 | F11: 0 | G11: 0 | H11: 0 | I11: 0 | J11: 0
B12: 2635 ج س | C12: 0 | D12: 0 | E12: 0 | F12: 0 | G12: 0 | H12: 0 | I12: 0 | J12: 0
B13: 2658 ف س | C13: 0 | D13: 0 | E13: 0 | F13: 0 | G13: 0 | H13: 0 | I13: 0 | J13: 0
B14: 2694 ج س | C14: 0 | D14: 0 | E14: 0 | F14: 0 | G14: 0 | H14: 0 | I14: 0 | J14: 0
B15: 2719 ب س | C15: 0 | D15: 0 | E15: 0 | F15: 0 | G15: 0 | H15: 0 | I15: 0 | J15: 0
B16: 2724 س ر | C16: 0 | D16: 0 | E16: 0 | F16: 0 | G16: 0 | H16: 0 | I16: 0 | J16: 0
B17: 2793 ب س | C17: 0 | D17: 0 | E17: 0 | F17: 0 | G17: 0 | H17: 0 | I17: 0 | J17: 0
B18: 3725 ه س | C18: 0 | D18: 0 | E18: 0 | F18: 0 | G18: 0 | H18: 0 | I18: 0 | J18: 0
B19: 4157 ب س | C19: 0 | D19: 0 | E19: 0 | F19: 0 | G19: 0 | H19: 0 | I19: 0 | J19: 0
B20: 4172 ج س | C20: 0 | D20: 0 | E20: 0 | F20: 0 | G20: 0 | H20: 0 | I20: 0 | J20: 0
B21: 4178 ج س | C21: 0 | D21: 0 | E21: 0 | F21: 0 | G21: 0 | H21: 0 | I21: 0 | J21: 0
B22: 5374 س ي ر | C22: 0 | D22: 0 | E22: 0 | F22: 0 | G22: 0 | H22: 0 | I22: 0 | J22: 0
B23: 5963 ج س | C23: 0 | D23: 0 | E23: 0 | F23: 0 | G23: 0 | H23: 0 | I23: 0 | J23: 0
B24: 6159 ق ن | C24: 0 | D24: 0 | E24: 0 | F24: 0 | G24: 0 | H24: 0 | I24: 0 | J24: 0
B25: 6192 ط ص | C25: 0 | D25: 0 | E25: 0 | F25: 0 | G25: 0 | H25: 0 | I25: 0 | J25: 0
B26: 6193 ق ر | C26: 0 | D26: 0 | E26: 0 | F26: 0 | G26: 0 | H26: 0 | I26: 0 | J26: 0
B27: 6235 ط ص | C27: 0 | D27: 0 | E27: 0 | F27: 0 | G27: 0 | H27: 0 | I27: 0 | J27: 0
B28: 6689 ن ل | C28: 0 | D28: 0 | E28: 0 | F28: 0 | G28: 0 | H28: 0 | I28: 0 | J28: 0
B29: 6723 ط ص | C29: 0 | D29: 0 | E29: 0 | F29: 0 | G29: 0 | H29: 0 | I29: 0 | J29: 0
B30: 6783 ط س | C30: 0 | D30: 0 | E30: 0 | F30: 0 | G30: 0 | H30: 0 | I30: 0 | J30: 0
B31: 7429 ط ج | C31: 0 | D31: 0 | E31: 0 | F31: 0 | G31: 0 | H31: 0 | I31: 0 | J31: 0
B32: 7862 ط ص | C32: 0 | D32: 0 | E32: 0 | F32: 0 | G32: 0 | H32: 0 | I32: 0 | J32: 0
B33: 8457 ه س | C33: 0 | D33: 0 | E33: 0 | F33: 0 | G33: 0 | H33: 0 | I33: 0 | J33: 0
B34: 8492 ف س | C34: 0 | D34: 0 | E34: 0 | F34: 0 | G34: 0 | H34: 0 | I34: 0 | J34: 0
B35: 8734 ط ج | C35: 0 | D35: 0 | E35: 0 | F35: 0 | G35: 0 | H35: 0 | I35: 0 | J35: 0
B36: 9361 ب س | C36: 0 | D36: 0 | E36: 0 | F36: 0 | G36: 0 | H36: 0 | I36: 0 | J36: 0
B37: 9364 ق ر | C37: 0 | D37: 0 | E37: 0 | F37: 0 | G37: 0 | H37: 0 | I37: 0 | J37: 0
B38: 9417 ن س | C38: 0 | D38: 0 | E38: 0 | F38: 0 | G38: 0 | H38: 0 | I38: 0 | J38: 0
B39: 9529 ا د | C39: 0 | D39: 0 | E39: 0 | F39: 0 | G39: 0 | H39: 0 | I39: 0 | J39: 0
B40: 9678 ب س | C40: 0 | D40: 0 | E40: 0 | F40: 0 | G40: 0 | H40: 0 | I40: 0 | J40: 0
C42: 0 | D42: 0 | E42: 0 | F42: 0 | G42: 0 | H42: 0 | I42: 0 | J42: 0

Sheet Jul
C2: Fuel | D2: Oils | E2: Spare Parts | F2: Maintenance | G2: Communication | H2: Insurance | I2: Stamp Exp | J2: Total
B3: 1246 ه ج | C3: 0 | D3: 0 | E3: 0 | F3: 0 | G3: 0 | H3: 0 | I3: 0 | J3: 0
B4: 1526 ب س | C4: 0 | D4: 0 | E4: 0 | F4: 0 | G4: 0 | H4: 0 | I4: 0 | J4: 0
B5: 1794 ه س | C5: 0 | D5: 0 | E5: 0 | F5: 0 | G5: 0 | H5: 0 | I5: 0 | J5: 0
B6: 1937 ه س | C6: 0 | D6: 0 | E6: 0 | F6: 0 | G6: 0 | H6: 0 | I6: 0 | J6: 0
B7: 2259 د ع | C7: 0 | D7: 0 | E7: 0 | F7: 0 | G7: 0 | H7: 0 | I7: 0 | J7: 0
B8: 2318 ف س | C8: 0 | D8: 0 | E8: 0 | F8: 0 | G8: 0 | H8: 0 | I8: 0 | J8: 0
B9: 2573 ع ص | C9: 0 | D9: 0 | E9: 0 | F9: 0 | G9: 0 | H9: 0 | I9: 0 | J9: 0
B10: 2593 ه س | C10: 0 | D10: 0 | E10: 0 | F10: 0 | G10: 0 | H10: 0 | I10: 0 | J10: 0
B11: 2613 ع ص | C11: 0 | D11: 0 | E11: 0 | F11: 0 | G11: 0 | H11: 0 | I11: 0 | J11: 0
B12: 2635 ج س | C12: 0 | D12: 0 | E12: 0 | F12: 0 | G12: 0 | H12: 0 | I12: 0 | J12: 0
B13: 2658 ف س | C13: 0 | D13: 0 | E13: 0 | F13: 0 | G13: 0 | H13: 0 | I13: 0 | J13: 0
B14: 2694 ج س | C14: 0 | D14: 0 | E14: 0 | F14: 0 | G14: 0 | H14: 0 | I14: 0 | J14: 0
B15: 2719 ب س | C15: 0 | D15: 0 | E15: 0 | F15: 0 | G15: 0 | H15: 0 | I15: 0 | J15: 0
B16: 2724 س ر | C16: 0 | D16: 0 | E16: 0 | F16: 0 | G16: 0 | H16: 0 | I16: 0 | J16: 0
B17: 2793 ب س | C17: 0 | D17: 0 | E17: 0 | F17: 0 | G17: 0 | H17: 0 | I17: 0 | J17: 0
B18: 3725 ه س | C18: 0 | D18: 0 | E18: 0 | F18: 0 | G18: 0 | H18: 0 | I18: 0 | J18: 0
B19: 4157 ب س | C19: 0 | D19: 0 | E19: 0 | F19: 0 | G19: 0 | H19: 0 | I19: 0 | J19: 0
B20: 4172 ج س | C20: 0 | D20: 0 | E20: 0 | F20: 0 | G20: 0 | H20: 0 | I20: 0 | J20: 0
B21: 4178 ج س | C21: 0 | D21: 0 | E21: 0 | F21: 0 | G21: 0 | H21: 0 | I21: 0 | J21: 0
B22: 5374 س ي ر | C22: 0 | D22: 0 | E22: 0 | F22: 0 | G22: 0 | H22: 0 | I22: 0 | J22: 0
B23: 5963 ج س | C23: 0 | D23: 0 | E23: 0 | F23: 0 | G23: 0 | H23: 0 | I23: 0 | J23: 0
B24: 6159 ق ن | C24: 0 | D24: 0 | E24: 0 | F24: 0 | G24: 0 | H24: 0 | I24: 0 | J24: 0
B25: 6192 ط ص | C25: 0 | D25: 0 | E25: 0 | F25: 0 | G25: 0 | H25: 0 | I25: 0 | J25: 0
B26: 6193 ق ر | C26: 0 | D26: 0 | E26: 0 | F26: 0 | G26: 0 | H26: 0 | I26: 0 | J26: 0
B27: 6235 ط ص | C27: 0 | D27: 0 | E27: 0 | F27: 0 | G27: 0 | H27: 0 | I27: 0 | J27: 0
B28: 6689 ن ل | C28: 0 | D28: 0 | E28: 0 | F28: 0 | G28: 0 | H28: 0 | I28: 0 | J28: 0
B29: 6723 ط ص | C29: 0 | D29: 0 | E29: 0 | F29: 0 | G29: 0 | H29: 0 | I29: 0 | J29: 0
B30: 6783 ط س | C30: 0 | D30: 0 | E30: 0 | F30: 0 | G30: 0 | H30: 0 | I30: 0 | J30: 0
B31: 7429 ط ج | C31: 0 | D31: 0 | E31: 0 | F31: 0 | G31: 0 | H31: 0 | I31: 0 | J31: 0
B32: 7862 ط ص | C32: 0 | D32: 0 | E32: 0 | F32: 0 | G32: 0 | H32: 0 | I32: 0 | J32: 0
B33: 8457 ه س | C33: 0 | D33: 0 | E33: 0 | F33: 0 | G33: 0 | H33: 0 | I33: 0 | J33: 0
B34: 8492 ف س | C34: 0 | D34: 0 | E34: 0 | F34: 0 | G34: 0 | H34: 0 | I34: 0 | J34: 0
B35: 8734 ط ج | C35: 0 | D35: 0 | E35: 0 | F35: 0 | G35: 0 | H35: 0 | I35: 0 | J35: 0
B36: 9361 ب س | C36: 0 | D36: 0 | E36: 0 | F36: 0 | G36: 0 | H36: 0 | I36: 0 | J36: 0
B37: 9364 ق ر | C37: 0 | D37: 0 | E37: 0 | F37: 0 | G37: 0 | H37: 0 | I37: 0 | J37: 0
B38: 9417 ن س | C38: 0 | D38: 0 | E38: 0 | F38: 0 | G38: 0 | H38: 0 | I38: 0 | J38: 0
B39: 9529 ا د | C39: 0 | D39: 0 | E39: 0 | F39: 0 | G39: 0 | H39: 0 | I39: 0 | J39: 0
B40: 9678 ب س | C40: 0 | D40: 0 | E40: 0 | F40: 0 | G40: 0 | H40: 0 | I40: 0 | J40: 0
C42: 0 | D42: 0 | E42: 0 | F42: 0 | G42: 0 | H42: 0 | I42: 0 | J42: 0

Sheet Aug
C2: Fuel | D2: Oils | E2: Spare Parts | F2: Maintenance | G2: Communication | H2: Insurance | I2: Stamp Exp | J2: Total
B3: 1246 ه ج | C3: 0 | D3: 0 | E3: 0 | F3: 0 | G3: 0 | H3: 0 | I3: 0 | J3: 0
B4: 1526 ب س | C4: 0 | D4: 0 | E4: 0 | F4: 0 | G4: 0 | H4: 0 | I4: 0 | J4: 0
B5: 1794 ه س | C5: 0 | D5: 0 | E5: 0 | F5: 0 | G5: 0 | H5: 0 | I5: 0 | J5: 0
B6: 1937 ه س | C6: 0 | D6: 0 | E6: 0 | F6: 0 | G6: 0 | H6: 0 | I6: 0 | J6: 0
B7: 2259 د ع | C7: 0 | D7: 0 | E7: 0 | F7: 0 | G7: 0 | H7: 0 | I7: 0 | J7: 0
B8: 2318 ف س | C8: 0 | D8: 0 | E8: 0 | F8: 0 | G8: 0 | H8: 0 | I8: 0 | J8: 0
B9: 2573 ع ص | C9: 0 | D9: 0 | E9: 0 | F9: 0 | G9: 0 | H9: 0 | I9: 0 | J9: 0
B10: 2593 ه س | C10: 0 | D10: 0 | E10: 0 | F10: 0 | G10: 0 | H10: 0 | I10: 0 | J10: 0
B11: 2613 ع ص | C11: 0 | D11: 0 | E11: 0 | F11: 0 | G11: 0 | H11: 0 | I11: 0 | J11: 0
B12: 2635 ج س | C12: 0 | D12: 0 | E12: 0 | F12: 0 | G12: 0 | H12: 0 | I12: 0 | J12: 0
B13: 2658 ف س | C13: 0 | D13: 0 | E13: 0 | F13: 0 | G13: 0 | H13: 0 | I13: 0 | J13: 0
B14: 2694 ج س | C14: 0 | D14: 0 | E14: 0 | F14: 0 | G14: 0 | H14: 0 | I14: 0 | J14: 0
B15: 2719 ب س | C15: 0 | D15: 0 | E15: 0 | F15: 0 | G15: 0 | H15: 0 | I15: 0 | J15: 0
B16: 2724 س ر | C16: 0 | D16: 0 | E16: 0 | F16: 0 | G16: 0 | H16: 0 | I16: 0 | J16: 0
B17: 2793 ب س | C17: 0 | D17: 0 | E17: 0 | F17: 0 | G17: 0 | H17: 0 | I17: 0 | J17: 0
B18: 3725 ه س | C18: 0 | D18: 0 | E18: 0 | F18: 0 | G18: 0 | H18: 0 | I18: 0 | J18: 0
B19: 4157 ب س | C19: 0 | D19: 0 | E19: 0 | F19: 0 | G19: 0 | H19: 0 | I19: 0 | J19: 0
B20: 4172 ج س | C20: 0 | D20: 0 | E20: 0 | F20: 0 | G20: 0 | H20: 0 | I20: 0 | J20: 0
B21: 4178 ج س | C21: 0 | D21: 0 | E21: 0 | F21: 0 | G21: 0 | H21: 0 | I21: 0 | J21: 0
B22: 5374 س ي ر | C22: 0 | D22: 0 | E22: 0 | F22: 0 | G22: 0 | H22: 0 | I22: 0 | J22: 0
B23: 5963 ج س | C23: 0 | D23: 0 | E23: 0 | F23: 0 | G23: 0 | H23: 0 | I23: 0 | J23: 0
B24: 6159 ق ن | C24: 0 | D24: 0 | E24: 0 | F24: 0 | G24: 0 | H24: 0 | I24: 0 | J24: 0
B25: 6192 ط ص | C25: 0 | D25: 0 | E25: 0 | F25: 0 | G25: 0 | H25: 0 | I25: 0 | J25: 0
B26: 6193 ق ر | C26: 0 | D26: 0 | E26: 0 | F26: 0 | G26: 0 | H26: 0 | I26: 0 | J26: 0
B27: 6235 ط ص | C27: 0 | D27: 0 | E27: 0 | F27: 0 | G27: 0 | H27: 0 | I27: 0 | J27: 0
B28: 6689 ن ل | C28: 0 | D28: 0 | E28: 0 | F28: 0 | G28: 0 | H28: 0 | I28: 0 | J28: 0
B29: 6723 ط ص | C29: 0 | D29: 0 | E29: 0 | F29: 0 | G29: 0 | H29: 0 | I29: 0 | J29: 0
B30: 6783 ط س | C30: 0 | D30: 0 | E30: 0 | F30: 0 | G30: 0 | H30: 0 | I30: 0 | J30: 0
B31: 7429 ط ج | C31: 0 | D31: 0 | E31: 0 | F31: 0 | G31: 0 | H31: 0 | I31: 0 | J31: 0
B32: 7862 ط ص | C32: 0 | D32: 0 | E32: 0 | F32: 0 | G32: 0 | H32: 0 | I32: 0 | J32: 0
B33: 8457 ه س | C33: 0 | D33: 0 | E33: 0 | F33: 0 | G33: 0 | H33: 0 | I33: 0 | J33: 0
B34: 8492 ف س | C34: 0 | D34: 0 | E34: 0 | F34: 0 | G34: 0 | H34: 0 | I34: 0 | J34: 0
B35: 8734 ط ج | C35: 0 | D35: 0 | E35: 0 | F35: 0 | G35: 0 | H35: 0 | I35: 0 | J35: 0
B36: 9361 ب س | C36: 0 | D36: 0 | E36: 0 | F36: 0 | G36: 0 | H36: 0 | I36: 0 | J36: 0
B37: 9364 ق ر | C37: 0 | D37: 0 | E37: 0 | F37: 0 | G37: 0 | H37: 0 | I37: 0 | J37: 0
B38: 9417 ن س | C38: 0 | D38: 0 | E38: 0 | F38: 0 | G38: 0 | H38: 0 | I38: 0 | J38: 0
B39: 9529 ا د | C39: 0 | D39: 0 | E39: 0 | F39: 0 | G39: 0 | H39: 0 | I39: 0 | J39: 0
B40: 9678 ب س | C40: 0 | D40: 0 | E40: 0 | F40: 0 | G40: 0 | H40: 0 | I40: 0 | J40: 0
C42: 0 | D42: 0 | E42: 0 | F42: 0 | G42: 0 | H42: 0 | I42: 0 | J42: 0

Sheet Sep
C2: Fuel | D2: Oils | E2: Spare Parts | F2: Maintenance | G2: Communication | H2: Insurance | I2: Stamp Exp | J2: Total
B3: 1246 ه ج | C3: 0 | D3: 0 | E3: 0 | F3: 0 | G3: 0 | H3: 0 | I3: 0 | J3: 0
B4: 1526 ب س | C4: 0 | D4: 0 | E4: 0 | F4: 0 | G4: 0 | H4: 0 | I4: 0 | J4: 0
B5: 1794 ه س | C5: 0 | D5: 0 | E5: 0 | F5: 0 | G5: 0 | H5: 0 | I5: 0 | J5: 0
B6: 1937 ه س | C6: 0 | D6: 0 | E6: 0 | F6: 0 | G6: 0 | H6: 0 | I6: 0 | J6: 0
B7: 2259 د ع | C7: 0 | D7: 0 | E7: 0 | F7: 0 | G7: 0 | H7: 0 | I7: 0 | J7: 0
B8: 2318 ف س | C8: 0 | D8: 0 | E8: 0 | F8: 0 | G8: 0 | H8: 0 | I8: 0 | J8: 0
B9: 2573 ع ص | C9: 0 | D9: 0 | E9: 0 | F9: 0 | G9: 0 | H9: 0 | I9: 0 | J9: 0
B10: 2593 ه س | C10: 0 | D10: 0 | E10: 0 | F10: 0 | G10: 0 | H10: 0 | I10: 0 | J10: 0
B11: 2613 ع ص | C11: 0 | D11: 0 | E11: 0 | F11: 0 | G11: 0 | H11: 0 | I11: 0 | J11: 0
B12: 2635 ج س | C12: 0 | D12: 0 | E12: 0 | F12: 0 | G12: 0 | H12: 0 | I12: 0 | J12: 0
B13: 2658 ف س | C13: 0 | D13: 0 | E13: 0 | F13: 0 | G13: 0 | H13: 0 | I13: 0 | J13: 0
B14: 2694 ج س | C14: 0 | D14: 0 | E14: 0 | F14: 0 | G14: 0 | H14: 0 | I14: 0 | J14: 0
B15: 2719 ب س | C15: 0 | D15: 0 | E15: 0 | F15: 0 | G15: 0 | H15: 0 | I15: 0 | J15: 0
B16: 2724 س ر | C16: 0 | D16: 0 | E16: 0 | F16: 0 | G16: 0 | H16: 0 | I16: 0 | J16: 0
B17: 2793 ب س | C17: 0 | D17: 0 | E17: 0 | F17: 0 | G17: 0 | H17: 0 | I17: 0 | J17: 0
B18: 3725 ه س | C18: 0 | D18: 0 | E18: 0 | F18: 0 | G18: 0 | H18: 0 | I18: 0 | J18: 0
B19: 4157 ب س | C19: 0 | D19: 0 | E19: 0 | F19: 0 | G19: 0 | H19: 0 | I19: 0 | J19: 0
B20: 4172 ج س | C20: 0 | D20: 0 | E20: 0 | F20: 0 | G20: 0 | H20: 0 | I20: 0 | J20: 0
B21: 4178 ج س | C21: 0 | D21: 0 | E21: 0 | F21: 0 | G21: 0 | H21: 0 | I21: 0 | J21: 0
B22: 5374 س ي ر | C22: 0 | D22: 0 | E22: 0 | F22: 0 | G22: 0 | H22: 0 | I22: 0 | J22: 0
B23: 5963 ج س | C23: 0 | D23: 0 | E23: 0 | F23: 0 | G23: 0 | H23: 0 | I23: 0 | J23: 0
B24: 6159 ق ن | C24: 0 | D24: 0 | E24: 0 | F24: 0 | G24: 0 | H24: 0 | I24: 0 | J24: 0
B25: 6192 ط ص | C25: 0 | D25: 0 | E25: 0 | F25: 0 | G25: 0 | H25: 0 | I25: 0 | J25: 0
B26: 6193 ق ر | C26: 0 | D26: 0 | E26: 0 | F26: 0 | G26: 0 | H26: 0 | I26: 0 | J26: 0
B27: 6235 ط ص | C27: 0 | D27: 0 | E27: 0 | F27: 0 | G27: 0 | H27: 0 | I27: 0 | J27: 0
B28: 6689 ن ل | C28: 0 | D28: 0 | E28: 0 | F28: 0 | G28: 0 | H28: 0 | I28: 0 | J28: 0
B29: 6723 ط ص | C29: 0 | D29: 0 | E29: 0 | F29: 0 | G29: 0 | H29: 0 | I29: 0 | J29: 0
B30: 6783 ط س | C30: 0 | D30: 0 | E30: 0 | F30: 0 | G30: 0 | H30: 0 | I30: 0 | J30: 0
B31: 7429 ط ج | C31: 0 | D31: 0 | E31: 0 | F31: 0 | G31: 0 | H31: 0 | I31: 0 | J31: 0
B32: 7862 ط ص | C32: 0 | D32: 0 | E32: 0 | F32: 0 | G32: 0 | H32: 0 | I32: 0 | J32: 0
B33: 8457 ه س | C33: 0 | D33: 0 | E33: 0 | F33: 0 | G33: 0 | H33: 0 | I33: 0 | J33: 0
B34: 8492 ف س | C34: 0 | D34: 0 | E34: 0 | F34: 0 | G34: 0 | H34: 0 | I34: 0 | J34: 0
B35: 8734 ط ج | C35: 0 | D35: 0 | E35: 0 | F35: 0 | G35: 0 | H35: 0 | I35: 0 | J35: 0
B36: 9361 ب س | C36: 0 | D36: 0 | E36: 0 | F36: 0 | G36: 0 | H36: 0 | I36: 0 | J36: 0
B37: 9364 ق ر | C37: 0 | D37: 0 | E37: 0 | F37: 0 | G37: 0 | H37: 0 | I37: 0 | J37: 0
B38: 9417 ن س | C38: 0 | D38: 0 | E38: 0 | F38: 0 | G38: 0 | H38: 0 | I38: 0 | J38: 0
B39: 9529 ا د | C39: 0 | D39: 0 | E39: 0 | F39: 0 | G39: 0 | H39: 0 | I39: 0 | J39: 0
B40: 9678 ب س | C40: 0 | D40: 0 | E40: 0 | F40: 0 | G40: 0 | H40: 0 | I40: 0 | J40: 0
C42: 0 | D42: 0 | E42: 0 | F42: 0 | G42: 0 | H42: 0 | I42: 0 | J42: 0

Sheet Oct
C2: Fuel | D2: Oils | E2: Spare Parts | F2: Maintenance | G2: Communication | H2: Insurance | I2: Stamp Exp | J2: Total
B3: 1246 ه ج | C3: 0 | D3: 0 | E3: 0 | F3: 0 | G3: 0 | H3: 0 | I3: 0 | J3: 0
B4: 1526 ب س | C4: 0 | D4: 0 | E4: 0 | F4: 0 | G4: 0 | H4: 0 | I4: 0 | J4: 0
B5: 1794 ه س | C5: 0 | D5: 0 | E5: 0 | F5: 0 | G5: 0 | H5: 0 | I5: 0 | J5: 0
B6: 1937 ه س | C6: 0 | D6: 0 | E6: 0 | F6: 0 | G6: 0 | H6: 0 | I6: 0 | J6: 0
B7: 2259 د ع | C7: 0 | D7: 0 | E7: 0 | F7: 0 | G7: 0 | H7: 0 | I7: 0 | J7: 0
B8: 2318 ف س | C8: 0 | D8: 0 | E8: 0 | F8: 0 | G8: 0 | H8: 0 | I8: 0 | J8: 0
B9: 2573 ع ص | C9: 0 | D9: 0 | E9: 0 | F9: 0 | G9: 0 | H9: 0 | I9: 0 | J9: 0
B10: 2593 ه س | C10: 0 | D10: 0 | E10: 0 | F10: 0 | G10: 0 | H10: 0 | I10: 0 | J10: 0
B11: 2613 ع ص | C11: 0 | D11: 0 | E11: 0 | F11: 0 | G11: 0 | H11: 0 | I11: 0 | J11: 0
B12: 2635 ج س | C12: 0 | D12: 0 | E12: 0 | F12: 0 | G12: 0 | H12: 0 | I12: 0 | J12: 0
B13: 2658 ف س | C13: 0 | D13: 0 | E13: 0 | F13: 0 | G13: 0 | H13: 0 | I13: 0 | J13: 0
B14: 2694 ج س | C14: 0 | D14: 0 | E14: 0 | F14: 0 | G14: 0 | H14: 0 | I14: 0 | J14: 0
B15: 2719 ب س | C15: 0 | D15: 0 | E15: 0 | F15: 0 | G15: 0 | H15: 0 | I15: 0 | J15: 0
B16: 2724 س ر | C16: 0 | D16: 0 | E16: 0 | F16: 0 | G16: 0 | H16: 0 | I16: 0 | J16: 0
B17: 2793 ب س | C17: 0 | D17: 0 | E17: 0 | F17: 0 | G17: 0 | H17: 0 | I17: 0 | J17: 0
B18: 3725 ه س | C18: 0 | D18: 0 | E18: 0 | F18: 0 | G18: 0 | H18: 0 | I18: 0 | J18: 0
B19: 4157 ب س | C19: 0 | D19: 0 | E19: 0 | F19: 0 | G19: 0 | H19: 0 | I19: 0 | J19: 0
B20: 4172 ج س | C20: 0 | D20: 0 | E20: 0 | F20: 0 | G20: 0 | H20: 0 | I20: 0 | J20: 0
B21: 4178 ج س | C21: 0 | D21: 0 | E21: 0 | F21: 0 | G21: 0 | H21: 0 | I21: 0 | J21: 0
B22: 5374 س ي ر | C22: 0 | D22: 0 | E22: 0 | F22: 0 | G22: 0 | H22: 0 | I22: 0 | J22: 0
B23: 5963 ج س | C23: 0 | D23: 0 | E23: 0 | F23: 0 | G23: 0 | H23: 0 | I23: 0 | J23: 0
B24: 6159 ق ن | C24: 0 | D24: 0 | E24: 0 | F24: 0 | G24: 0 | H24: 0 | I24: 0 | J24: 0
B25: 6192 ط ص | C25: 0 | D25: 0 | E25: 0 | F25: 0 | G25: 0 | H25: 0 | I25: 0 | J25: 0
B26: 6193 ق ر | C26: 0 | D26: 0 | E26: 0 | F26: 0 | G26: 0 | H26: 0 | I26: 0 | J26: 0
B27: 6235 ط ص | C27: 0 | D27: 0 | E27: 0 | F27: 0 | G27: 0 | H27: 0 | I27: 0 | J27: 0
B28: 6689 ن ل | C28: 0 | D28: 0 | E28: 0 | F28: 0 | G28: 0 | H28: 0 | I28: 0 | J28: 0
B29: 6723 ط ص | C29: 0 | D29: 0 | E29: 0 | F29: 0 | G29: 0 | H29: 0 | I29: 0 | J29: 0
B30: 6783 ط س | C30: 0 | D30: 0 | E30: 0 | F30: 0 | G30: 0 | H30: 0 | I30: 0 | J30: 0
B31: 7429 ط ج | C31: 0 | D31: 0 | E31: 0 | F31: 0 | G31: 0 | H31: 0 | I31: 0 | J31: 0
B32: 7862 ط ص | C32: 0 | D32: 0 | E32: 0 | F32: 0 | G32: 0 | H32: 0 | I32: 0 | J32: 0
B33: 8457 ه س | C33: 0 | D33: 0 | E33: 0 | F33: 0 | G33: 0 | H33: 0 | I33: 0 | J33: 0
B34: 8492 ف س | C34: 0 | D34: 0 | E34: 0 | F34: 0 | G34: 0 | H34: 0 | I34: 0 | J34: 0
B35: 8734 ط ج | C35: 0 | D35: 0 | E35: 0 | F35: 0 | G35: 0 | H35: 0 | I35: 0 | J35: 0
B36: 9361 ب س | C36: 0 | D36: 0 | E36: 0 | F36: 0 | G36: 0 | H36: 0 | I36: 0 | J36: 0
B37: 9364 ق ر | C37: 0 | D37: 0 | E37: 0 | F37: 0 | G37: 0 | H37: 0 | I37: 0 | J37: 0
B38: 9417 ن س | C38: 0 | D38: 0 | E38: 0 | F38: 0 | G38: 0 | H38: 0 | I38: 0 | J38: 0
B39: 9529 ا د | C39: 0 | D39: 0 | E39: 0 | F39: 0 | G39: 0 | H39: 0 | I39: 0 | J39: 0
B40: 9678 ب س | C40: 0 | D40: 0 | E40: 0 | F40: 0 | G40: 0 | H40: 0 | I40: 0 | J40: 0
C42: 0 | D42: 0 | E42: 0 | F42: 0 | G42: 0 | H42: 0 | I42: 0 | J42: 0

Sheet Nov
C2: Fuel | D2: Oils | E2: Spare Parts | F2: Maintenance | G2: Communication | H2: Insurance | I2: Stamp Exp | J2: Total
B3: 1246 ه ج | C3: 0 | D3: 0 | E3: 0 | F3: 0 | G3: 0 | H3: 0 | I3: 0 | J3: 0
B4: 1526 ب س | C4: 0 | D4: 0 | E4: 0 | F4: 0 | G4: 0 | H4: 0 | I4: 0 | J4: 0
B5: 1794 ه س | C5: 0 | D5: 0 | E5: 0 | F5: 0 | G5: 0 | H5: 0 | I5: 0 | J5: 0
B6: 1937 ه س | C6: 0 | D6: 0 | E6: 0 | F6: 0 | G6: 0 | H6: 0 | I6: 0 | J6: 0
B7: 2259 د ع | C7: 0 | D7: 0 | E7: 0 | F7: 0 | G7: 0 | H7: 0 | I7: 0 | J7: 0
B8: 2318 ف س | C8: 0 | D8: 0 | E8: 0 | F8: 0 | G8: 0 | H8: 0 | I8: 0 | J8: 0
B9: 2573 ع ص | C9: 0 | D9: 0 | E9: 0 | F9: 0 | G9: 0 | H9: 0 | I9: 0 | J9: 0
B10: 2593 ه س | C10: 0 | D10: 0 | E10: 0 | F10: 0 | G10: 0 | H10: 0 | I10: 0 | J10: 0
B11: 2613 ع ص | C11: 0 | D11: 0 | E11: 0 | F11: 0 | G11: 0 | H11: 0 | I11: 0 | J11: 0
B12: 2635 ج س | C12: 0 | D12: 0 | E12: 0 | F12: 0 | G12: 0 | H12: 0 | I12: 0 | J12: 0
B13: 2658 ف س | C13: 0 | D13: 0 | E13: 0 | F13: 0 | G13: 0 | H13: 0 | I13: 0 | J13: 0
B14: 2694 ج س | C14: 0 | D14: 0 | E14: 0 | F14: 0 | G14: 0 | H14: 0 | I14: 0 | J14: 0
B15: 2719 ب س | C15: 0 | D15: 0 | E15: 0 | F15: 0 | G15: 0 | H15: 0 | I15: 0 | J15: 0
B16: 2724 س ر | C16: 0 | D16: 0 | E16: 0 | F16: 0 | G16: 0 | H16: 0 | I16: 0 | J16: 0
B17: 2793 ب س | C17: 0 | D17: 0 | E17: 0 | F17: 0 | G17: 0 | H17: 0 | I17: 0 | J17: 0
B18: 3725 ه س | C18: 0 | D18: 0 | E18: 0 | F18: 0 | G18: 0 | H18: 0 | I18: 0 | J18: 0
B19: 4157 ب س | C19: 0 | D19: 0 | E19: 0 | F19: 0 | G19: 0 | H19: 0 | I19: 0 | J19: 0
B20: 4172 ج س | C20: 0 | D20: 0 | E20: 0 | F20: 0 | G20: 0 | H20: 0 | I20: 0 | J20: 0
B21: 4178 ج س | C21: 0 | D21: 0 | E21: 0 | F21: 0 | G21: 0 | H21: 0 | I21: 0 | J21: 0
B22: 5374 س ي ر | C22: 0 | D22: 0 | E22: 0 | F22: 0 | G22: 0 | H22: 0 | I22: 0 | J22: 0
B23: 5963 ج س | C23: 0 | D23: 0 | E23: 0 | F23: 0 | G23: 0 | H23: 0 | I23: 0 | J23: 0
B24: 6159 ق ن | C24: 0 | D24: 0 | E24: 0 | F24: 0 | G24: 0 | H24: 0 | I24: 0 | J24: 0
B25: 6192 ط ص | C25: 0 | D25: 0 | E25: 0 | F25: 0 | G25: 0 | H25: 0 | I25: 0 | J25: 0
B26: 6193 ق ر | C26: 0 | D26: 0 | E26: 0 | F26: 0 | G26: 0 | H26: 0 | I26: 0 | J26: 0
B27: 6235 ط ص | C27: 0 | D27: 0 | E27: 0 | F27: 0 | G27: 0 | H27: 0 | I27: 0 | J27: 0
B28: 6689 ن ل | C28: 0 | D28: 0 | E28: 0 | F28: 0 | G28: 0 | H28: 0 | I28: 0 | J28: 0
B29: 6723 ط ص | C29: 0 | D29: 0 | E29: 0 | F29: 0 | G29: 0 | H29: 0 | I29: 0 | J29: 0
B30: 6783 ط س | C30: 0 | D30: 0 | E30: 0 | F30: 0 | G30: 0 | H30: 0 | I30: 0 | J30: 0
B31: 7429 ط ج | C31: 0 | D31: 0 | E31: 0 | F31: 0 | G31: 0 | H31: 0 | I31: 0 | J31: 0
B32: 7862 ط ص | C32: 0 | D32: 0 | E32: 0 | F32: 0 | G32: 0 | H32: 0 | I32: 0 | J32: 0
B33: 8457 ه س | C33: 0 | D33: 0 | E33: 0 | F33: 0 | G33: 0 | H33: 0 | I33: 0 | J33: 0
B34: 8492 ف س | C34: 0 | D34: 0 | E34: 0 | F34: 0 | G34: 0 | H34: 0 | I34: 0 | J34: 0
B35: 8734 ط ج | C35: 0 | D35: 0 | E35: 0 | F35: 0 | G35: 0 | H35: 0 | I35: 0 | J35: 0
B36: 9361 ب س | C36: 0 | D36: 0 | E36: 0 | F36: 0 | G36: 0 | H36: 0 | I36: 0 | J36: 0
B37: 9364 ق ر | C37: 0 | D37: 0 | E37: 0 | F37: 0 | G37: 0 | H37: 0 | I37: 0 | J37: 0
B38: 9417 ن س | C38: 0 | D38: 0 | E38: 0 | F38: 0 | G38: 0 | H38: 0 | I38: 0 | J38: 0
B39: 9529 ا د | C39: 0 | D39: 0 | E39: 0 | F39: 0 | G39: 0 | H39: 0 | I39: 0 | J39: 0
B40: 9678 ب س | C40: 0 | D40: 0 | E40: 0 | F40: 0 | G40: 0 | H40: 0 | I40: 0 | J40: 0
C42: 0 | D42: 0 | E42: 0 | F42: 0 | G42: 0 | H42: 0 | I42: 0 | J42: 0

Sheet Dec
C2: Fuel | D2: Oils | E2: Spare Parts | F2: Maintenance | G2: Communication | H2: Insurance | I2: Stamp Exp | J2: Total
B3: 1246 ه ج | C3: 0 | D3: 0 | E3: 0 | F3: 0 | G3: 0 | H3: 0 | I3: 0 | J3: 0
B4: 1526 ب س | C4: 0 | D4: 0 | E4: 0 | F4: 0 | G4: 0 | H4: 0 | I4: 0 | J4: 0
B5: 1794 ه س | C5: 0 | D5: 0 | E5: 0 | F5: 0 | G5: 0 | H5: 0 | I5: 0 | J5: 0
B6: 1937 ه س | C6: 0 | D6: 0 | E6: 0 | F6: 0 | G6: 0 | H6: 0 | I6: 0 | J6: 0
B7: 2259 د ع | C7: 0 | D7: 0 | E7: 0 | F7: 0 | G7: 0 | H7: 0 | I7: 0 | J7: 0
B8: 2318 ف س | C8: 0 | D8: 0 | E8: 0 | F8: 0 | G8: 0 | H8: 0 | I8: 0 | J8: 0
B9: 2573 ع ص | C9: 0 | D9: 0 | E9: 0 | F9: 0 | G9: 0 | H9: 0 | I9: 0 | J9: 0
B10: 2593 ه س | C10: 0 | D10: 0 | E10: 0 | F10: 0 | G10: 0 | H10: 0 | I10: 0 | J10: 0
B11: 2613 ع ص | C11: 0 | D11: 0 | E11: 0 | F11: 0 | G11: 0 | H11: 0 | I11: 0 | J11: 0
B12: 2635 ج س | C12: 0 | D12: 0 | E12: 0 | F12: 0 | G12: 0 | H12: 0 | I12: 0 | J12: 0
B13: 2658 ف س | C13: 0 | D13: 0 | E13: 0 | F13: 0 | G13: 0 | H13: 0 | I13: 0 | J13: 0
B14: 2694 ج س | C14: 0 | D14: 0 | E14: 0 | F14: 0 | G14: 0 | H14: 0 | I14: 0 | J14: 0
B15: 2719 ب س | C15: 0 | D15: 0 | E15: 0 | F15: 0 | G15: 0 | H15: 0 | I15: 0 | J15: 0
B16: 2724 س ر | C16: 0 | D16: 0 | E16: 0 | F16: 0 | G16: 0 | H16: 0 | I16: 0 | J16: 0
B17: 2793 ب س | C17: 0 | D17: 0 | E17: 0 | F17: 0 | G17: 0 | H17: 0 | I17: 0 | J17: 0
B18: 3725 ه س | C18: 0 | D18: 0 | E18: 0 | F18: 0 | G18: 0 | H18: 0 | I18: 0 | J18: 0
B19: 4157 ب س | C19: 0 | D19: 0 | E19: 0 | F19: 0 | G19: 0 | H19: 0 | I19: 0 | J19: 0
B20: 4172 ج س | C20: 0 | D20: 0 | E20: 0 | F20: 0 | G20: 0 | H20: 0 | I20: 0 | J20: 0
B21: 4178 ج س | C21: 0 | D21: 0 | E21: 0 | F21: 0 | G21: 0 | H21: 0 | I21: 0 | J21: 0
B22: 5374 س ي ر | C22: 0 | D22: 0 | E22: 0 | F22: 0 | G22: 0 | H22: 0 | I22: 0 | J22: 0
B23: 5963 ج س | C23: 0 | D23: 0 | E23: 0 | F23: 0 | G23: 0 | H23: 0 | I23: 0 | J23: 0
B24: 6159 ق ن | C24: 0 | D24: 0 | E24: 0 | F24: 0 | G24: 0 | H24: 0 | I24: 0 | J24: 0
B25: 6192 ط ص | C25: 0 | D25: 0 | E25: 0 | F25: 0 | G25: 0 | H25: 0 | I25: 0 | J25: 0
B26: 6193 ق ر | C26: 0 | D26: 0 | E26: 0 | F26: 0 | G26: 0 | H26: 0 | I26: 0 | J26: 0
B27: 6235 ط ص | C27: 0 | D27: 0 | E27: 0 | F27: 0 | G27: 0 | H27: 0 | I27: 0 | J27: 0
B28: 6689 ن ل | C28: 0 | D28: 0 | E28: 0 | F28: 0 | G28: 0 | H28: 0 | I28: 0 | J28: 0
B29: 6723 ط ص | C29: 0 | D29: 0 | E29: 0 | F29: 0 | G29: 0 | H29: 0 | I29: 0 | J29: 0
B30: 6783 ط س | C30: 0 | D30: 0 | E30: 0 | F30: 0 | G30: 0 | H30: 0 | I30: 0 | J30: 0
B31: 7429 ط ج | C31: 0 | D31: 0 | E31: 0 | F31: 0 | G31: 0 | H31: 0 | I31: 0 | J31: 0
B32: 7862 ط ص | C32: 0 | D32: 0 | E32: 0 | F32: 0 | G32: 0 | H32: 0 | I32: 0 | J32: 0
B33: 8457 ه س | C33: 0 | D33: 0 | E33: 0 | F33: 0 | G33: 0 | H33: 0 | I33: 0 | J33: 0
B34: 8492 ف س | C34: 0 | D34: 0 | E34: 0 | F34: 0 | G34: 0 | H34: 0 | I34: 0 | J34: 0
B35: 8734 ط ج | C35: 0 | D35: 0 | E35: 0 | F35: 0 | G35: 0 | H35: 0 | I35: 0 | J35: 0
B36: 9361 ب س | C36: 0 | D36: 0 | E36: 0 | F36: 0 | G36: 0 | H36: 0 | I36: 0 | J36: 0
B37: 9364 ق ر | C37: 0 | D37: 0 | E37: 0 | F37: 0 | G37: 0 | H37: 0 | I37: 0 | J37: 0
B38: 9417 ن س | C38: 0 | D38: 0 | E38: 0 | F38: 0 | G38: 0 | H38: 0 | I38: 0 | J38: 0
B39: 9529 ا د | C39: 0 | D39: 0 | E39: 0 | F39: 0 | G39: 0 | H39: 0 | I39: 0 | J39: 0
B40: 9678 ب س | C40: 0 | D40: 0 | E40: 0 | F40: 0 | G40: 0 | H40: 0 | I40: 0 | J40: 0
C42: 0 | D42: 0 | E42: 0 | F42: 0 | G42: 0 | H42: 0 | I42: 0 | J42: 0

Sheet 1246 ه ج
A1: No Of Journal Entry | C1: Fuel | D1: Oils | E1: Spare Parts | F1: Maintenance | G1: Communication | H1: Insurance | I1: Stamp Exp | J1: Total
A2: January | C2: =+Jan!C3 -> 270 | D2: =+Jan!D3 -> 0 | E2: =+Jan!E3 -> 0 | F2: =+Jan!F3 -> 0 | G2: =+Jan!G3 -> 0 | H2: =+Jan!H3 -> 0 | I2: =+Jan!I3 -> 30 | J2: =SUM(C2:I2) -> 300
A3: February | C3: =+Feb!C3 -> 1445 | D3: =+Feb!D3 -> 0 | E3: =+Feb!E3 -> 0 | F3: =+Feb!F3 -> 0 | G3: =+Feb!G3 -> 0 | H3: =+Feb!H3 -> 1215 | I3: =+Feb!I3 -> 350 | J3: 3010
A4: March | C4: =+Mar!C3 -> 0 | D4: =+Mar!D3 -> 0 | E4: =+Mar!E3 -> 0 | F4: =+Mar!F3 -> 0 | G4: =+Mar!G3 -> 0 | H4: =+Mar!H3 -> 0 | I4: =+Mar!I3 -> 0 | J4: 0
A5: April | C5: =+Apr!C3 -> 0 | D5: =+Apr!D3 -> 0 | E5: =+Apr!E3 -> 0 | F5: =+Apr!F3 -> 0 | G5: =+Apr!G3 -> 0 | H5: =+Apr!H3 -> 0 | I5: =+Apr!I3 -> 0 | J5: 0
A6: May | C6: =+May!C3 -> 0 | D6: =+May!D3 -> 0 | E6: =+May!E3 -> 0 | F6: =+May!F3 -> 0 | G6: =+May!G3 -> 0 | H6: =+May!H3 -> 0 | I6: =+May!I3 -> 0 | J6: 0
A7: June | C7: =+Jun!C3 -> 0 | D7: =+Jun!D3 -> 0 | E7: =+Jun!E3 -> 0 | F7: =+Jun!F3 -> 0 | G7: =+Jun!G3 -> 0 | H7: =+Jun!H3 -> 0 | I7: =+Jun!I3 -> 0 | J7: 0
A8: July | C8: =+Jul!C3 -> 0 | D8: =+Jul!D3 -> 0 | E8: =+Jul!E3 -> 0 | F8: =+Jul!F3 -> 0 | G8: =+Jul!G3 -> 0 | H8: =+Jul!H3 -> 0 | I8: =+Jul!I3 -> 0 | J8: 0
A9: August | C9: =+Aug!C3 -> 0 | D9: =+Aug!D3 -> 0 | E9: =+Aug!E3 -> 0 | F9: =+Aug!F3 -> 0 | G9: =+Aug!G3 -> 0 | H9: =+Aug!H3 -> 0 | I9: =+Aug!I3 -> 0 | J9: 0
A10: September | C10: =+Sep!C3 -> 0 | D10: =+Sep!D3 -> 0 | E10: =+Sep!E3 -> 0 | F10: =+Sep!F3 -> 0 | G10: =+Sep!G3 -> 0 | H10: =+Sep!H3 -> 0 | I10: =+Sep!I3 -> 0 | J10: 0
A11: October | C11: =+Oct!C3 -> 0 | D11: =+Oct!D3 -> 0 | E11: =+Oct!E3 -> 0 | F11: =+Oct!F3 -> 0 | G11: =+Oct!G3 -> 0 | H11: =+Oct!H3 -> 0 | I11: =+Oct!I3 -> 0 | J11: 0
A12: November | C12: =+Nov!C3 -> 0 | D12: =+Nov!D3 -> 0 | E12: =+Nov!E3 -> 0 | F12: =+Nov!F3 -> 0 | G12: =+Nov!G3 -> 0 | H12: =+Nov!H3 -> 0 | I12: =+Nov!I3 -> 0 | J12: 0
A13: December | C13: =+Dec!C3 -> 0 | D13: =+Dec!D3 -> 0 | E13: =+Dec!E3 -> 0 | F13: =+Dec!F3 -> 0 | G13: =+Dec!G3 -> 0 | H13: =+Dec!H3 -> 0 | I13: =+Dec!I3 -> 0 | J13: 0
A14: Total | C14: =SUM(C2:C13) -> 1715 | D14: 0 | E14: 0 | F14: 0 | G14: 0 | H14: 1215 | I14: 380 | J14: 3310
A17: Fuel | C17: =+C14 -> 1715
A18: Oils | C18: =D14 -> 0
A19: Spare Parts | C19: =+E14 -> 0
A20: Maintenance | C20: =+F14 -> 0
A21: Communication | C21: =+G14 -> 0
A22: Insurance | C22: =+H14 -> 1215
A23: Stamp Exp | C23: =+I14 -> 380
A24: Total | C24: =+J14 -> 3310
D28: Issue No | E28: Code | F28: Item Name | G28: Q | H28: P | I28: Value
C29: Jan | D29: 90634 | E29: 02MFF0085 | F29: فلتر زيت شيفرولية فان N300 | G29: 1 | H29: 80 | I29: 80

Sheet 1526 ب س
A1: No Of Journal Entry | C1: Fuel | D1: Oils | E1: Spare Parts | F1: Maintenance | G1: Communication | H1: Insurance | I1: Stamp Exp | J1: Total
A2: January | C2: =+Jan!C4 -> 19415.925 | D2: =+Jan!D4 -> 0 | E2: =+Jan!E4 -> 18800 | F2: =+Jan!F4 -> 400 | G2: =+Jan!G4 -> 102.19 | H2: =+Jan!H4 -> 0 | I2: =+Jan!I4 -> 23220 | J2: =SUM(C2:I2) -> 61938.115
A3: February | C3: =+Feb!C4 -> 7891.9125 | D3: =+Feb!D4 -> 0 | E3: =+Feb!E4 -> 2313.130342 | F3: =+Feb!F4 -> 0 | G3: =+Feb!G4 -> 92.34 | H3: =+Feb!H4 -> 2526 | I3: =+Feb!I4 -> 580 | J3: 13403.38284
A4: March | C4: =+Mar!C4 -> 0 | D4: =+Mar!D4 -> 0 | E4: =+Mar!E4 -> 0 | F4: =+Mar!F4 -> 0 | G4: =+Mar!G4 -> 0 | H4: =+Mar!H4 -> 0 | I4: =+Mar!I4 -> 0 | J4: 0
A5: April | C5: =+Apr!C4 -> 0 | D5: =+Apr!D4 -> 0 | E5: =+Apr!E4 -> 0 | F5: =+Apr!F4 -> 0 | G5: =+Apr!G4 -> 0 | H5: =+Apr!H4 -> 0 | I5: =+Apr!I4 -> 0 | J5: 0
A6: May | C6: =+May!C4 -> 0 | D6: =+May!D4 -> 0 | E6: =+May!E4 -> 0 | F6: =+May!F4 -> 0 | G6: =+May!G4 -> 0 | H6: =+May!H4 -> 0 | I6: =+May!I4 -> 0 | J6: 0
A7: June | C7: =+Jun!C4 -> 0 | D7: =+Jun!D4 -> 0 | E7: =+Jun!E4 -> 0 | F7: =+Jun!F4 -> 0 | G7: =+Jun!G4 -> 0 | H7: =+Jun!H4 -> 0 | I7: =+Jun!I4 -> 0 | J7: 0
A8: July | C8: =+Jul!C4 -> 0 | D8: =+Jul!D4 -> 0 | E8: =+Jul!E4 -> 0 | F8: =+Jul!F4 -> 0 | G8: =+Jul!G4 -> 0 | H8: =+Jul!H4 -> 0 | I8: =+Jul!I4 -> 0 | J8: 0
A9: August | C9: =+Aug!C4 -> 0 | D9: =+Aug!D4 -> 0 | E9: =+Aug!E4 -> 0 | F9: =+Aug!F4 -> 0 | G9: =+Aug!G4 -> 0 | H9: =+Aug!H4 -> 0 | I9: =+Aug!I4 -> 0 | J9: 0
A10: September | C10: =+Sep!C4 -> 0 | D10: =+Sep!D4 -> 0 | E10: =+Sep!E4 -> 0 | F10: =+Sep!F4 -> 0 | G10: =+Sep!G4 -> 0 | H10: =+Sep!H4 -> 0 | I10: =+Sep!I4 -> 0 | J10: 0
A11: October | C11: =+Oct!C4 -> 0 | D11: =+Oct!D4 -> 0 | E11: =+Oct!E4 -> 0 | F11: =+Oct!F4 -> 0 | G11: =+Oct!G4 -> 0 | H11: =+Oct!H4 -> 0 | I11: =+Oct!I4 -> 0 | J11: 0
A12: November | C12: =+Nov!C4 -> 0 | D12: =+Nov!D4 -> 0 | E12: =+Nov!E4 -> 0 | F12: =+Nov!F4 -> 0 | G12: =+Nov!G4 -> 0 | H12: =+Nov!H4 -> 0 | I12: =+Nov!I4 -> 0 | J12: 0
A13: December | C13: =+Dec!C4 -> 0 | D13: =+Dec!D4 -> 0 | E13: =+Dec!E4 -> 0 | F13: =+Dec!F4 -> 0 | G13: =+Dec!G4 -> 0 | H13: =+Dec!H4 -> 0 | I13: =+Dec!I4 -> 0 | J13: 0
A14: Total | C14: =SUM(C2:C13) -> 27307.8375 | D14: 0 | E14: 21113.13034 | F14: 400 | G14: 194.53 | H14: 2526 | I14: 23800 | J14: 75341.49784
A17: Fuel | C17: =+C14 -> 27307.8375
A18: Oils | C18: =D14 -> 0
A19: Spare Parts | C19: =+E14 -> 21113.13034
A20: Maintenance | C20: =+F14 -> 400
A21: Communication | C21: =+G14 -> 194.53
A22: Insurance | C22: =+H14 -> 2526
A23: Stamp Exp | C23: =+I14 -> 23800
A24: Total | C24: =+J14 -> 75341.49784
D28: Issue No | E28: Code | F28: Item Name | G28: Q | H28: P | I28: Value
C30: Jan | D30: 24525 | E30: 02MFF0102 | F30: Fuel Filter Element Mercedes 5230000 -PU 999X-KX80D -FF 5405 -57230000-50013627- E500 KP 02فلتر حشو جاز مرسيدس | G30: 1 | H30: 165.1573003 | I30: 165.1573003
D31: 24525 | E31: 02MLF0158 | F31: oil Filter Mercedes 1502x - OX168 D-LF 3829 -1183130000 -5014064-H012140X- E500 HD 129 | G31: 1 | H31: 165.2966747 | I31: 165.2966747
D32: 24590 | E32: UM207 | F32: بكرة تيفلون | G32: 1 | H32: 9.452271754 | I32: 9.452271754
D33: 24525 | E33: 02LOE0004 | F33: زيت موتور Engine oil 7400-15W40 | G33: 38 | H33: 45.20052649 | I33: 1717.620007
D34: 24590 | E34: UM283 | F34: محبس بلية 1/2" ايطالى | G34: 1 | H34: 53.92125237 | I34: 53.92125237
D35: 24590 | E35: UM195 | F35: نبل حديد 1/2- | G35: 1 | H35: 5.462168847 | I35: 5.462168847

Sheet 1794 ه س
A1: No Of Journal Entry | C1: Fuel | D1: Oils | E1: Spare Parts | F1: Maintenance | G1: Communication | H1: Insurance | I1: Stamp Exp | J1: Total
A2: January | C2: =+Jan!C5 -> 0 | D2: =+Jan!D5 -> 0 | E2: =+Jan!E5 -> 200 | F2: =+Jan!F5 -> 0 | G2: =+Jan!G5 -> 24.85 | H2: =+Jan!H5 -> 0 | I2: =+Jan!I5 -> 0 | J2: =SUM(C2:I2) -> 224.85
A3: February | C3: =+Feb!C5 -> 0 | D3: =+Feb!D5 -> 0 | E3: =+Feb!E5 -> 0 | F3: =+Feb!F5 -> 0 | G3: =+Feb!G5 -> 15 | H3: =+Feb!H5 -> 0 | I3: =+Feb!I5 -> 0 | J3: 15
A4: March | C4: =+Mar!C5 -> 0 | D4: =+Mar!D5 -> 0 | E4: =+Mar!E5 -> 0 | F4: =+Mar!F5 -> 0 | G4: =+Mar!G5 -> 0 | H4: =+Mar!H5 -> 0 | I4: =+Mar!I5 -> 0 | J4: 0
A5: April | C5: =+Apr!C5 -> 0 | D5: =+Apr!D5 -> 0 | E5: =+Apr!E5 -> 0 | F5: =+Apr!F5 -> 0 | G5: =+Apr!G5 -> 0 | H5: =+Apr!H5 -> 0 | I5: =+Apr!I5 -> 0 | J5: 0
A6: May | C6: =+May!C5 -> 0 | D6: =+May!D5 -> 0 | E6: =+May!E5 -> 0 | F6: =+May!F5 -> 0 | G6: =+May!G5 -> 0 | H6: =+May!H5 -> 0 | I6: =+May!I5 -> 0 | J6: 0
A7: June | C7: =+Jun!C5 -> 0 | D7: =+Jun!D5 -> 0 | E7: =+Jun!E5 -> 0 | F7: =+Jun!F5 -> 0 | G7: =+Jun!G5 -> 0 | H7: =+Jun!H5 -> 0 | I7: =+Jun!I5 -> 0 | J7: 0
A8: July | C8: =+Jul!C5 -> 0 | D8: =+Jul!D5 -> 0 | E8: =+Jul!E5 -> 0 | F8: =+Jul!F5 -> 0 | G8: =+Jul!G5 -> 0 | H8: =+Jul!H5 -> 0 | I8: =+Jul!I5 -> 0 | J8: 0
A9: August | C9: =+Aug!C5 -> 0 | D9: =+Aug!D5 -> 0 | E9: =+Aug!E5 -> 0 | F9: =+Aug!F5 -> 0 | G9: =+Aug!G5 -> 0 | H9: =+Aug!H5 -> 0 | I9: =+Aug!I5 -> 0 | J9: 0
A10: September | C10: =+Sep!C5 -> 0 | D10: =+Sep!D5 -> 0 | E10: =+Sep!E5 -> 0 | F10: =+Sep!F5 -> 0 | G10: =+Sep!G5 -> 0 | H10: =+Sep!H5 -> 0 | I10: =+Sep!I5 -> 0 | J10: 0
A11: October | C11: =+Oct!C5 -> 0 | D11: =+Oct!D5 -> 0 | E11: =+Oct!E5 -> 0 | F11: =+Oct!F5 -> 0 | G11: =+Oct!G5 -> 0 | H11: =+Oct!H5 -> 0 | I11: =+Oct!I5 -> 0 | J11: 0
A12: November | C12: =+Nov!C5 -> 0 | D12: =+Nov!D5 -> 0 | E12: =+Nov!E5 -> 0 | F12: =+Nov!F5 -> 0 | G12: =+Nov!G5 -> 0 | H12: =+Nov!H5 -> 0 | I12: =+Nov!I5 -> 0 | J12: 0
A13: December | C13: =+Dec!C5 -> 0 | D13: =+Dec!D5 -> 0 | E13: =+Dec!E5 -> 0 | F13: =+Dec!F5 -> 0 | G13: =+Dec!G5 -> 0 | H13: =+Dec!H5 -> 0 | I13: =+Dec!I5 -> 0 | J13: 0
A14: Total | C14: =SUM(C2:C13) -> 0 | D14: 0 | E14: 200 | F14: 0 | G14: 39.85 | H14: 0 | I14: 0 | J14: 239.85
A17: Fuel | C17: =+C14 -> 0
A18: Oils | C18: =D14 -> 0
A19: Spare Parts | C19: =+E14 -> 200
A20: Maintenance | C20: =+F14 -> 0
A21: Communication | C21: =+G14 -> 39.85
A22: Insurance | C22: =+H14 -> 0
A23: Stamp Exp | C23: =+I14 -> 0
A24: Total | C24: =+J14 -> 239.85
D28: Issue No | E28: Code | F28: Item Name | G28: Q | H28: P | I28: Value

Sheet 1937 ه س
A1: No Of Journal Entry | C1: Fuel | D1: Oils | E1: Spare Parts | F1: Maintenance | G1: Communication | H1: Insurance | I1: Stamp Exp | J1: Total
A2: January | C2: =+Jan!C6 -> 0 | D2: =+Jan!D6 -> 0 | E2: =+Jan!E6 -> 2005.217236 | F2: =+Jan!F6 -> 0 | G2: =+Jan!G6 -> 132.97 | H2: =+Jan!H6 -> 0 | I2: =+Jan!I6 -> 0 | J2: =SUM(C2:I2) -> 2138.187236
A3: February | C3: =+Feb!C6 -> 0 | D3: =+Feb!D6 -> 1808.02106 | E3: =+Feb!E6 -> 0 | F3: =+Feb!F6 -> 0 | G3: =+Feb!G6 -> 123.12 | H3: =+Feb!H6 -> 0 | I3: =+Feb!I6 -> 0 | J3: 1931.14106
A4: March | C4: =+Mar!C6 -> 0 | D4: =+Mar!D6 -> 0 | E4: =+Mar!E6 -> 0 | F4: =+Mar!F6 -> 0 | G4: =+Mar!G6 -> 0 | H4: =+Mar!H6 -> 0 | I4: =+Mar!I6 -> 0 | J4: 0
A5: April | C5: =+Apr!C6 -> 0 | D5: =+Apr!D6 -> 0 | E5: =+Apr!E6 -> 0 | F5: =+Apr!F6 -> 0 | G5: =+Apr!G6 -> 0 | H5: =+Apr!H6 -> 0 | I5: =+Apr!I6 -> 0 | J5: 0
A6: May | C6: =+May!C6 -> 0 | D6: =+May!D6 -> 0 | E6: =+May!E6 -> 0 | F6: =+May!F6 -> 0 | G6: =+May!G6 -> 0 | H6: =+May!H6 -> 0 | I6: =+May!I6 -> 0 | J6: 0
A7: June | C7: =+Jun!C6 -> 0 | D7: =+Jun!D6 -> 0 | E7: =+Jun!E6 -> 0 | F7: =+Jun!F6 -> 0 | G7: =+Jun!G6 -> 0 | H7: =+Jun!H6 -> 0 | I7: =+Jun!I6 -> 0 | J7: 0
A8: July | C8: =+Jul!C6 -> 0 | D8: =+Jul!D6 -> 0 | E8: =+Jul!E6 -> 0 | F8: =+Jul!F6 -> 0 | G8: =+Jul!G6 -> 0 | H8: =+Jul!H6 -> 0 | I8: =+Jul!I6 -> 0 | J8: 0
A9: August | C9: =+Aug!C6 -> 0 | D9: =+Aug!D6 -> 0 | E9: =+Aug!E6 -> 0 | F9: =+Aug!F6 -> 0 | G9: =+Aug!G6 -> 0 | H9: =+Aug!H6 -> 0 | I9: =+Aug!I6 -> 0 | J9: 0
A10: September | C10: =+Sep!C6 -> 0 | D10: =+Sep!D6 -> 0 | E10: =+Sep!E6 -> 0 | F10: =+Sep!F6 -> 0 | G10: =+Sep!G6 -> 0 | H10: =+Sep!H6 -> 0 | I10: =+Sep!I6 -> 0 | J10: 0
A11: October | C11: =+Oct!C6 -> 0 | D11: =+Oct!D6 -> 0 | E11: =+Oct!E6 -> 0 | F11: =+Oct!F6 -> 0 | G11: =+Oct!G6 -> 0 | H11: =+Oct!H6 -> 0 | I11: =+Oct!I6 -> 0 | J11: 0
A12: November | C12: =+Nov!C6 -> 0 | D12: =+Nov!D6 -> 0 | E12: =+Nov!E6 -> 0 | F12: =+Nov!F6 -> 0 | G12: =+Nov!G6 -> 0 | H12: =+Nov!H6 -> 0 | I12: =+Nov!I6 -> 0 | J12: 0
A13: December | C13: =+Dec!C6 -> 0 | D13: =+Dec!D6 -> 0 | E13: =+Dec!E6 -> 0 | F13: =+Dec!F6 -> 0 | G13: =+Dec!G6 -> 0 | H13: =+Dec!H6 -> 0 | I13: =+Dec!I6 -> 0 | J13: 0
A14: Total | C14: =SUM(C2:C13) -> 0 | D14: 1808.02106 | E14: 2005.217236 | F14: 0 | G14: 256.09 | H14: 0 | I14: 0 | J14: 4069.328296
A17: Fuel | C17: =+C14 -> 0
A18: Oils | C18: =D14 -> 1808.02106
A19: Spare Parts | C19: =+E14 -> 2005.217236
A20: Maintenance | C20: =+F14 -> 0
A21: Communication | C21: =+G14 -> 256.09
A22: Insurance | C22: =+H14 -> 0
A23: Stamp Exp | C23: =+I14 -> 0
A24: Total | C24: =+J14 -> 4069.328296
D28: Issue No | E28: Code | F28: Item Name | G28: Q | H28: P | I28: Value

Sheet 2259 د ع
A1: No Of Journal Entry | C1: Fuel | D1: Oils | E1: Spare Parts | F1: Maintenance | G1: Communication | H1: Insurance | I1: Stamp Exp | J1: Total
A2: January | C2: =+Jan!C7 -> 0 | D2: =+Jan!D7 -> 0 | E2: =+Jan!E7 -> 0 | F2: =+Jan!F7 -> 0 | G2: =+Jan!G7 -> 24.85 | H2: =+Jan!H7 -> 0 | I2: =+Jan!I7 -> 0 | J2: =SUM(C2:I2) -> 24.85
A3: February | C3: =+Feb!C7 -> 0 | D3: =+Feb!D7 -> 4697.179383 | E3: =+Feb!E7 -> 0 | F3: =+Feb!F7 -> 0 | G3: =+Feb!G7 -> 15 | H3: =+Feb!H7 -> 0 | I3: =+Feb!I7 -> 0 | J3: 4712.179383
A4: March | C4: =+Mar!C7 -> 0 | D4: =+Mar!D7 -> 0 | E4: =+Mar!E7 -> 0 | F4: =+Mar!F7 -> 0 | G4: =+Mar!G7 -> 0 | H4: =+Mar!H7 -> 0 | I4: =+Mar!I7 -> 0 | J4: 0
A5: April | C5: =+Apr!C7 -> 0 | D5: =+Apr!D7 -> 0 | E5: =+Apr!E7 -> 0 | F5: =+Apr!F7 -> 0 | G5: =+Apr!G7 -> 0 | H5: =+Apr!H7 -> 0 | I5: =+Apr!I7 -> 0 | J5: 0
A6: May | C6: =+May!C7 -> 0 | D6: =+May!D7 -> 0 | E6: =+May!E7 -> 0 | F6: =+May!F7 -> 0 | G6: =+May!G7 -> 0 | H6: =+May!H7 -> 0 | I6: =+May!I7 -> 0 | J6: 0
A7: June | C7: =+Jun!C7 -> 0 | D7: =+Jun!D7 -> 0 | E7: =+Jun!E7 -> 0 | F7: =+Jun!F7 -> 0 | G7: =+Jun!G7 -> 0 | H7: =+Jun!H7 -> 0 | I7: =+Jun!I7 -> 0 | J7: 0
A8: July | C8: =+Jul!C7 -> 0 | D8: =+Jul!D7 -> 0 | E8: =+Jul!E7 -> 0 | F8: =+Jul!F7 -> 0 | G8: =+Jul!G7 -> 0 | H8: =+Jul!H7 -> 0 | I8: =+Jul!I7 -> 0 | J8: 0
A9: August | C9: =+Aug!C7 -> 0 | D9: =+Aug!D7 -> 0 | E9: =+Aug!E7 -> 0 | F9: =+Aug!F7 -> 0 | G9: =+Aug!G7 -> 0 | H9: =+Aug!H7 -> 0 | I9: =+Aug!I7 -> 0 | J9: 0
A10: September | C10: =+Sep!C7 -> 0 | D10: =+Sep!D7 -> 0 | E10: =+Sep!E7 -> 0 | F10: =+Sep!F7 -> 0 | G10: =+Sep!G7 -> 0 | H10: =+Sep!H7 -> 0 | I10: =+Sep!I7 -> 0 | J10: 0
A11: October | C11: =+Oct!C7 -> 0 | D11: =+Oct!D7 -> 0 | E11: =+Oct!E7 -> 0 | F11: =+Oct!F7 -> 0 | G11: =+Oct!G7 -> 0 | H11: =+Oct!H7 -> 0 | I11: =+Oct!I7 -> 0 | J11: 0
A12: November | C12: =+Nov!C7 -> 0 | D12: =+Nov!D7 -> 0 | E12: =+Nov!E7 -> 0 | F12: =+Nov!F7 -> 0 | G12: =+Nov!G7 -> 0 | H12: =+Nov!H7 -> 0 | I12: =+Nov!I7 -> 0 | J12: 0
A13: December | C13: =+Dec!C7 -> 0 | D13: =+Dec!D7 -> 0 | E13: =+Dec!E7 -> 0 | F13: =+Dec!F7 -> 0 | G13: =+Dec!G7 -> 0 | H13: =+Dec!H7 -> 0 | I13: =+Dec!I7 -> 0 | J13: 0
A14: Total | C14: =SUM(C2:C13) -> 0 | D14: 4697.179383 | E14: 0 | F14: 0 | G14: 39.85 | H14: 0 | I14: 0 | J14: 4737.029383
A17: Fuel | C17: =+C14 -> 0
A18: Oils | C18: =D14 -> 4697.179383
A19: Spare Parts | C19: =+E14 -> 0
A20: Maintenance | C20: =+F14 -> 0
A21: Communication | C21: =+G14 -> 39.85
A22: Insurance | C22: =+H14 -> 0
A23: Stamp Exp | C23: =+I14 -> 0
A24: Total | C24: =+J14 -> 4737.029383
D28: Issue No | E28: Code | F28: Item Name | G28: Q | H28: P | I28: Value

Sheet 2318 ف س
A1: No Of Journal Entry | C1: Fuel | D1: Oils | E1: Spare Parts | F1: Maintenance | G1: Communication | H1: Insurance | I1: Stamp Exp | J1: Total
A2: January | C2: =+Jan!C8 -> 14970 | D2: =+Jan!D8 -> 0 | E2: =+Jan!E8 -> 6973.030234 | F2: =+Jan!F8 -> 550 | G2: =+Jan!G8 -> 102.19 | H2: =+Jan!H8 -> 0 | I2: =+Jan!I8 -> 16550 | J2: =SUM(C2:I2) -> 39145.22023
A3: February | C3: =+Feb!C8 -> 11755 | D3: =+Feb!D8 -> 1627.218954 | E3: =+Feb!E8 -> 8332.453975 | F3: =+Feb!F8 -> 80 | G3: =+Feb!G8 -> 92.34 | H3: =+Feb!H8 -> 1770 | I3: =+Feb!I8 -> 12730 | J3: 36387.01293
A4: March | C4: =+Mar!C8 -> 0 | D4: =+Mar!D8 -> 0 | E4: =+Mar!E8 -> 0 | F4: =+Mar!F8 -> 0 | G4: =+Mar!G8 -> 0 | H4: =+Mar!H8 -> 0 | I4: =+Mar!I8 -> 0 | J4: 0
A5: April | C5: =+Apr!C8 -> 0 | D5: =+Apr!D8 -> 0 | E5: =+Apr!E8 -> 0 | F5: =+Apr!F8 -> 0 | G5: =+Apr!G8 -> 0 | H5: =+Apr!H8 -> 0 | I5: =+Apr!I8 -> 0 | J5: 0
A6: May | C6: =+May!C8 -> 0 | D6: =+May!D8 -> 0 | E6: =+May!E8 -> 0 | F6: =+May!F8 -> 0 | G6: =+May!G8 -> 0 | H6: =+May!H8 -> 0 | I6: =+May!I8 -> 0 | J6: 0
A7: June | C7: =+Jun!C8 -> 0 | D7: =+Jun!D8 -> 0 | E7: =+Jun!E8 -> 0 | F7: =+Jun!F8 -> 0 | G7: =+Jun!G8 -> 0 | H7: =+Jun!H8 -> 0 | I7: =+Jun!I8 -> 0 | J7: 0
A8: July | C8: =+Jul!C8 -> 0 | D8: =+Jul!D8 -> 0 | E8: =+Jul!E8 -> 0 | F8: =+Jul!F8 -> 0 | G8: =+Jul!G8 -> 0 | H8: =+Jul!H8 -> 0 | I8: =+Jul!I8 -> 0 | J8: 0
A9: August | C9: =+Aug!C8 -> 0 | D9: =+Aug!D8 -> 0 | E9: =+Aug!E8 -> 0 | F9: =+Aug!F8 -> 0 | G9: =+Aug!G8 -> 0 | H9: =+Aug!H8 -> 0 | I9: =+Aug!I8 -> 0 | J9: 0
A10: September | C10: =+Sep!C8 -> 0 | D10: =+Sep!D8 -> 0 | E10: =+Sep!E8 -> 0 | F10: =+Sep!F8 -> 0 | G10: =+Sep!G8 -> 0 | H10: =+Sep!H8 -> 0 | I10: =+Sep!I8 -> 0 | J10: 0
A11: October | C11: =+Oct!C8 -> 0 | D11: =+Oct!D8 -> 0 | E11: =+Oct!E8 -> 0 | F11: =+Oct!F8 -> 0 | G11: =+Oct!G8 -> 0 | H11: =+Oct!H8 -> 0 | I11: =+Oct!I8 -> 0 | J11: 0
A12: November | C12: =+Nov!C8 -> 0 | D12: =+Nov!D8 -> 0 | E12: =+Nov!E8 -> 0 | F12: =+Nov!F8 -> 0 | G12: =+Nov!G8 -> 0 | H12: =+Nov!H8 -> 0 | I12: =+Nov!I8 -> 0 | J12: 0
A13: December | C13: =+Dec!C8 -> 0 | D13: =+Dec!D8 -> 0 | E13: =+Dec!E8 -> 0 | F13: =+Dec!F8 -> 0 | G13: =+Dec!G8 -> 0 | H13: =+Dec!H8 -> 0 | I13: =+Dec!I8 -> 0 | J13: 0
A14: Total | C14: =SUM(C2:C13) -> 26725 | D14: 1627.218954 | E14: 15305.48421 | F14: 630 | G14: 194.53 | H14: 1770 | I14: 29280 | J14: 75532.23316
A17: Fuel | C17: =+C14 -> 26725
A18: Oils | C18: =D14 -> 1627.218954
A19: Spare Parts | C19: =+E14 -> 15305.48421
A20: Maintenance | C20: =+F14 -> 630
A21: Communication | C21: =+G14 -> 194.53
A22: Insurance | C22: =+H14 -> 1770
A23: Stamp Exp | C23: =+I14 -> 29280
A24: Total | C24: =+J14 -> 75532.23316
D28: Issue No | E28: Code | F28: Item Name | G28: Q | H28: P | I28: Value

Sheet 2369 ف س
A1: No Of Journal Entry | C1: Fuel | D1: Oils | E1: Spare Parts | F1: Maintenance | G1: Communication | H1: Insurance | I1: Stamp Exp | J1: Total
A2: January | C2: =+Jan!#REF! ->  | D2: =+Jan!#REF! ->  | E2: =+Jan!#REF! ->  | F2: =+Jan!#REF! ->  | G2: =+Jan!#REF! ->  | H2: =+Jan!#REF! ->  | I2: =+Jan!#REF! ->  | J2: =SUM(C2:I2) -> 
A3: February | C3: =+Feb!#REF! ->  | D3: =+Feb!#REF! ->  | E3: =+Feb!#REF! ->  | F3: =+Feb!#REF! ->  | G3: =+Feb!#REF! ->  | H3: =+Feb!#REF! ->  | I3: =+Feb!#REF! -> 
A4: March | C4: =+Mar!#REF! ->  | D4: =+Mar!#REF! ->  | E4: =+Mar!#REF! ->  | F4: =+Mar!#REF! ->  | G4: =+Mar!#REF! ->  | H4: =+Mar!#REF! ->  | I4: =+Mar!#REF! -> 
A5: April | C5: =+Apr!#REF! ->  | D5: =+Apr!#REF! ->  | E5: =+Apr!#REF! ->  | F5: =+Apr!#REF! ->  | G5: =+Apr!#REF! ->  | H5: =+Apr!#REF! ->  | I5: =+Apr!#REF! -> 
A6: May | C6: =+May!#REF! ->  | D6: =+May!#REF! ->  | E6: =+May!#REF! ->  | F6: =+May!#REF! ->  | G6: =+May!#REF! ->  | H6: =+May!#REF! ->  | I6: =+May!#REF! -> 
A7: June | C7: =+Jun!#REF! ->  | D7: =+Jun!#REF! ->  | E7: =+Jun!#REF! ->  | F7: =+Jun!#REF! ->  | G7: =+Jun!#REF! ->  | H7: =+Jun!#REF! ->  | I7: =+Jun!#REF! -> 
A8: July | C8: =+Jul!#REF! ->  | D8: =+Jul!#REF! ->  | E8: =+Jul!#REF! ->  | F8: =+Jul!#REF! ->  | G8: =+Jul!#REF! ->  | H8: =+Jul!#REF! ->  | I8: =+Jul!#REF! -> 
A9: August | C9: =+Aug!#REF! ->  | D9: =+Aug!#REF! ->  | E9: =+Aug!#REF! ->  | F9: =+Aug!#REF! ->  | G9: =+Aug!#REF! ->  | H9: =+Aug!#REF! ->  | I9: =+Aug!#REF! -> 
A10: September | C10: =+Sep!#REF! ->  | D10: =+Sep!#REF! ->  | E10: =+Sep!#REF! ->  | F10: =+Sep!#REF! ->  | G10: =+Sep!#REF! ->  | H10: =+Sep!#REF! ->  | I10: =+Sep!#REF! -> 
A11: October | C11: =+Oct!#REF! ->  | D11: =+Oct!#REF! ->  | E11: =+Oct!#REF! ->  | F11: =+Oct!#REF! ->  | G11: =+Oct!#REF! ->  | H11: =+Oct!#REF! ->  | I11: =+Oct!#REF! -> 
A12: November | C12: =+Nov!#REF! ->  | D12: =+Nov!#REF! ->  | E12: =+Nov!#REF! ->  | F12: =+Nov!#REF! ->  | G12: =+Nov!#REF! ->  | H12: =+Nov!#REF! ->  | I12: =+Nov!#REF! -> 
A13: December | C13: =+Dec!#REF! ->  | D13: =+Dec!#REF! ->  | E13: =+Dec!#REF! ->  | F13: =+Dec!#REF! ->  | G13: =+Dec!#REF! ->  | H13: =+Dec!#REF! ->  | I13: =+Dec!#REF! -> 
A14: Total | C14: =SUM(C2:C13) -> 
A17: Fuel | C17: =+C14 -> 
A18: Oils | C18: =D14 -> 
A19: Spare Parts | C19: =+E14 -> 
A20: Maintenance | C20: =+F14 -> 
A21: Communication | C21: =+G14 -> 
A22: Insurance | C22: =+H14 -> 
A23: Stamp Exp | C23: =+I14 -> 
A24: Total | C24: =+J14 -> 
D28: Issue No | E28: Code | F28: Item Name | G28: Q | H28: P | I28: Value

Sheet 2573 ع ص
A1: No Of Journal Entry | C1: Fuel | D1: Oils | E1: Spare Parts | F1: Maintenance | G1: Communication | H1: Insurance | I1: Stamp Exp | J1: Total
A2: January | C2: =+Jan!#REF! ->  | D2: =+Jan!#REF! ->  | E2: =+Jan!#REF! ->  | F2: =+Jan!#REF! ->  | G2: =+Jan!#REF! ->  | H2: =+Jan!#REF! ->  | I2: =+Jan!#REF! ->  | J2: =SUM(C2:I2) -> 
A3: February | C3: =+Feb!#REF! ->  | D3: =+Feb!#REF! ->  | E3: =+Feb!#REF! ->  | F3: =+Feb!#REF! ->  | G3: =+Feb!#REF! ->  | H3: =+Feb!#REF! ->  | I3: =+Feb!#REF! -> 
A4: March | C4: =+Mar!#REF! ->  | D4: =+Mar!#REF! ->  | E4: =+Mar!#REF! ->  | F4: =+Mar!#REF! ->  | G4: =+Mar!#REF! ->  | H4: =+Mar!#REF! ->  | I4: =+Mar!#REF! -> 
A5: April | C5: =+Apr!#REF! ->  | D5: =+Apr!#REF! ->  | E5: =+Apr!#REF! ->  | F5: =+Apr!#REF! ->  | G5: =+Apr!#REF! ->  | H5: =+Apr!#REF! ->  | I5: =+Apr!#REF! -> 
A6: May | C6: =+May!#REF! ->  | D6: =+May!#REF! ->  | E6: =+May!#REF! ->  | F6: =+May!#REF! ->  | G6: =+May!#REF! ->  | H6: =+May!#REF! ->  | I6: =+May!#REF! -> 
A7: June | C7: =+Jun!#REF! ->  | D7: =+Jun!#REF! ->  | E7: =+Jun!#REF! ->  | F7: =+Jun!#REF! ->  | G7: =+Jun!#REF! ->  | H7: =+Jun!#REF! ->  | I7: =+Jun!#REF! -> 
A8: July | C8: =+Jul!#REF! ->  | D8: =+Jul!#REF! ->  | E8: =+Jul!#REF! ->  | F8: =+Jul!#REF! ->  | G8: =+Jul!#REF! ->  | H8: =+Jul!#REF! ->  | I8: =+Jul!#REF! -> 
A9: August | C9: =+Aug!#REF! ->  | D9: =+Aug!#REF! ->  | E9: =+Aug!#REF! ->  | F9: =+Aug!#REF! ->  | G9: =+Aug!#REF! ->  | H9: =+Aug!#REF! ->  | I9: =+Aug!#REF! -> 
A10: September | C10: =+Sep!#REF! ->  | D10: =+Sep!#REF! ->  | E10: =+Sep!#REF! ->  | F10: =+Sep!#REF! ->  | G10: =+Sep!#REF! ->  | H10: =+Sep!#REF! ->  | I10: =+Sep!#REF! -> 
A11: October | C11: =+Oct!#REF! ->  | D11: =+Oct!#REF! ->  | E11: =+Oct!#REF! ->  | F11: =+Oct!#REF! ->  | G11: =+Oct!#REF! ->  | H11: =+Oct!#REF! ->  | I11: =+Oct!#REF! -> 
A12: November | C12: =+Nov!#REF! ->  | D12: =+Nov!#REF! ->  | E12: =+Nov!#REF! ->  | F12: =+Nov!#REF! ->  | G12: =+Nov!#REF! ->  | H12: =+Nov!#REF! ->  | I12: =+Nov!#REF! -> 
A13: December | C13: =+Dec!#REF! ->  | D13: =+Dec!#REF! ->  | E13: =+Dec!#REF! ->  | F13: =+Dec!#REF! ->  | G13: =+Dec!#REF! ->  | H13: =+Dec!#REF! ->  | I13: =+Dec!#REF! -> 
A14: Total | C14: =SUM(C2:C13) -> 
A17: Fuel | C17: =+C14 -> 
A18: Oils | C18: =D14 -> 
A19: Spare Parts | C19: =+E14 -> 
A20: Maintenance | C20: =+F14 -> 
A21: Communication | C21: =+G14 -> 
A22: Insurance | C22: =+H14 -> 
A23: Stamp Exp | C23: =+I14 -> 
A24: Total | C24: =+J14 -> 
D28: Issue No | E28: Code | F28: Item Name | G28: Q | H28: P | I28: Value

Sheet 2593 ه س
A1: No Of Journal Entry | C1: Fuel | D1: Oils | E1: Spare Parts | F1: Maintenance | G1: Communication | H1: Insurance | I1: Stamp Exp | J1: Total
A2: January | C2: =+Jan!C10 -> 860 | D2: =+Jan!D10 -> 0 | E2: =+Jan!E10 -> 810 | F2: =+Jan!F10 -> 0 | G2: =+Jan!G10 -> 102.19 | H2: =+Jan!H10 -> 0 | I2: =+Jan!I10 -> 190 | J2: =SUM(C2:I2) -> 1962.19
A3: February | C3: =+Feb!C10 -> 300 | D3: =+Feb!D10 -> 0 | E3: =+Feb!E10 -> 70 | F3: =+Feb!F10 -> 200 | G3: =+Feb!G10 -> 92.34 | H3: =+Feb!H10 -> 0 | I3: =+Feb!I10 -> 25 | J3: 687.34
A4: March | C4: =+Mar!C10 -> 0 | D4: =+Mar!D10 -> 0 | E4: =+Mar!E10 -> 0 | F4: =+Mar!F10 -> 0 | G4: =+Mar!G10 -> 0 | H4: =+Mar!H10 -> 0 | I4: =+Mar!I10 -> 0 | J4: 0
A5: April | C5: =+Apr!C10 -> 0 | D5: =+Apr!D10 -> 0 | E5: =+Apr!E10 -> 0 | F5: =+Apr!F10 -> 0 | G5: =+Apr!G10 -> 0 | H5: =+Apr!H10 -> 0 | I5: =+Apr!I10 -> 0 | J5: 0
A6: May | C6: =+May!C10 -> 0 | D6: =+May!D10 -> 0 | E6: =+May!E10 -> 0 | F6: =+May!F10 -> 0 | G6: =+May!G10 -> 0 | H6: =+May!H10 -> 0 | I6: =+May!I10 -> 0 | J6: 0
A7: June | C7: =+Jun!C10 -> 0 | D7: =+Jun!D10 -> 0 | E7: =+Jun!E10 -> 0 | F7: =+Jun!F10 -> 0 | G7: =+Jun!G10 -> 0 | H7: =+Jun!H10 -> 0 | I7: =+Jun!I10 -> 0 | J7: 0
A8: July | C8: =+Jul!C10 -> 0 | D8: =+Jul!D10 -> 0 | E8: =+Jul!E10 -> 0 | F8: =+Jul!F10 -> 0 | G8: =+Jul!G10 -> 0 | H8: =+Jul!H10 -> 0 | I8: =+Jul!I10 -> 0 | J8: 0
A9: August | C9: =+Aug!C10 -> 0 | D9: =+Aug!D10 -> 0 | E9: =+Aug!E10 -> 0 | F9: =+Aug!F10 -> 0 | G9: =+Aug!G10 -> 0 | H9: =+Aug!H10 -> 0 | I9: =+Aug!I10 -> 0 | J9: 0
A10: September | C10: =+Sep!C10 -> 0 | D10: =+Sep!D10 -> 0 | E10: =+Sep!E10 -> 0 | F10: =+Sep!F10 -> 0 | G10: =+Sep!G10 -> 0 | H10: =+Sep!H10 -> 0 | I10: =+Sep!I10 -> 0 | J10: 0
A11: October | C11: =+Oct!C10 -> 0 | D11: =+Oct!D10 -> 0 | E11: =+Oct!E10 -> 0 | F11: =+Oct!F10 -> 0 | G11: =+Oct!G10 -> 0 | H11: =+Oct!H10 -> 0 | I11: =+Oct!I10 -> 0 | J11: 0
A12: November | C12: =+Nov!C10 -> 0 | D12: =+Nov!D10 -> 0 | E12: =+Nov!E10 -> 0 | F12: =+Nov!F10 -> 0 | G12: =+Nov!G10 -> 0 | H12: =+Nov!H10 -> 0 | I12: =+Nov!I10 -> 0 | J12: 0
A13: December | C13: =+Dec!C10 -> 0 | D13: =+Dec!D10 -> 0 | E13: =+Dec!E10 -> 0 | F13: =+Dec!F10 -> 0 | G13: =+Dec!G10 -> 0 | H13: =+Dec!H10 -> 0 | I13: =+Dec!I10 -> 0 | J13: 0
A14: Total | C14: =SUM(C2:C13) -> 1160 | D14: 0 | E14: 880 | F14: 200 | G14: 194.53 | H14: 0 | I14: 215 | J14: 2649.53
A17: Fuel | C17: =+C14 -> 1160
A18: Oils | C18: =D14 -> 0
A19: Spare Parts | C19: =+E14 -> 880
A20: Maintenance | C20: =+F14 -> 200
A21: Communication | C21: =+G14 -> 194.53
A22: Insurance | C22: =+H14 -> 0
A23: Stamp Exp | C23: =+I14 -> 215
A24: Total | C24: =+J14 -> 2649.53
D28: Issue No | E28: Code | F28: Item Name | G28: Q | H28: P | I28: Value

Sheet 2613 ع ص
A1: No Of Journal Entry | C1: Fuel | D1: Oils | E1: Spare Parts | F1: Maintenance | G1: Communication | H1: Insurance | I1: Stamp Exp | J1: Total
A2: January | C2: =+Jan!C11 -> 0 | D2: =+Jan!D11 -> 0 | E2: =+Jan!E11 -> 149.9847627 | F2: =+Jan!F11 -> 0 | G2: =+Jan!G11 -> 24.85 | H2: =+Jan!H11 -> 0 | I2: =+Jan!I11 -> 0 | J2: =SUM(C2:I2) -> 174.8347627
A3: February | C3: =+Feb!C11 -> 4169.9625 | D3: =+Feb!D11 -> 0 | E3: =+Feb!E11 -> 639.9992952 | F3: =+Feb!F11 -> 1030 | G3: =+Feb!G11 -> 15 | H3: =+Feb!H11 -> 0 | I3: =+Feb!I11 -> 290 | J3: 6144.961795
A4: March | C4: =+Mar!C11 -> 0 | D4: =+Mar!D11 -> 0 | E4: =+Mar!E11 -> 0 | F4: =+Mar!F11 -> 0 | G4: =+Mar!G11 -> 0 | H4: =+Mar!H11 -> 0 | I4: =+Mar!I11 -> 0 | J4: 0
A5: April | C5: =+Apr!C11 -> 0 | D5: =+Apr!D11 -> 0 | E5: =+Apr!E11 -> 0 | F5: =+Apr!F11 -> 0 | G5: =+Apr!G11 -> 0 | H5: =+Apr!H11 -> 0 | I5: =+Apr!I11 -> 0 | J5: 0
A6: May | C6: =+May!C11 -> 0 | D6: =+May!D11 -> 0 | E6: =+May!E11 -> 0 | F6: =+May!F11 -> 0 | G6: =+May!G11 -> 0 | H6: =+May!H11 -> 0 | I6: =+May!I11 -> 0 | J6: 0
A7: June | C7: =+Jun!C11 -> 0 | D7: =+Jun!D11 -> 0 | E7: =+Jun!E11 -> 0 | F7: =+Jun!F11 -> 0 | G7: =+Jun!G11 -> 0 | H7: =+Jun!H11 -> 0 | I7: =+Jun!I11 -> 0 | J7: 0
A8: July | C8: =+Jul!C11 -> 0 | D8: =+Jul!D11 -> 0 | E8: =+Jul!E11 -> 0 | F8: =+Jul!F11 -> 0 | G8: =+Jul!G11 -> 0 | H8: =+Jul!H11 -> 0 | I8: =+Jul!I11 -> 0 | J8: 0
A9: August | C9: =+Aug!C11 -> 0 | D9: =+Aug!D11 -> 0 | E9: =+Aug!E11 -> 0 | F9: =+Aug!F11 -> 0 | G9: =+Aug!G11 -> 0 | H9: =+Aug!H11 -> 0 | I9: =+Aug!I11 -> 0 | J9: 0
A10: September | C10: =+Sep!C11 -> 0 | D10: =+Sep!D11 -> 0 | E10: =+Sep!E11 -> 0 | F10: =+Sep!F11 -> 0 | G10: =+Sep!G11 -> 0 | H10: =+Sep!H11 -> 0 | I10: =+Sep!I11 -> 0 | J10: 0
A11: October | C11: =+Oct!C11 -> 0 | D11: =+Oct!D11 -> 0 | E11: =+Oct!E11 -> 0 | F11: =+Oct!F11 -> 0 | G11: =+Oct!G11 -> 0 | H11: =+Oct!H11 -> 0 | I11: =+Oct!I11 -> 0 | J11: 0
A12: November | C12: =+Nov!C11 -> 0 | D12: =+Nov!D11 -> 0 | E12: =+Nov!E11 -> 0 | F12: =+Nov!F11 -> 0 | G12: =+Nov!G11 -> 0 | H12: =+Nov!H11 -> 0 | I12: =+Nov!I11 -> 0 | J12: 0
A13: December | C13: =+Dec!C11 -> 0 | D13: =+Dec!D11 -> 0 | E13: =+Dec!E11 -> 0 | F13: =+Dec!F11 -> 0 | G13: =+Dec!G11 -> 0 | H13: =+Dec!H11 -> 0 | I13: =+Dec!I11 -> 0 | J13: 0
A14: Total | C14: =SUM(C2:C13) -> 4169.9625 | D14: 0 | E14: 789.984058 | F14: 1030 | G14: 39.85 | H14: 0 | I14: 290 | J14: 6319.796558
A17: Fuel | C17: =+C14 -> 4169.9625
A18: Oils | C18: =D14 -> 0
A19: Spare Parts | C19: =+E14 -> 789.984058
A20: Maintenance | C20: =+F14 -> 1030
A21: Communication | C21: =+G14 -> 39.85
A22: Insurance | C22: =+H14 -> 0
A23: Stamp Exp | C23: =+I14 -> 290
A24: Total | C24: =+J14 -> 6319.796558
D28: Issue No | E28: Code | F28: Item Name | G28: Q | H28: P | I28: Value

Sheet 2635 ج س
A1: No Of Journal Entry | C1: Fuel | D1: Oils | E1: Spare Parts | F1: Maintenance | G1: Communication | H1: Insurance | I1: Stamp Exp | J1: Total
A2: January | C2: =+Jan!C12 -> 4175 | D2: =+Jan!D12 -> 316.4 | E2: =+Jan!E12 -> 104.7 | F2: =+Jan!F12 -> 50 | G2: =+Jan!G12 -> 24.85 | H2: =+Jan!H12 -> 0 | I2: =+Jan!I12 -> 240 | J2: =SUM(C2:I2) -> 4910.95
A3: February | C3: =+Feb!C12 -> 3980 | D3: =+Feb!D12 -> 361.6042119 | E3: =+Feb!E12 -> 2250.572327 | F3: =+Feb!F12 -> 642 | G3: =+Feb!G12 -> 15 | H3: =+Feb!H12 -> 0 | I3: =+Feb!I12 -> 155 | J3: 7404.176539
A4: March | C4: =+Mar!C12 -> 0 | D4: =+Mar!D12 -> 0 | E4: =+Mar!E12 -> 0 | F4: =+Mar!F12 -> 0 | G4: =+Mar!G12 -> 0 | H4: =+Mar!H12 -> 0 | I4: =+Mar!I12 -> 0 | J4: 0
A5: April | C5: =+Apr!C12 -> 0 | D5: =+Apr!D12 -> 0 | E5: =+Apr!E12 -> 0 | F5: =+Apr!F12 -> 0 | G5: =+Apr!G12 -> 0 | H5: =+Apr!H12 -> 0 | I5: =+Apr!I12 -> 0 | J5: 0
A6: May | C6: =+May!C12 -> 0 | D6: =+May!D12 -> 0 | E6: =+May!E12 -> 0 | F6: =+May!F12 -> 0 | G6: =+May!G12 -> 0 | H6: =+May!H12 -> 0 | I6: =+May!I12 -> 0 | J6: 0
A7: June | C7: =+Jun!C12 -> 0 | D7: =+Jun!D12 -> 0 | E7: =+Jun!E12 -> 0 | F7: =+Jun!F12 -> 0 | G7: =+Jun!G12 -> 0 | H7: =+Jun!H12 -> 0 | I7: =+Jun!I12 -> 0 | J7: 0
A8: July | C8: =+Jul!C12 -> 0 | D8: =+Jul!D12 -> 0 | E8: =+Jul!E12 -> 0 | F8: =+Jul!F12 -> 0 | G8: =+Jul!G12 -> 0 | H8: =+Jul!H12 -> 0 | I8: =+Jul!I12 -> 0 | J8: 0
A9: August | C9: =+Aug!C12 -> 0 | D9: =+Aug!D12 -> 0 | E9: =+Aug!E12 -> 0 | F9: =+Aug!F12 -> 0 | G9: =+Aug!G12 -> 0 | H9: =+Aug!H12 -> 0 | I9: =+Aug!I12 -> 0 | J9: 0
A10: September | C10: =+Sep!C12 -> 0 | D10: =+Sep!D12 -> 0 | E10: =+Sep!E12 -> 0 | F10: =+Sep!F12 -> 0 | G10: =+Sep!G12 -> 0 | H10: =+Sep!H12 -> 0 | I10: =+Sep!I12 -> 0 | J10: 0
A11: October | C11: =+Oct!C12 -> 0 | D11: =+Oct!D12 -> 0 | E11: =+Oct!E12 -> 0 | F11: =+Oct!F12 -> 0 | G11: =+Oct!G12 -> 0 | H11: =+Oct!H12 -> 0 | I11: =+Oct!I12 -> 0 | J11: 0
A12: November | C12: =+Nov!C12 -> 0 | D12: =+Nov!D12 -> 0 | E12: =+Nov!E12 -> 0 | F12: =+Nov!F12 -> 0 | G12: =+Nov!G12 -> 0 | H12: =+Nov!H12 -> 0 | I12: =+Nov!I12 -> 0 | J12: 0
A13: December | C13: =+Dec!C12 -> 0 | D13: =+Dec!D12 -> 0 | E13: =+Dec!E12 -> 0 | F13: =+Dec!F12 -> 0 | G13: =+Dec!G12 -> 0 | H13: =+Dec!H12 -> 0 | I13: =+Dec!I12 -> 0 | J13: 0
A14: Total | C14: =SUM(C2:C13) -> 8155 | D14: 678.0042119 | E14: 2355.272327 | F14: 692 | G14: 39.85 | H14: 0 | I14: 395 | J14: 12315.12654
A17: Fuel | C17: =+C14 -> 8155
A18: Oils | C18: =D14 -> 678.0042119
A19: Spare Parts | C19: =+E14 -> 2355.272327
A20: Maintenance | C20: =+F14 -> 692
A21: Communication | C21: =+G14 -> 39.85
A22: Insurance | C22: =+H14 -> 0
A23: Stamp Exp | C23: =+I14 -> 395
A24: Total | C24: =+J14 -> 12315.12654
D28: Issue No | E28: Code | F28: Item Name | G28: Q | H28: P | I28: Value

Sheet 2658 ف س
A1: No Of Journal Entry | C1: Fuel | D1: Oils | E1: Spare Parts | F1: Maintenance | G1: Communication | H1: Insurance | I1: Stamp Exp | J1: Total
A2: January | C2: =+Jan!C13 -> 3750 | D2: =+Jan!D13 -> 0 | E2: =+Jan!E13 -> 0 | F2: =+Jan!F13 -> 0 | G2: =+Jan!G13 -> 102.19 | H2: =+Jan!H13 -> 0 | I2: =+Jan!I13 -> 4520 | J2: =SUM(C2:I2) -> 8372.19
A3: February | C3: =+Feb!C13 -> 4300 | D3: =+Feb!D13 -> 0 | E3: =+Feb!E13 -> 1267.68 | F3: =+Feb!F13 -> 0 | G3: =+Feb!G13 -> 92.34 | H3: =+Feb!H13 -> 0 | I3: =+Feb!I13 -> 5300 | J3: 10960.02
A4: March | C4: =+Mar!C13 -> 0 | D4: =+Mar!D13 -> 0 | E4: =+Mar!E13 -> 0 | F4: =+Mar!F13 -> 0 | G4: =+Mar!G13 -> 0 | H4: =+Mar!H13 -> 0 | I4: =+Mar!I13 -> 0 | J4: 0
A5: April | C5: =+Apr!C13 -> 0 | D5: =+Apr!D13 -> 0 | E5: =+Apr!E13 -> 0 | F5: =+Apr!F13 -> 0 | G5: =+Apr!G13 -> 0 | H5: =+Apr!H13 -> 0 | I5: =+Apr!I13 -> 0 | J5: 0
A6: May | C6: =+May!C13 -> 0 | D6: =+May!D13 -> 0 | E6: =+May!E13 -> 0 | F6: =+May!F13 -> 0 | G6: =+May!G13 -> 0 | H6: =+May!H13 -> 0 | I6: =+May!I13 -> 0 | J6: 0
A7: June | C7: =+Jun!C13 -> 0 | D7: =+Jun!D13 -> 0 | E7: =+Jun!E13 -> 0 | F7: =+Jun!F13 -> 0 | G7: =+Jun!G13 -> 0 | H7: =+Jun!H13 -> 0 | I7: =+Jun!I13 -> 0 | J7: 0
A8: July | C8: =+Jul!C13 -> 0 | D8: =+Jul!D13 -> 0 | E8: =+Jul!E13 -> 0 | F8: =+Jul!F13 -> 0 | G8: =+Jul!G13 -> 0 | H8: =+Jul!H13 -> 0 | I8: =+Jul!I13 -> 0 | J8: 0
A9: August | C9: =+Aug!C13 -> 0 | D9: =+Aug!D13 -> 0 | E9: =+Aug!E13 -> 0 | F9: =+Aug!F13 -> 0 | G9: =+Aug!G13 -> 0 | H9: =+Aug!H13 -> 0 | I9: =+Aug!I13 -> 0 | J9: 0
A10: September | C10: =+Sep!C13 -> 0 | D10: =+Sep!D13 -> 0 | E10: =+Sep!E13 -> 0 | F10: =+Sep!F13 -> 0 | G10: =+Sep!G13 -> 0 | H10: =+Sep!H13 -> 0 | I10: =+Sep!I13 -> 0 | J10: 0
A11: October | C11: =+Oct!C13 -> 0 | D11: =+Oct!D13 -> 0 | E11: =+Oct!E13 -> 0 | F11: =+Oct!F13 -> 0 | G11: =+Oct!G13 -> 0 | H11: =+Oct!H13 -> 0 | I11: =+Oct!I13 -> 0 | J11: 0
A12: November | C12: =+Nov!C13 -> 0 | D12: =+Nov!D13 -> 0 | E12: =+Nov!E13 -> 0 | F12: =+Nov!F13 -> 0 | G12: =+Nov!G13 -> 0 | H12: =+Nov!H13 -> 0 | I12: =+Nov!I13 -> 0 | J12: 0
A13: December | C13: =+Dec!C13 -> 0 | D13: =+Dec!D13 -> 0 | E13: =+Dec!E13 -> 0 | F13: =+Dec!F13 -> 0 | G13: =+Dec!G13 -> 0 | H13: =+Dec!H13 -> 0 | I13: =+Dec!I13 -> 0 | J13: 0
A14: Total | C14: =SUM(C2:C13) -> 8050 | D14: 0 | E14: 1267.68 | F14: 0 | G14: 194.53 | H14: 0 | I14: 9820 | J14: 19332.21
A17: Fuel | C17: =+C14 -> 8050
A18: Oils | C18: =D14 -> 0
A19: Spare Parts | C19: =+E14 -> 1267.68
A20: Maintenance | C20: =+F14 -> 0
A21: Communication | C21: =+G14 -> 194.53
A22: Insurance | C22: =+H14 -> 0
A23: Stamp Exp | C23: =+I14 -> 9820
A24: Total | C24: =+J14 -> 19332.21
D28: Issue No | E28: Code | F28: Item Name | G28: Q | H28: P | I28: Value

Sheet 2694 ج س
A1: No Of Journal Entry | C1: Fuel | D1: Oils | E1: Spare Parts | F1: Maintenance | G1: Communication | H1: Insurance | I1: Stamp Exp | J1: Total
A2: January | C2: =+Jan!C14 -> 0 | D2: =+Jan!D14 -> 0 | E2: =+Jan!E14 -> 190 | F2: =+Jan!F14 -> 0 | G2: =+Jan!G14 -> 102.19 | H2: =+Jan!H14 -> 965 | I2: =+Jan!I14 -> 0 | J2: =SUM(C2:I2) -> 1257.19
A3: February | C3: =+Feb!C14 -> 0 | D3: =+Feb!D14 -> 0 | E3: =+Feb!E14 -> 900 | F3: =+Feb!F14 -> 190 | G3: =+Feb!G14 -> 92.34 | H3: =+Feb!H14 -> 0 | I3: =+Feb!I14 -> 0 | J3: 1182.34
A4: March | C4: =+Mar!C14 -> 0 | D4: =+Mar!D14 -> 0 | E4: =+Mar!E14 -> 0 | F4: =+Mar!F14 -> 0 | G4: =+Mar!G14 -> 0 | H4: =+Mar!H14 -> 0 | I4: =+Mar!I14 -> 0 | J4: 0
A5: April | C5: =+Apr!C14 -> 0 | D5: =+Apr!D14 -> 0 | E5: =+Apr!E14 -> 0 | F5: =+Apr!F14 -> 0 | G5: =+Apr!G14 -> 0 | H5: =+Apr!H14 -> 0 | I5: =+Apr!I14 -> 0 | J5: 0
A6: May | C6: =+May!C14 -> 0 | D6: =+May!D14 -> 0 | E6: =+May!E14 -> 0 | F6: =+May!F14 -> 0 | G6: =+May!G14 -> 0 | H6: =+May!H14 -> 0 | I6: =+May!I14 -> 0 | J6: 0
A7: June | C7: =+Jun!C14 -> 0 | D7: =+Jun!D14 -> 0 | E7: =+Jun!E14 -> 0 | F7: =+Jun!F14 -> 0 | G7: =+Jun!G14 -> 0 | H7: =+Jun!H14 -> 0 | I7: =+Jun!I14 -> 0 | J7: 0
A8: July | C8: =+Jul!C14 -> 0 | D8: =+Jul!D14 -> 0 | E8: =+Jul!E14 -> 0 | F8: =+Jul!F14 -> 0 | G8: =+Jul!G14 -> 0 | H8: =+Jul!H14 -> 0 | I8: =+Jul!I14 -> 0 | J8: 0
A9: August | C9: =+Aug!C14 -> 0 | D9: =+Aug!D14 -> 0 | E9: =+Aug!E14 -> 0 | F9: =+Aug!F14 -> 0 | G9: =+Aug!G14 -> 0 | H9: =+Aug!H14 -> 0 | I9: =+Aug!I14 -> 0 | J9: 0
A10: September | C10: =+Sep!C14 -> 0 | D10: =+Sep!D14 -> 0 | E10: =+Sep!E14 -> 0 | F10: =+Sep!F14 -> 0 | G10: =+Sep!G14 -> 0 | H10: =+Sep!H14 -> 0 | I10: =+Sep!I14 -> 0 | J10: 0
A11: October | C11: =+Oct!C14 -> 0 | D11: =+Oct!D14 -> 0 | E11: =+Oct!E14 -> 0 | F11: =+Oct!F14 -> 0 | G11: =+Oct!G14 -> 0 | H11: =+Oct!H14 -> 0 | I11: =+Oct!I14 -> 0 | J11: 0
A12: November | C12: =+Nov!C14 -> 0 | D12: =+Nov!D14 -> 0 | E12: =+Nov!E14 -> 0 | F12: =+Nov!F14 -> 0 | G12: =+Nov!G14 -> 0 | H12: =+Nov!H14 -> 0 | I12: =+Nov!I14 -> 0 | J12: 0
A13: December | C13: =+Dec!C14 -> 0 | D13: =+Dec!D14 -> 0 | E13: =+Dec!E14 -> 0 | F13: =+Dec!F14 -> 0 | G13: =+Dec!G14 -> 0 | H13: =+Dec!H14 -> 0 | I13: =+Dec!I14 -> 0 | J13: 0
A14: Total | C14: =SUM(C2:C13) -> 0 | D14: 0 | E14: 1090 | F14: 190 | G14: 194.53 | H14: 965 | I14: 0 | J14: 2439.53
A17: Fuel | C17: =+C14 -> 0
A18: Oils | C18: =D14 -> 0
A19: Spare Parts | C19: =+E14 -> 1090
A20: Maintenance | C20: =+F14 -> 190
A21: Communication | C21: =+G14 -> 194.53
A22: Insurance | C22: =+H14 -> 965
A23: Stamp Exp | C23: =+I14 -> 0
A24: Total | C24: =+J14 -> 2439.53
D28: Issue No | E28: Code | F28: Item Name | G28: Q | H28: P | I28: Value

Sheet 2719 ب س
A1: No Of Journal Entry | C1: Fuel | D1: Oils | E1: Spare Parts | F1: Maintenance | G1: Communication | H1: Insurance | I1: Stamp Exp | J1: Total
A2: January | C2: =+Jan!C15 -> 0 | D2: =+Jan!D15 -> 0 | E2: =+Jan!E15 -> 0 | F2: =+Jan!F15 -> 0 | G2: =+Jan!G15 -> 102.19 | H2: =+Jan!H15 -> 0 | I2: =+Jan!I15 -> 0 | J2: =SUM(C2:I2) -> 102.19
A3: February | C3: =+Feb!C15 -> 0 | D3: =+Feb!D15 -> 0 | E3: =+Feb!E15 -> 190 | F3: =+Feb!F15 -> 0 | G3: =+Feb!G15 -> 92.34 | H3: =+Feb!H15 -> 0 | I3: =+Feb!I15 -> 0 | J3: 282.34
A4: March | C4: =+Mar!C15 -> 0 | D4: =+Mar!D15 -> 0 | E4: =+Mar!E15 -> 0 | F4: =+Mar!F15 -> 0 | G4: =+Mar!G15 -> 0 | H4: =+Mar!H15 -> 0 | I4: =+Mar!I15 -> 0 | J4: 0
A5: April | C5: =+Apr!C15 -> 0 | D5: =+Apr!D15 -> 0 | E5: =+Apr!E15 -> 0 | F5: =+Apr!F15 -> 0 | G5: =+Apr!G15 -> 0 | H5: =+Apr!H15 -> 0 | I5: =+Apr!I15 -> 0 | J5: 0
A6: May | C6: =+May!C15 -> 0 | D6: =+May!D15 -> 0 | E6: =+May!E15 -> 0 | F6: =+May!F15 -> 0 | G6: =+May!G15 -> 0 | H6: =+May!H15 -> 0 | I6: =+May!I15 -> 0 | J6: 0
A7: June | C7: =+Jun!C15 -> 0 | D7: =+Jun!D15 -> 0 | E7: =+Jun!E15 -> 0 | F7: =+Jun!F15 -> 0 | G7: =+Jun!G15 -> 0 | H7: =+Jun!H15 -> 0 | I7: =+Jun!I15 -> 0 | J7: 0
A8: July | C8: =+Jul!C15 -> 0 | D8: =+Jul!D15 -> 0 | E8: =+Jul!E15 -> 0 | F8: =+Jul!F15 -> 0 | G8: =+Jul!G15 -> 0 | H8: =+Jul!H15 -> 0 | I8: =+Jul!I15 -> 0 | J8: 0
A9: August | C9: =+Aug!C15 -> 0 | D9: =+Aug!D15 -> 0 | E9: =+Aug!E15 -> 0 | F9: =+Aug!F15 -> 0 | G9: =+Aug!G15 -> 0 | H9: =+Aug!H15 -> 0 | I9: =+Aug!I15 -> 0 | J9: 0
A10: September | C10: =+Sep!C15 -> 0 | D10: =+Sep!D15 -> 0 | E10: =+Sep!E15 -> 0 | F10: =+Sep!F15 -> 0 | G10: =+Sep!G15 -> 0 | H10: =+Sep!H15 -> 0 | I10: =+Sep!I15 -> 0 | J10: 0
A11: October | C11: =+Oct!C15 -> 0 | D11: =+Oct!D15 -> 0 | E11: =+Oct!E15 -> 0 | F11: =+Oct!F15 -> 0 | G11: =+Oct!G15 -> 0 | H11: =+Oct!H15 -> 0 | I11: =+Oct!I15 -> 0 | J11: 0
A12: November | C12: =+Nov!C15 -> 0 | D12: =+Nov!D15 -> 0 | E12: =+Nov!E15 -> 0 | F12: =+Nov!F15 -> 0 | G12: =+Nov!G15 -> 0 | H12: =+Nov!H15 -> 0 | I12: =+Nov!I15 -> 0 | J12: 0
A13: December | C13: =+Dec!C15 -> 0 | D13: =+Dec!D15 -> 0 | E13: =+Dec!E15 -> 0 | F13: =+Dec!F15 -> 0 | G13: =+Dec!G15 -> 0 | H13: =+Dec!H15 -> 0 | I13: =+Dec!I15 -> 0 | J13: 0
A14: Total | C14: =SUM(C2:C13) -> 0 | D14: 0 | E14: 190 | F14: 0 | G14: 194.53 | H14: 0 | I14: 0 | J14: 384.53
A17: Fuel | C17: =+C14 -> 0
A18: Oils | C18: =D14 -> 0
A19: Spare Parts | C19: =+E14 -> 190
A20: Maintenance | C20: =+F14 -> 0
A21: Communication | C21: =+G14 -> 194.53
A22: Insurance | C22: =+H14 -> 0
A23: Stamp Exp | C23: =+I14 -> 0
A24: Total | C24: =+J14 -> 384.53
D28: Issue No | E28: Code | F28: Item Name | G28: Q | H28: P | I28: Value

Sheet 2724 س ر
A1: No Of Journal Entry | C1: Fuel | D1: Oils | E1: Spare Parts | F1: Maintenance | G1: Communication | H1: Insurance | I1: Stamp Exp | J1: Total
A2: January | C2: =+Jan!C16 -> 0 | D2: =+Jan!D16 -> 0 | E2: =+Jan!E16 -> 0 | F2: =+Jan!F16 -> 0 | G2: =+Jan!G16 -> 0 | H2: =+Jan!H16 -> 0 | I2: =+Jan!I16 -> 0 | J2: =SUM(C2:I2) -> 0
A3: February | C3: =+Feb!C16 -> 0 | D3: =+Feb!D16 -> 0 | E3: =+Feb!E16 -> 0 | F3: =+Feb!F16 -> 0 | G3: =+Feb!G16 -> 0 | H3: =+Feb!H16 -> 0 | I3: =+Feb!I16 -> 0 | J3: 0
A4: March | C4: =+Mar!C16 -> 0 | D4: =+Mar!D16 -> 0 | E4: =+Mar!E16 -> 0 | F4: =+Mar!F16 -> 0 | G4: =+Mar!G16 -> 0 | H4: =+Mar!H16 -> 0 | I4: =+Mar!I16 -> 0 | J4: 0
A5: April | C5: =+Apr!C16 -> 0 | D5: =+Apr!D16 -> 0 | E5: =+Apr!E16 -> 0 | F5: =+Apr!F16 -> 0 | G5: =+Apr!G16 -> 0 | H5: =+Apr!H16 -> 0 | I5: =+Apr!I16 -> 0 | J5: 0
A6: May | C6: =+May!C16 -> 0 | D6: =+May!D16 -> 0 | E6: =+May!E16 -> 0 | F6: =+May!F16 -> 0 | G6: =+May!G16 -> 0 | H6: =+May!H16 -> 0 | I6: =+May!I16 -> 0 | J6: 0
A7: June | C7: =+Jun!C16 -> 0 | D7: =+Jun!D16 -> 0 | E7: =+Jun!E16 -> 0 | F7: =+Jun!F16 -> 0 | G7: =+Jun!G16 -> 0 | H7: =+Jun!H16 -> 0 | I7: =+Jun!I16 -> 0 | J7: 0
A8: July | C8: =+Jul!C16 -> 0 | D8: =+Jul!D16 -> 0 | E8: =+Jul!E16 -> 0 | F8: =+Jul!F16 -> 0 | G8: =+Jul!G16 -> 0 | H8: =+Jul!H16 -> 0 | I8: =+Jul!I16 -> 0 | J8: 0
A9: August | C9: =+Aug!C16 -> 0 | D9: =+Aug!D16 -> 0 | E9: =+Aug!E16 -> 0 | F9: =+Aug!F16 -> 0 | G9: =+Aug!G16 -> 0 | H9: =+Aug!H16 -> 0 | I9: =+Aug!I16 -> 0 | J9: 0
A10: September | C10: =+Sep!C16 -> 0 | D10: =+Sep!D16 -> 0 | E10: =+Sep!E16 -> 0 | F10: =+Sep!F16 -> 0 | G10: =+Sep!G16 -> 0 | H10: =+Sep!H16 -> 0 | I10: =+Sep!I16 -> 0 | J10: 0
A11: October | C11: =+Oct!C16 -> 0 | D11: =+Oct!D16 -> 0 | E11: =+Oct!E16 -> 0 | F11: =+Oct!F16 -> 0 | G11: =+Oct!G16 -> 0 | H11: =+Oct!H16 -> 0 | I11: =+Oct!I16 -> 0 | J11: 0
A12: November | C12: =+Nov!C16 -> 0 | D12: =+Nov!D16 -> 0 | E12: =+Nov!E16 -> 0 | F12: =+Nov!F16 -> 0 | G12: =+Nov!G16 -> 0 | H12: =+Nov!H16 -> 0 | I12: =+Nov!I16 -> 0 | J12: 0
A13: December | C13: =+Dec!C16 -> 0 | D13: =+Dec!D16 -> 0 | E13: =+Dec!E16 -> 0 | F13: =+Dec!F16 -> 0 | G13: =+Dec!G16 -> 0 | H13: =+Dec!H16 -> 0 | I13: =+Dec!I16 -> 0 | J13: 0
A14: Total | C14: =SUM(C2:C13) -> 0 | D14: 0 | E14: 0 | F14: 0 | G14: 0 | H14: 0 | I14: 0 | J14: 0
A17: Fuel | C17: =+C14 -> 0
A18: Oils | C18: =D14 -> 0
A19: Spare Parts | C19: =+E14 -> 0
A20: Maintenance | C20: =+F14 -> 0
A21: Communication | C21: =+G14 -> 0
A22: Insurance | C22: =+H14 -> 0
A23: Stamp Exp | C23: =+I14 -> 0
A24: Total | C24: =+J14 -> 0
D28: Issue No | E28: Code | F28: Item Name | G28: Q | H28: P | I28: Value

Sheet 2793 ب س
A1: No Of Journal Entry | C1: Fuel | D1: Oils | E1: Spare Parts | F1: Maintenance | G1: Communication | H1: Insurance | I1: Stamp Exp | J1: Total
A2: January | C2: =+Jan!C17 -> 3375 | D2: =+Jan!D17 -> 723.2 | E2: =+Jan!E17 -> 63335.69 | F2: =+Jan!F17 -> 20 | G2: =+Jan!G17 -> 194.53 | H2: =+Jan!H17 -> 0 | I2: =+Jan!I17 -> 380 | J2: =SUM(C2:I2) -> 68028.42
A3: February | C3: =+Feb!C17 -> 3075 | D3: =+Feb!D17 -> 361.6042119 | E3: =+Feb!E17 -> 1300.362351 | F3: =+Feb!F17 -> 180 | G3: =+Feb!G17 -> 184.68 | H3: =+Feb!H17 -> 0 | I3: =+Feb!I17 -> 180 | J3: 5281.646563
A4: March | C4: =+Mar!C17 -> 0 | D4: =+Mar!D17 -> 0 | E4: =+Mar!E17 -> 0 | F4: =+Mar!F17 -> 0 | G4: =+Mar!G17 -> 0 | H4: =+Mar!H17 -> 0 | I4: =+Mar!I17 -> 0 | J4: 0
A5: April | C5: =+Apr!C17 -> 0 | D5: =+Apr!D17 -> 0 | E5: =+Apr!E17 -> 0 | F5: =+Apr!F17 -> 0 | G5: =+Apr!G17 -> 0 | H5: =+Apr!H17 -> 0 | I5: =+Apr!I17 -> 0 | J5: 0
A6: May | C6: =+May!C17 -> 0 | D6: =+May!D17 -> 0 | E6: =+May!E17 -> 0 | F6: =+May!F17 -> 0 | G6: =+May!G17 -> 0 | H6: =+May!H17 -> 0 | I6: =+May!I17 -> 0 | J6: 0
A7: June | C7: =+Jun!C17 -> 0 | D7: =+Jun!D17 -> 0 | E7: =+Jun!E17 -> 0 | F7: =+Jun!F17 -> 0 | G7: =+Jun!G17 -> 0 | H7: =+Jun!H17 -> 0 | I7: =+Jun!I17 -> 0 | J7: 0
A8: July | C8: =+Jul!C17 -> 0 | D8: =+Jul!D17 -> 0 | E8: =+Jul!E17 -> 0 | F8: =+Jul!F17 -> 0 | G8: =+Jul!G17 -> 0 | H8: =+Jul!H17 -> 0 | I8: =+Jul!I17 -> 0 | J8: 0
A9: August | C9: =+Aug!C17 -> 0 | D9: =+Aug!D17 -> 0 | E9: =+Aug!E17 -> 0 | F9: =+Aug!F17 -> 0 | G9: =+Aug!G17 -> 0 | H9: =+Aug!H17 -> 0 | I9: =+Aug!I17 -> 0 | J9: 0
A10: September | C10: =+Sep!C17 -> 0 | D10: =+Sep!D17 -> 0 | E10: =+Sep!E17 -> 0 | F10: =+Sep!F17 -> 0 | G10: =+Sep!G17 -> 0 | H10: =+Sep!H17 -> 0 | I10: =+Sep!I17 -> 0 | J10: 0
A11: October | C11: =+Oct!C17 -> 0 | D11: =+Oct!D17 -> 0 | E11: =+Oct!E17 -> 0 | F11: =+Oct!F17 -> 0 | G11: =+Oct!G17 -> 0 | H11: =+Oct!H17 -> 0 | I11: =+Oct!I17 -> 0 | J11: 0
A12: November | C12: =+Nov!C17 -> 0 | D12: =+Nov!D17 -> 0 | E12: =+Nov!E17 -> 0 | F12: =+Nov!F17 -> 0 | G12: =+Nov!G17 -> 0 | H12: =+Nov!H17 -> 0 | I12: =+Nov!I17 -> 0 | J12: 0
A13: December | C13: =+Dec!C17 -> 0 | D13: =+Dec!D17 -> 0 | E13: =+Dec!E17 -> 0 | F13: =+Dec!F17 -> 0 | G13: =+Dec!G17 -> 0 | H13: =+Dec!H17 -> 0 | I13: =+Dec!I17 -> 0 | J13: 0
A14: Total | C14: =SUM(C2:C13) -> 6450 | D14: 1084.804212 | E14: 64636.05235 | F14: 200 | G14: 379.21 | H14: 0 | I14: 560 | J14: 73310.06656
A17: Fuel | C17: =+C14 -> 6450
A18: Oils | C18: =D14 -> 1084.804212
A19: Spare Parts | C19: =+E14 -> 64636.05235
A20: Maintenance | C20: =+F14 -> 200
A21: Communication | C21: =+G14 -> 379.21
A22: Insurance | C22: =+H14 -> 0
A23: Stamp Exp | C23: =+I14 -> 560
A24: Total | C24: =+J14 -> 73310.06656
D28: Issue No | E28: Code | F28: Item Name | G28: Q | H28: P | I28: Value

Sheet 3725 ه س
A1: No Of Journal Entry | C1: Fuel | D1: Oils | E1: Spare Parts | F1: Maintenance | G1: Communication | H1: Insurance | I1: Stamp Exp | J1: Total
A2: January | C2: =+Jan!C18 -> 0 | D2: =+Jan!D18 -> 0 | E2: =+Jan!E18 -> 0 | F2: =+Jan!F18 -> 0 | G2: =+Jan!G18 -> 24.85 | H2: =+Jan!H18 -> 0 | I2: =+Jan!I18 -> 0 | J2: =SUM(C2:I2) -> 24.85
A3: February | C3: =+Feb!C18 -> 0 | D3: =+Feb!D18 -> 0 | E3: =+Feb!E18 -> 0 | F3: =+Feb!F18 -> 0 | G3: =+Feb!G18 -> 15 | H3: =+Feb!H18 -> 0 | I3: =+Feb!I18 -> 0 | J3: 15
A4: March | C4: =+Mar!C18 -> 0 | D4: =+Mar!D18 -> 0 | E4: =+Mar!E18 -> 0 | F4: =+Mar!F18 -> 0 | G4: =+Mar!G18 -> 0 | H4: =+Mar!H18 -> 0 | I4: =+Mar!I18 -> 0 | J4: 0
A5: April | C5: =+Apr!C18 -> 0 | D5: =+Apr!D18 -> 0 | E5: =+Apr!E18 -> 0 | F5: =+Apr!F18 -> 0 | G5: =+Apr!G18 -> 0 | H5: =+Apr!H18 -> 0 | I5: =+Apr!I18 -> 0 | J5: 0
A6: May | C6: =+May!C18 -> 0 | D6: =+May!D18 -> 0 | E6: =+May!E18 -> 0 | F6: =+May!F18 -> 0 | G6: =+May!G18 -> 0 | H6: =+May!H18 -> 0 | I6: =+May!I18 -> 0 | J6: 0
A7: June | C7: =+Jun!C18 -> 0 | D7: =+Jun!D18 -> 0 | E7: =+Jun!E18 -> 0 | F7: =+Jun!F18 -> 0 | G7: =+Jun!G18 -> 0 | H7: =+Jun!H18 -> 0 | I7: =+Jun!I18 -> 0 | J7: 0
A8: July | C8: =+Jul!C18 -> 0 | D8: =+Jul!D18 -> 0 | E8: =+Jul!E18 -> 0 | F8: =+Jul!F18 -> 0 | G8: =+Jul!G18 -> 0 | H8: =+Jul!H18 -> 0 | I8: =+Jul!I18 -> 0 | J8: 0
A9: August | C9: =+Aug!C18 -> 0 | D9: =+Aug!D18 -> 0 | E9: =+Aug!E18 -> 0 | F9: =+Aug!F18 -> 0 | G9: =+Aug!G18 -> 0 | H9: =+Aug!H18 -> 0 | I9: =+Aug!I18 -> 0 | J9: 0
A10: September | C10: =+Sep!C18 -> 0 | D10: =+Sep!D18 -> 0 | E10: =+Sep!E18 -> 0 | F10: =+Sep!F18 -> 0 | G10: =+Sep!G18 -> 0 | H10: =+Sep!H18 -> 0 | I10: =+Sep!I18 -> 0 | J10: 0
A11: October | C11: =+Oct!C18 -> 0 | D11: =+Oct!D18 -> 0 | E11: =+Oct!E18 -> 0 | F11: =+Oct!F18 -> 0 | G11: =+Oct!G18 -> 0 | H11: =+Oct!H18 -> 0 | I11: =+Oct!I18 -> 0 | J11: 0
A12: November | C12: =+Nov!C18 -> 0 | D12: =+Nov!D18 -> 0 | E12: =+Nov!E18 -> 0 | F12: =+Nov!F18 -> 0 | G12: =+Nov!G18 -> 0 | H12: =+Nov!H18 -> 0 | I12: =+Nov!I18 -> 0 | J12: 0
A13: December | C13: =+Dec!C18 -> 0 | D13: =+Dec!D18 -> 0 | E13: =+Dec!E18 -> 0 | F13: =+Dec!F18 -> 0 | G13: =+Dec!G18 -> 0 | H13: =+Dec!H18 -> 0 | I13: =+Dec!I18 -> 0 | J13: 0
A14: Total | C14: =SUM(C2:C13) -> 0 | D14: 0 | E14: 0 | F14: 0 | G14: 39.85 | H14: 0 | I14: 0 | J14: 39.85
A17: Fuel | C17: =+C14 -> 0
A18: Oils | C18: =D14 -> 0
A19: Spare Parts | C19: =+E14 -> 0
A20: Maintenance | C20: =+F14 -> 0
A21: Communication | C21: =+G14 -> 39.85
A22: Insurance | C22: =+H14 -> 0
A23: Stamp Exp | C23: =+I14 -> 0
A24: Total | C24: =+J14 -> 39.85
D28: Issue No | E28: Code | F28: Item Name | G28: Q | H28: P | I28: Value

Sheet 4157 ب س
A1: No Of Journal Entry | C1: Fuel | D1: Oils | E1: Spare Parts | F1: Maintenance | G1: Communication | H1: Insurance | I1: Stamp Exp | J1: Total
A2: January | C2: =+Jan!C19 -> 1825 | D2: =+Jan!D19 -> 0 | E2: =+Jan!E19 -> 340 | F2: =+Jan!F19 -> 0 | G2: =+Jan!G19 -> 24.85 | H2: =+Jan!H19 -> 0 | I2: =+Jan!I19 -> 230 | J2: =SUM(C2:I2) -> 2419.85
A3: February | C3: =+Feb!C19 -> 1365 | D3: =+Feb!D19 -> 0 | E3: =+Feb!E19 -> 0 | F3: =+Feb!F19 -> 140 | G3: =+Feb!G19 -> 15 | H3: =+Feb!H19 -> 0 | I3: =+Feb!I19 -> 330 | J3: 1850
A4: March | C4: =+Mar!C19 -> 0 | D4: =+Mar!D19 -> 0 | E4: =+Mar!E19 -> 0 | F4: =+Mar!F19 -> 0 | G4: =+Mar!G19 -> 0 | H4: =+Mar!H19 -> 0 | I4: =+Mar!I19 -> 0 | J4: 0
A5: April | C5: =+Apr!C19 -> 0 | D5: =+Apr!D19 -> 0 | E5: =+Apr!E19 -> 0 | F5: =+Apr!F19 -> 0 | G5: =+Apr!G19 -> 0 | H5: =+Apr!H19 -> 0 | I5: =+Apr!I19 -> 0 | J5: 0
A6: May | C6: =+May!C19 -> 0 | D6: =+May!D19 -> 0 | E6: =+May!E19 -> 0 | F6: =+May!F19 -> 0 | G6: =+May!G19 -> 0 | H6: =+May!H19 -> 0 | I6: =+May!I19 -> 0 | J6: 0
A7: June | C7: =+Jun!C19 -> 0 | D7: =+Jun!D19 -> 0 | E7: =+Jun!E19 -> 0 | F7: =+Jun!F19 -> 0 | G7: =+Jun!G19 -> 0 | H7: =+Jun!H19 -> 0 | I7: =+Jun!I19 -> 0 | J7: 0
A8: July | C8: =+Jul!C19 -> 0 | D8: =+Jul!D19 -> 0 | E8: =+Jul!E19 -> 0 | F8: =+Jul!F19 -> 0 | G8: =+Jul!G19 -> 0 | H8: =+Jul!H19 -> 0 | I8: =+Jul!I19 -> 0 | J8: 0
A9: August | C9: =+Aug!C19 -> 0 | D9: =+Aug!D19 -> 0 | E9: =+Aug!E19 -> 0 | F9: =+Aug!F19 -> 0 | G9: =+Aug!G19 -> 0 | H9: =+Aug!H19 -> 0 | I9: =+Aug!I19 -> 0 | J9: 0
A10: September | C10: =+Sep!C19 -> 0 | D10: =+Sep!D19 -> 0 | E10: =+Sep!E19 -> 0 | F10: =+Sep!F19 -> 0 | G10: =+Sep!G19 -> 0 | H10: =+Sep!H19 -> 0 | I10: =+Sep!I19 -> 0 | J10: 0
A11: October | C11: =+Oct!C19 -> 0 | D11: =+Oct!D19 -> 0 | E11: =+Oct!E19 -> 0 | F11: =+Oct!F19 -> 0 | G11: =+Oct!G19 -> 0 | H11: =+Oct!H19 -> 0 | I11: =+Oct!I19 -> 0 | J11: 0
A12: November | C12: =+Nov!C19 -> 0 | D12: =+Nov!D19 -> 0 | E12: =+Nov!E19 -> 0 | F12: =+Nov!F19 -> 0 | G12: =+Nov!G19 -> 0 | H12: =+Nov!H19 -> 0 | I12: =+Nov!I19 -> 0 | J12: 0
A13: December | C13: =+Dec!C19 -> 0 | D13: =+Dec!D19 -> 0 | E13: =+Dec!E19 -> 0 | F13: =+Dec!F19 -> 0 | G13: =+Dec!G19 -> 0 | H13: =+Dec!H19 -> 0 | I13: =+Dec!I19 -> 0 | J13: 0
A14: Total | C14: =SUM(C2:C13) -> 3190 | D14: 0 | E14: 340 | F14: 140 | G14: 39.85 | H14: 0 | I14: 560 | J14: 4269.85
A17: Fuel | C17: =+C14 -> 3190
A18: Oils | C18: =D14 -> 0
A19: Spare Parts | C19: =+E14 -> 340
A20: Maintenance | C20: =+F14 -> 140
A21: Communication | C21: =+G14 -> 39.85
A22: Insurance | C22: =+H14 -> 0
A23: Stamp Exp | C23: =+I14 -> 560
A24: Total | C24: =+J14 -> 4269.85
D28: Issue No | E28: Code | F28: Item Name | G28: Q | H28: P | I28: Value

Sheet 4172 ج س
A1: No Of Journal Entry | C1: Fuel | D1: Oils | E1: Spare Parts | F1: Maintenance | G1: Communication | H1: Insurance | I1: Stamp Exp | J1: Total
A2: January | C2: =+Jan!C20 -> 0 | D2: =+Jan!D20 -> 0 | E2: =+Jan!E20 -> 0 | F2: =+Jan!F20 -> 0 | G2: =+Jan!G20 -> 0 | H2: =+Jan!H20 -> 0 | I2: =+Jan!I20 -> 0 | J2: =SUM(C2:I2) -> 0
A3: February | C3: =+Feb!C20 -> 0 | D3: =+Feb!D20 -> 0 | E3: =+Feb!E20 -> 0 | F3: =+Feb!F20 -> 0 | G3: =+Feb!G20 -> 0 | H3: =+Feb!H20 -> 0 | I3: =+Feb!I20 -> 0 | J3: 0
A4: March | C4: =+Mar!C20 -> 0 | D4: =+Mar!D20 -> 0 | E4: =+Mar!E20 -> 0 | F4: =+Mar!F20 -> 0 | G4: =+Mar!G20 -> 0 | H4: =+Mar!H20 -> 0 | I4: =+Mar!I20 -> 0 | J4: 0
A5: April | C5: =+Apr!C20 -> 0 | D5: =+Apr!D20 -> 0 | E5: =+Apr!E20 -> 0 | F5: =+Apr!F20 -> 0 | G5: =+Apr!G20 -> 0 | H5: =+Apr!H20 -> 0 | I5: =+Apr!I20 -> 0 | J5: 0
A6: May | C6: =+May!C20 -> 0 | D6: =+May!D20 -> 0 | E6: =+May!E20 -> 0 | F6: =+May!F20 -> 0 | G6: =+May!G20 -> 0 | H6: =+May!H20 -> 0 | I6: =+May!I20 -> 0 | J6: 0
A7: June | C7: =+Jun!C20 -> 0 | D7: =+Jun!D20 -> 0 | E7: =+Jun!E20 -> 0 | F7: =+Jun!F20 -> 0 | G7: =+Jun!G20 -> 0 | H7: =+Jun!H20 -> 0 | I7: =+Jun!I20 -> 0 | J7: 0
A8: July | C8: =+Jul!C20 -> 0 | D8: =+Jul!D20 -> 0 | E8: =+Jul!E20 -> 0 | F8: =+Jul!F20 -> 0 | G8: =+Jul!G20 -> 0 | H8: =+Jul!H20 -> 0 | I8: =+Jul!I20 -> 0 | J8: 0
A9: August | C9: =+Aug!C20 -> 0 | D9: =+Aug!D20 -> 0 | E9: =+Aug!E20 -> 0 | F9: =+Aug!F20 -> 0 | G9: =+Aug!G20 -> 0 | H9: =+Aug!H20 -> 0 | I9: =+Aug!I20 -> 0 | J9: 0
A10: September | C10: =+Sep!C20 -> 0 | D10: =+Sep!D20 -> 0 | E10: =+Sep!E20 -> 0 | F10: =+Sep!F20 -> 0 | G10: =+Sep!G20 -> 0 | H10: =+Sep!H20 -> 0 | I10: =+Sep!I20 -> 0 | J10: 0
A11: October | C11: =+Oct!C20 -> 0 | D11: =+Oct!D20 -> 0 | E11: =+Oct!E20 -> 0 | F11: =+Oct!F20 -> 0 | G11: =+Oct!G20 -> 0 | H11: =+Oct!H20 -> 0 | I11: =+Oct!I20 -> 0 | J11: 0
A12: November | C12: =+Nov!C20 -> 0 | D12: =+Nov!D20 -> 0 | E12: =+Nov!E20 -> 0 | F12: =+Nov!F20 -> 0 | G12: =+Nov!G20 -> 0 | H12: =+Nov!H20 -> 0 | I12: =+Nov!I20 -> 0 | J12: 0
A13: December | C13: =+Dec!C20 -> 0 | D13: =+Dec!D20 -> 0 | E13: =+Dec!E20 -> 0 | F13: =+Dec!F20 -> 0 | G13: =+Dec!G20 -> 0 | H13: =+Dec!H20 -> 0 | I13: =+Dec!I20 -> 0 | J13: 0
A14: Total | C14: =SUM(C2:C13) -> 0 | D14: 0 | E14: 0 | F14: 0 | G14: 0 | H14: 0 | I14: 0 | J14: 0
A17: Fuel | C17: =+C14 -> 0
A18: Oils | C18: =D14 -> 0
A19: Spare Parts | C19: =+E14 -> 0
A20: Maintenance | C20: =+F14 -> 0
A21: Communication | C21: =+G14 -> 0
A22: Insurance | C22: =+H14 -> 0
A23: Stamp Exp | C23: =+I14 -> 0
A24: Total | C24: =+J14 -> 0
D28: Issue No | E28: Code | F28: Item Name | G28: Q | H28: P | I28: Value

Sheet 4178 ج س
A1: No Of Journal Entry | C1: Fuel | D1: Oils | E1: Spare Parts | F1: Maintenance | G1: Communication | H1: Insurance | I1: Stamp Exp | J1: Total
A2: January | C2: =+Jan!C21 -> 10307.1 | D2: =+Jan!D21 -> 406.8 | E2: =+Jan!E21 -> 340.4 | F2: =+Jan!F21 -> 120 | G2: =+Jan!G21 -> 102.19 | H2: =+Jan!H21 -> 0 | I2: =+Jan!I21 -> 5045 | J2: =SUM(C2:I2) -> 16321.49
A3: February | C3: =+Feb!C21 -> 7520 | D3: =+Feb!D21 -> 739.3 | E3: =+Feb!E21 -> 2531.802681 | F3: =+Feb!F21 -> 25 | G3: =+Feb!G21 -> 92.34 | H3: =+Feb!H21 -> 0 | I3: =+Feb!I21 -> 4060 | J3: 14968.44268
A4: March | C4: =+Mar!C21 -> 0 | D4: =+Mar!D21 -> 0 | E4: =+Mar!E21 -> 0 | F4: =+Mar!F21 -> 0 | G4: =+Mar!G21 -> 0 | H4: =+Mar!H21 -> 0 | I4: =+Mar!I21 -> 0 | J4: 0
A5: April | C5: =+Apr!C21 -> 0 | D5: =+Apr!D21 -> 0 | E5: =+Apr!E21 -> 0 | F5: =+Apr!F21 -> 0 | G5: =+Apr!G21 -> 0 | H5: =+Apr!H21 -> 0 | I5: =+Apr!I21 -> 0 | J5: 0
A6: May | C6: =+May!C21 -> 0 | D6: =+May!D21 -> 0 | E6: =+May!E21 -> 0 | F6: =+May!F21 -> 0 | G6: =+May!G21 -> 0 | H6: =+May!H21 -> 0 | I6: =+May!I21 -> 0 | J6: 0
A7: June | C7: =+Jun!C21 -> 0 | D7: =+Jun!D21 -> 0 | E7: =+Jun!E21 -> 0 | F7: =+Jun!F21 -> 0 | G7: =+Jun!G21 -> 0 | H7: =+Jun!H21 -> 0 | I7: =+Jun!I21 -> 0 | J7: 0
A8: July | C8: =+Jul!C21 -> 0 | D8: =+Jul!D21 -> 0 | E8: =+Jul!E21 -> 0 | F8: =+Jul!F21 -> 0 | G8: =+Jul!G21 -> 0 | H8: =+Jul!H21 -> 0 | I8: =+Jul!I21 -> 0 | J8: 0
A9: August | C9: =+Aug!C21 -> 0 | D9: =+Aug!D21 -> 0 | E9: =+Aug!E21 -> 0 | F9: =+Aug!F21 -> 0 | G9: =+Aug!G21 -> 0 | H9: =+Aug!H21 -> 0 | I9: =+Aug!I21 -> 0 | J9: 0
A10: September | C10: =+Sep!C21 -> 0 | D10: =+Sep!D21 -> 0 | E10: =+Sep!E21 -> 0 | F10: =+Sep!F21 -> 0 | G10: =+Sep!G21 -> 0 | H10: =+Sep!H21 -> 0 | I10: =+Sep!I21 -> 0 | J10: 0
A11: October | C11: =+Oct!C21 -> 0 | D11: =+Oct!D21 -> 0 | E11: =+Oct!E21 -> 0 | F11: =+Oct!F21 -> 0 | G11: =+Oct!G21 -> 0 | H11: =+Oct!H21 -> 0 | I11: =+Oct!I21 -> 0 | J11: 0
A12: November | C12: =+Nov!C21 -> 0 | D12: =+Nov!D21 -> 0 | E12: =+Nov!E21 -> 0 | F12: =+Nov!F21 -> 0 | G12: =+Nov!G21 -> 0 | H12: =+Nov!H21 -> 0 | I12: =+Nov!I21 -> 0 | J12: 0
A13: December | C13: =+Dec!C21 -> 0 | D13: =+Dec!D21 -> 0 | E13: =+Dec!E21 -> 0 | F13: =+Dec!F21 -> 0 | G13: =+Dec!G21 -> 0 | H13: =+Dec!H21 -> 0 | I13: =+Dec!I21 -> 0 | J13: 0
A14: Total | C14: =SUM(C2:C13) -> 17827.1 | D14: 1146.1 | E14: 2872.202681 | F14: 145 | G14: 194.53 | H14: 0 | I14: 9105 | J14: 31289.93268
A17: Fuel | C17: =+C14 -> 17827.1
A18: Oils | C18: =D14 -> 1146.1
A19: Spare Parts | C19: =+E14 -> 2872.202681
A20: Maintenance | C20: =+F14 -> 145
A21: Communication | C21: =+G14 -> 194.53
A22: Insurance | C22: =+H14 -> 0
A23: Stamp Exp | C23: =+I14 -> 9105
A24: Total | C24: =+J14 -> 31289.93268
D28: Issue No | E28: Code | F28: Item Name | G28: Q | H28: P | I28: Value

Sheet 5374 س ي ر
A1: No Of Journal Entry | C1: Fuel | D1: Oils | E1: Spare Parts | F1: Maintenance | G1: Communication | H1: Insurance | I1: Stamp Exp | J1: Total
A2: January | C2: =+Jan!C22 -> 0 | D2: =+Jan!D22 -> 0 | E2: =+Jan!E22 -> 0 | F2: =+Jan!F22 -> 0 | G2: =+Jan!G22 -> 163.75 | H2: =+Jan!H22 -> 0 | I2: =+Jan!I22 -> 85 | J2: =SUM(C2:I2) -> 248.75
A3: February | C3: =+Feb!C22 -> 0 | D3: =+Feb!D22 -> 0 | E3: =+Feb!E22 -> 3949.340342 | F3: =+Feb!F22 -> 50 | G3: =+Feb!G22 -> 153.9 | H3: =+Feb!H22 -> 0 | I3: =+Feb!I22 -> 0 | J3: 4153.240342
A4: March | C4: =+Mar!C22 -> 0 | D4: =+Mar!D22 -> 0 | E4: =+Mar!E22 -> 0 | F4: =+Mar!F22 -> 0 | G4: =+Mar!G22 -> 0 | H4: =+Mar!H22 -> 0 | I4: =+Mar!I22 -> 0 | J4: 0
A5: April | C5: =+Apr!C22 -> 0 | D5: =+Apr!D22 -> 0 | E5: =+Apr!E22 -> 0 | F5: =+Apr!F22 -> 0 | G5: =+Apr!G22 -> 0 | H5: =+Apr!H22 -> 0 | I5: =+Apr!I22 -> 0 | J5: 0
A6: May | C6: =+May!C22 -> 0 | D6: =+May!D22 -> 0 | E6: =+May!E22 -> 0 | F6: =+May!F22 -> 0 | G6: =+May!G22 -> 0 | H6: =+May!H22 -> 0 | I6: =+May!I22 -> 0 | J6: 0
A7: June | C7: =+Jun!C22 -> 0 | D7: =+Jun!D22 -> 0 | E7: =+Jun!E22 -> 0 | F7: =+Jun!F22 -> 0 | G7: =+Jun!G22 -> 0 | H7: =+Jun!H22 -> 0 | I7: =+Jun!I22 -> 0 | J7: 0
A8: July | C8: =+Jul!C22 -> 0 | D8: =+Jul!D22 -> 0 | E8: =+Jul!E22 -> 0 | F8: =+Jul!F22 -> 0 | G8: =+Jul!G22 -> 0 | H8: =+Jul!H22 -> 0 | I8: =+Jul!I22 -> 0 | J8: 0
A9: August | C9: =+Aug!C22 -> 0 | D9: =+Aug!D22 -> 0 | E9: =+Aug!E22 -> 0 | F9: =+Aug!F22 -> 0 | G9: =+Aug!G22 -> 0 | H9: =+Aug!H22 -> 0 | I9: =+Aug!I22 -> 0 | J9: 0
A10: September | C10: =+Sep!C22 -> 0 | D10: =+Sep!D22 -> 0 | E10: =+Sep!E22 -> 0 | F10: =+Sep!F22 -> 0 | G10: =+Sep!G22 -> 0 | H10: =+Sep!H22 -> 0 | I10: =+Sep!I22 -> 0 | J10: 0
A11: October | C11: =+Oct!C22 -> 0 | D11: =+Oct!D22 -> 0 | E11: =+Oct!E22 -> 0 | F11: =+Oct!F22 -> 0 | G11: =+Oct!G22 -> 0 | H11: =+Oct!H22 -> 0 | I11: =+Oct!I22 -> 0 | J11: 0
A12: November | C12: =+Nov!C22 -> 0 | D12: =+Nov!D22 -> 0 | E12: =+Nov!E22 -> 0 | F12: =+Nov!F22 -> 0 | G12: =+Nov!G22 -> 0 | H12: =+Nov!H22 -> 0 | I12: =+Nov!I22 -> 0 | J12: 0
A13: December | C13: =+Dec!C22 -> 0 | D13: =+Dec!D22 -> 0 | E13: =+Dec!E22 -> 0 | F13: =+Dec!F22 -> 0 | G13: =+Dec!G22 -> 0 | H13: =+Dec!H22 -> 0 | I13: =+Dec!I22 -> 0 | J13: 0
A14: Total | C14: =SUM(C2:C13) -> 0 | D14: 0 | E14: 3949.340342 | F14: 50 | G14: 317.65 | H14: 0 | I14: 85 | J14: 4401.990342
A17: Fuel | C17: =+C14 -> 0
A18: Oils | C18: =D14 -> 0
A19: Spare Parts | C19: =+E14 -> 3949.340342
A20: Maintenance | C20: =+F14 -> 50
A21: Communication | C21: =+G14 -> 317.65
A22: Insurance | C22: =+H14 -> 0
A23: Stamp Exp | C23: =+I14 -> 85
A24: Total | C24: =+J14 -> 4401.990342
D28: Issue No | E28: Code | F28: Item Name | G28: Q | H28: P | I28: Value

Sheet 5963 ج س
A1: No Of Journal Entry | C1: Fuel | D1: Oils | E1: Spare Parts | F1: Maintenance | G1: Communication | H1: Insurance | I1: Stamp Exp | J1: Total
A2: January | C2: =+Jan!C23 -> 340 | D2: =+Jan!D23 -> 0 | E2: =+Jan!E23 -> 0 | F2: =+Jan!F23 -> 0 | G2: =+Jan!G23 -> 102.19 | H2: =+Jan!H23 -> 0 | I2: =+Jan!I23 -> 160 | J2: =SUM(C2:I2) -> 602.19
A3: February | C3: =+Feb!C23 -> 4300 | D3: =+Feb!D23 -> 0 | E3: =+Feb!E23 -> 4223.124983 | F3: =+Feb!F23 -> 160 | G3: =+Feb!G23 -> 92.34 | H3: =+Feb!H23 -> 2555 | I3: =+Feb!I23 -> 1960 | J3: 13290.46498
A4: March | C4: =+Mar!C23 -> 0 | D4: =+Mar!D23 -> 0 | E4: =+Mar!E23 -> 0 | F4: =+Mar!F23 -> 0 | G4: =+Mar!G23 -> 0 | H4: =+Mar!H23 -> 0 | I4: =+Mar!I23 -> 0 | J4: 0
A5: April | C5: =+Apr!C23 -> 0 | D5: =+Apr!D23 -> 0 | E5: =+Apr!E23 -> 0 | F5: =+Apr!F23 -> 0 | G5: =+Apr!G23 -> 0 | H5: =+Apr!H23 -> 0 | I5: =+Apr!I23 -> 0 | J5: 0
A6: May | C6: =+May!C23 -> 0 | D6: =+May!D23 -> 0 | E6: =+May!E23 -> 0 | F6: =+May!F23 -> 0 | G6: =+May!G23 -> 0 | H6: =+May!H23 -> 0 | I6: =+May!I23 -> 0 | J6: 0
A7: June | C7: =+Jun!C23 -> 0 | D7: =+Jun!D23 -> 0 | E7: =+Jun!E23 -> 0 | F7: =+Jun!F23 -> 0 | G7: =+Jun!G23 -> 0 | H7: =+Jun!H23 -> 0 | I7: =+Jun!I23 -> 0 | J7: 0
A8: July | C8: =+Jul!C23 -> 0 | D8: =+Jul!D23 -> 0 | E8: =+Jul!E23 -> 0 | F8: =+Jul!F23 -> 0 | G8: =+Jul!G23 -> 0 | H8: =+Jul!H23 -> 0 | I8: =+Jul!I23 -> 0 | J8: 0
A9: August | C9: =+Aug!C23 -> 0 | D9: =+Aug!D23 -> 0 | E9: =+Aug!E23 -> 0 | F9: =+Aug!F23 -> 0 | G9: =+Aug!G23 -> 0 | H9: =+Aug!H23 -> 0 | I9: =+Aug!I23 -> 0 | J9: 0
A10: September | C10: =+Sep!C23 -> 0 | D10: =+Sep!D23 -> 0 | E10: =+Sep!E23 -> 0 | F10: =+Sep!F23 -> 0 | G10: =+Sep!G23 -> 0 | H10: =+Sep!H23 -> 0 | I10: =+Sep!I23 -> 0 | J10: 0
A11: October | C11: =+Oct!C23 -> 0 | D11: =+Oct!D23 -> 0 | E11: =+Oct!E23 -> 0 | F11: =+Oct!F23 -> 0 | G11: =+Oct!G23 -> 0 | H11: =+Oct!H23 -> 0 | I11: =+Oct!I23 -> 0 | J11: 0
A12: November | C12: =+Nov!C23 -> 0 | D12: =+Nov!D23 -> 0 | E12: =+Nov!E23 -> 0 | F12: =+Nov!F23 -> 0 | G12: =+Nov!G23 -> 0 | H12: =+Nov!H23 -> 0 | I12: =+Nov!I23 -> 0 | J12: 0
A13: December | C13: =+Dec!C23 -> 0 | D13: =+Dec!D23 -> 0 | E13: =+Dec!E23 -> 0 | F13: =+Dec!F23 -> 0 | G13: =+Dec!G23 -> 0 | H13: =+Dec!H23 -> 0 | I13: =+Dec!I23 -> 0 | J13: 0
A14: Total | C14: =SUM(C2:C13) -> 4640 | D14: 0 | E14: 4223.124983 | F14: 160 | G14: 194.53 | H14: 2555 | I14: 2120 | J14: 13892.65498
A17: Fuel | C17: =+C14 -> 4640
A18: Oils | C18: =D14 -> 0
A19: Spare Parts | C19: =+E14 -> 4223.124983
A20: Maintenance | C20: =+F14 -> 160
A21: Communication | C21: =+G14 -> 194.53
A22: Insurance | C22: =+H14 -> 2555
A23: Stamp Exp | C23: =+I14 -> 2120
A24: Total | C24: =+J14 -> 13892.65498
D28: Issue No | E28: Code | F28: Item Name | G28: Q | H28: P | I28: Value

Sheet 6159 ق ن
A1: No Of Journal Entry | C1: Fuel | D1: Oils | E1: Spare Parts | F1: Maintenance | G1: Communication | H1: Insurance | I1: Stamp Exp | J1: Total
A2: January | C2: =+Jan!C24 -> 3540 | D2: =+Jan!D24 -> 45.2 | E2: =+Jan!E24 -> 0 | F2: =+Jan!F24 -> 140 | G2: =+Jan!G24 -> 102.19 | H2: =+Jan!H24 -> 0 | I2: =+Jan!I24 -> 0 | J2: =SUM(C2:I2) -> 3827.39
A3: February | C3: =+Feb!C24 -> 3290 | D3: =+Feb!D24 -> 611.4 | E3: =+Feb!E24 -> 3704.018214 | F3: =+Feb!F24 -> 0 | G3: =+Feb!G24 -> 92.34 | H3: =+Feb!H24 -> 3700 | I3: =+Feb!I24 -> 20 | J3: 11417.75821
A4: March | C4: =+Mar!C24 -> 0 | D4: =+Mar!D24 -> 0 | E4: =+Mar!E24 -> 0 | F4: =+Mar!F24 -> 0 | G4: =+Mar!G24 -> 0 | H4: =+Mar!H24 -> 0 | I4: =+Mar!I24 -> 0 | J4: 0
A5: April | C5: =+Apr!C24 -> 0 | D5: =+Apr!D24 -> 0 | E5: =+Apr!E24 -> 0 | F5: =+Apr!F24 -> 0 | G5: =+Apr!G24 -> 0 | H5: =+Apr!H24 -> 0 | I5: =+Apr!I24 -> 0 | J5: 0
A6: May | C6: =+May!C24 -> 0 | D6: =+May!D24 -> 0 | E6: =+May!E24 -> 0 | F6: =+May!F24 -> 0 | G6: =+May!G24 -> 0 | H6: =+May!H24 -> 0 | I6: =+May!I24 -> 0 | J6: 0
A7: June | C7: =+Jun!C24 -> 0 | D7: =+Jun!D24 -> 0 | E7: =+Jun!E24 -> 0 | F7: =+Jun!F24 -> 0 | G7: =+Jun!G24 -> 0 | H7: =+Jun!H24 -> 0 | I7: =+Jun!I24 -> 0 | J7: 0
A8: July | C8: =+Jul!C24 -> 0 | D8: =+Jul!D24 -> 0 | E8: =+Jul!E24 -> 0 | F8: =+Jul!F24 -> 0 | G8: =+Jul!G24 -> 0 | H8: =+Jul!H24 -> 0 | I8: =+Jul!I24 -> 0 | J8: 0
A9: August | C9: =+Aug!C24 -> 0 | D9: =+Aug!D24 -> 0 | E9: =+Aug!E24 -> 0 | F9: =+Aug!F24 -> 0 | G9: =+Aug!G24 -> 0 | H9: =+Aug!H24 -> 0 | I9: =+Aug!I24 -> 0 | J9: 0
A10: September | C10: =+Sep!C24 -> 0 | D10: =+Sep!D24 -> 0 | E10: =+Sep!E24 -> 0 | F10: =+Sep!F24 -> 0 | G10: =+Sep!G24 -> 0 | H10: =+Sep!H24 -> 0 | I10: =+Sep!I24 -> 0 | J10: 0
A11: October | C11: =+Oct!C24 -> 0 | D11: =+Oct!D24 -> 0 | E11: =+Oct!E24 -> 0 | F11: =+Oct!F24 -> 0 | G11: =+Oct!G24 -> 0 | H11: =+Oct!H24 -> 0 | I11: =+Oct!I24 -> 0 | J11: 0
A12: November | C12: =+Nov!C24 -> 0 | D12: =+Nov!D24 -> 0 | E12: =+Nov!E24 -> 0 | F12: =+Nov!F24 -> 0 | G12: =+Nov!G24 -> 0 | H12: =+Nov!H24 -> 0 | I12: =+Nov!I24 -> 0 | J12: 0
A13: December | C13: =+Dec!C24 -> 0 | D13: =+Dec!D24 -> 0 | E13: =+Dec!E24 -> 0 | F13: =+Dec!F24 -> 0 | G13: =+Dec!G24 -> 0 | H13: =+Dec!H24 -> 0 | I13: =+Dec!I24 -> 0 | J13: 0
A14: Total | C14: =SUM(C2:C13) -> 6830 | D14: 656.6 | E14: 3704.018214 | F14: 140 | G14: 194.53 | H14: 3700 | I14: 20 | J14: 15245.14821
A17: Fuel | C17: =+C14 -> 6830
A18: Oils | C18: =D14 -> 656.6
A19: Spare Parts | C19: =+E14 -> 3704.018214
A20: Maintenance | C20: =+F14 -> 140
A21: Communication | C21: =+G14 -> 194.53
A22: Insurance | C22: =+H14 -> 3700
A23: Stamp Exp | C23: =+I14 -> 20
A24: Total | C24: =+J14 -> 15245.14821
D28: Issue No | E28: Code | F28: Item Name | G28: Q | H28: P | I28: Value

Sheet 6192 ط ص
A1: No Of Journal Entry | C1: Fuel | D1: Oils | E1: Spare Parts | F1: Maintenance | G1: Communication | H1: Insurance | I1: Stamp Exp | J1: Total
A2: January | C2: =+Jan!C25 -> 3675 | D2: =+Jan!D25 -> 0 | E2: =+Jan!E25 -> 2444.806625 | F2: =+Jan!F25 -> 855 | G2: =+Jan!G25 -> 102.19 | H2: =+Jan!H25 -> 3266 | I2: =+Jan!I25 -> 380 | J2: =SUM(C2:I2) -> 10722.99663
A3: February | C3: =+Feb!C25 -> 3695 | D3: =+Feb!D25 -> 0 | E3: =+Feb!E25 -> 4839 | F3: =+Feb!F25 -> 114 | G3: =+Feb!G25 -> 92.34 | H3: =+Feb!H25 -> 0 | I3: =+Feb!I25 -> 1230 | J3: 9970.34
A4: March | C4: =+Mar!C25 -> 0 | D4: =+Mar!D25 -> 0 | E4: =+Mar!E25 -> 0 | F4: =+Mar!F25 -> 0 | G4: =+Mar!G25 -> 0 | H4: =+Mar!H25 -> 0 | I4: =+Mar!I25 -> 0 | J4: 0
A5: April | C5: =+Apr!C25 -> 0 | D5: =+Apr!D25 -> 0 | E5: =+Apr!E25 -> 0 | F5: =+Apr!F25 -> 0 | G5: =+Apr!G25 -> 0 | H5: =+Apr!H25 -> 0 | I5: =+Apr!I25 -> 0 | J5: 0
A6: May | C6: =+May!C25 -> 0 | D6: =+May!D25 -> 0 | E6: =+May!E25 -> 0 | F6: =+May!F25 -> 0 | G6: =+May!G25 -> 0 | H6: =+May!H25 -> 0 | I6: =+May!I25 -> 0 | J6: 0
A7: June | C7: =+Jun!C25 -> 0 | D7: =+Jun!D25 -> 0 | E7: =+Jun!E25 -> 0 | F7: =+Jun!F25 -> 0 | G7: =+Jun!G25 -> 0 | H7: =+Jun!H25 -> 0 | I7: =+Jun!I25 -> 0 | J7: 0
A8: July | C8: =+Jul!C25 -> 0 | D8: =+Jul!D25 -> 0 | E8: =+Jul!E25 -> 0 | F8: =+Jul!F25 -> 0 | G8: =+Jul!G25 -> 0 | H8: =+Jul!H25 -> 0 | I8: =+Jul!I25 -> 0 | J8: 0
A9: August | C9: =+Aug!C25 -> 0 | D9: =+Aug!D25 -> 0 | E9: =+Aug!E25 -> 0 | F9: =+Aug!F25 -> 0 | G9: =+Aug!G25 -> 0 | H9: =+Aug!H25 -> 0 | I9: =+Aug!I25 -> 0 | J9: 0
A10: September | C10: =+Sep!C25 -> 0 | D10: =+Sep!D25 -> 0 | E10: =+Sep!E25 -> 0 | F10: =+Sep!F25 -> 0 | G10: =+Sep!G25 -> 0 | H10: =+Sep!H25 -> 0 | I10: =+Sep!I25 -> 0 | J10: 0
A11: October | C11: =+Oct!C25 -> 0 | D11: =+Oct!D25 -> 0 | E11: =+Oct!E25 -> 0 | F11: =+Oct!F25 -> 0 | G11: =+Oct!G25 -> 0 | H11: =+Oct!H25 -> 0 | I11: =+Oct!I25 -> 0 | J11: 0
A12: November | C12: =+Nov!C25 -> 0 | D12: =+Nov!D25 -> 0 | E12: =+Nov!E25 -> 0 | F12: =+Nov!F25 -> 0 | G12: =+Nov!G25 -> 0 | H12: =+Nov!H25 -> 0 | I12: =+Nov!I25 -> 0 | J12: 0
A13: December | C13: =+Dec!C25 -> 0 | D13: =+Dec!D25 -> 0 | E13: =+Dec!E25 -> 0 | F13: =+Dec!F25 -> 0 | G13: =+Dec!G25 -> 0 | H13: =+Dec!H25 -> 0 | I13: =+Dec!I25 -> 0 | J13: 0
A14: Total | C14: =SUM(C2:C13) -> 7370 | D14: 0 | E14: 7283.806625 | F14: 969 | G14: 194.53 | H14: 3266 | I14: 1610 | J14: 20693.33663
A17: Fuel | C17: =+C14 -> 7370
A18: Oils | C18: =D14 -> 0
A19: Spare Parts | C19: =+E14 -> 7283.806625
A20: Maintenance | C20: =+F14 -> 969
A21: Communication | C21: =+G14 -> 194.53
A22: Insurance | C22: =+H14 -> 3266
A23: Stamp Exp | C23: =+I14 -> 1610
A24: Total | C24: =+J14 -> 20693.33663
D28: Issue No | E28: Code | F28: Item Name | G28: Q | H28: P | I28: Value

Sheet 6193 ق ر
A1: No Of Journal Entry | C1: Fuel | D1: Oils | E1: Spare Parts | F1: Maintenance | G1: Communication | H1: Insurance | I1: Stamp Exp | J1: Total
A2: January | C2: =+Jan!C26 -> 0 | D2: =+Jan!D26 -> 0 | E2: =+Jan!E26 -> 0 | F2: =+Jan!F26 -> 0 | G2: =+Jan!G26 -> 24.85 | H2: =+Jan!H26 -> 0 | I2: =+Jan!I26 -> 0 | J2: =SUM(C2:I2) -> 24.85
A3: February | C3: =+Feb!C26 -> 0 | D3: =+Feb!D26 -> 0 | E3: =+Feb!E26 -> 0 | F3: =+Feb!F26 -> 80 | G3: =+Feb!G26 -> 15 | H3: =+Feb!H26 -> 0 | I3: =+Feb!I26 -> 0 | J3: 95
A4: March | C4: =+Mar!C26 -> 0 | D4: =+Mar!D26 -> 0 | E4: =+Mar!E26 -> 0 | F4: =+Mar!F26 -> 0 | G4: =+Mar!G26 -> 0 | H4: =+Mar!H26 -> 0 | I4: =+Mar!I26 -> 0 | J4: 0
A5: April | C5: =+Apr!C26 -> 0 | D5: =+Apr!D26 -> 0 | E5: =+Apr!E26 -> 0 | F5: =+Apr!F26 -> 0 | G5: =+Apr!G26 -> 0 | H5: =+Apr!H26 -> 0 | I5: =+Apr!I26 -> 0 | J5: 0
A6: May | C6: =+May!C26 -> 0 | D6: =+May!D26 -> 0 | E6: =+May!E26 -> 0 | F6: =+May!F26 -> 0 | G6: =+May!G26 -> 0 | H6: =+May!H26 -> 0 | I6: =+May!I26 -> 0 | J6: 0
A7: June | C7: =+Jun!C26 -> 0 | D7: =+Jun!D26 -> 0 | E7: =+Jun!E26 -> 0 | F7: =+Jun!F26 -> 0 | G7: =+Jun!G26 -> 0 | H7: =+Jun!H26 -> 0 | I7: =+Jun!I26 -> 0 | J7: 0
A8: July | C8: =+Jul!C26 -> 0 | D8: =+Jul!D26 -> 0 | E8: =+Jul!E26 -> 0 | F8: =+Jul!F26 -> 0 | G8: =+Jul!G26 -> 0 | H8: =+Jul!H26 -> 0 | I8: =+Jul!I26 -> 0 | J8: 0
A9: August | C9: =+Aug!C26 -> 0 | D9: =+Aug!D26 -> 0 | E9: =+Aug!E26 -> 0 | F9: =+Aug!F26 -> 0 | G9: =+Aug!G26 -> 0 | H9: =+Aug!H26 -> 0 | I9: =+Aug!I26 -> 0 | J9: 0
A10: September | C10: =+Sep!C26 -> 0 | D10: =+Sep!D26 -> 0 | E10: =+Sep!E26 -> 0 | F10: =+Sep!F26 -> 0 | G10: =+Sep!G26 -> 0 | H10: =+Sep!H26 -> 0 | I10: =+Sep!I26 -> 0 | J10: 0
A11: October | C11: =+Oct!C26 -> 0 | D11: =+Oct!D26 -> 0 | E11: =+Oct!E26 -> 0 | F11: =+Oct!F26 -> 0 | G11: =+Oct!G26 -> 0 | H11: =+Oct!H26 -> 0 | I11: =+Oct!I26 -> 0 | J11: 0
A12: November | C12: =+Nov!C26 -> 0 | D12: =+Nov!D26 -> 0 | E12: =+Nov!E26 -> 0 | F12: =+Nov!F26 -> 0 | G12: =+Nov!G26 -> 0 | H12: =+Nov!H26 -> 0 | I12: =+Nov!I26 -> 0 | J12: 0
A13: December | C13: =+Dec!C26 -> 0 | D13: =+Dec!D26 -> 0 | E13: =+Dec!E26 -> 0 | F13: =+Dec!F26 -> 0 | G13: =+Dec!G26 -> 0 | H13: =+Dec!H26 -> 0 | I13: =+Dec!I26 -> 0 | J13: 0
A14: Total | C14: =SUM(C2:C13) -> 0 | D14: 0 | E14: 0 | F14: 80 | G14: 39.85 | H14: 0 | I14: 0 | J14: 119.85
A17: Fuel | C17: =+C14 -> 0
A18: Oils | C18: =D14 -> 0
A19: Spare Parts | C19: =+E14 -> 0
A20: Maintenance | C20: =+F14 -> 80
A21: Communication | C21: =+G14 -> 39.85
A22: Insurance | C22: =+H14 -> 0
A23: Stamp Exp | C23: =+I14 -> 0
A24: Total | C24: =+J14 -> 119.85
D28: Issue No | E28: Code | F28: Item Name | G28: Q | H28: P | I28: Value

Sheet 6235 ط ص
A1: No Of Journal Entry | C1: Fuel | D1: Oils | E1: Spare Parts | F1: Maintenance | G1: Communication | H1: Insurance | I1: Stamp Exp | J1: Total
A2: January | C2: =+Jan!C27 -> 4890 | D2: =+Jan!D27 -> 0 | E2: =+Jan!E27 -> 0 | F2: =+Jan!F27 -> 1500 | G2: =+Jan!G27 -> 163.75 | H2: =+Jan!H27 -> 5415 | I2: =+Jan!I27 -> 3940 | J2: =SUM(C2:I2) -> 15908.75
A3: February | C3: =+Feb!C27 -> 1190 | D3: =+Feb!D27 -> 0 | E3: =+Feb!E27 -> 0 | F3: =+Feb!F27 -> 0 | G3: =+Feb!G27 -> 153.9 | H3: =+Feb!H27 -> 0 | I3: =+Feb!I27 -> 2710 | J3: 4053.9
A4: March | C4: =+Mar!C27 -> 0 | D4: =+Mar!D27 -> 0 | E4: =+Mar!E27 -> 0 | F4: =+Mar!F27 -> 0 | G4: =+Mar!G27 -> 0 | H4: =+Mar!H27 -> 0 | I4: =+Mar!I27 -> 0 | J4: 0
A5: April | C5: =+Apr!C27 -> 0 | D5: =+Apr!D27 -> 0 | E5: =+Apr!E27 -> 0 | F5: =+Apr!F27 -> 0 | G5: =+Apr!G27 -> 0 | H5: =+Apr!H27 -> 0 | I5: =+Apr!I27 -> 0 | J5: 0
A6: May | C6: =+May!C27 -> 0 | D6: =+May!D27 -> 0 | E6: =+May!E27 -> 0 | F6: =+May!F27 -> 0 | G6: =+May!G27 -> 0 | H6: =+May!H27 -> 0 | I6: =+May!I27 -> 0 | J6: 0
A7: June | C7: =+Jun!C27 -> 0 | D7: =+Jun!D27 -> 0 | E7: =+Jun!E27 -> 0 | F7: =+Jun!F27 -> 0 | G7: =+Jun!G27 -> 0 | H7: =+Jun!H27 -> 0 | I7: =+Jun!I27 -> 0 | J7: 0
A8: July | C8: =+Jul!C27 -> 0 | D8: =+Jul!D27 -> 0 | E8: =+Jul!E27 -> 0 | F8: =+Jul!F27 -> 0 | G8: =+Jul!G27 -> 0 | H8: =+Jul!H27 -> 0 | I8: =+Jul!I27 -> 0 | J8: 0
A9: August | C9: =+Aug!C27 -> 0 | D9: =+Aug!D27 -> 0 | E9: =+Aug!E27 -> 0 | F9: =+Aug!F27 -> 0 | G9: =+Aug!G27 -> 0 | H9: =+Aug!H27 -> 0 | I9: =+Aug!I27 -> 0 | J9: 0
A10: September | C10: =+Sep!C27 -> 0 | D10: =+Sep!D27 -> 0 | E10: =+Sep!E27 -> 0 | F10: =+Sep!F27 -> 0 | G10: =+Sep!G27 -> 0 | H10: =+Sep!H27 -> 0 | I10: =+Sep!I27 -> 0 | J10: 0
A11: October | C11: =+Oct!C27 -> 0 | D11: =+Oct!D27 -> 0 | E11: =+Oct!E27 -> 0 | F11: =+Oct!F27 -> 0 | G11: =+Oct!G27 -> 0 | H11: =+Oct!H27 -> 0 | I11: =+Oct!I27 -> 0 | J11: 0
A12: November | C12: =+Nov!C27 -> 0 | D12: =+Nov!D27 -> 0 | E12: =+Nov!E27 -> 0 | F12: =+Nov!F27 -> 0 | G12: =+Nov!G27 -> 0 | H12: =+Nov!H27 -> 0 | I12: =+Nov!I27 -> 0 | J12: 0
A13: December | C13: =+Dec!C27 -> 0 | D13: =+Dec!D27 -> 0 | E13: =+Dec!E27 -> 0 | F13: =+Dec!F27 -> 0 | G13: =+Dec!G27 -> 0 | H13: =+Dec!H27 -> 0 | I13: =+Dec!I27 -> 0 | J13: 0
A14: Total | C14: =SUM(C2:C13) -> 6080 | D14: 0 | E14: 0 | F14: 1500 | G14: 317.65 | H14: 5415 | I14: 6650 | J14: 19962.65
A17: Fuel | C17: =+C14 -> 6080
A18: Oils | C18: =D14 -> 0
A19: Spare Parts | C19: =+E14 -> 0
A20: Maintenance | C20: =+F14 -> 1500
A21: Communication | C21: =+G14 -> 317.65
A22: Insurance | C22: =+H14 -> 5415
A23: Stamp Exp | C23: =+I14 -> 6650
A24: Total | C24: =+J14 -> 19962.65
D28: Issue No | E28: Code | F28: Item Name | G28: Q | H28: P | I28: Value

Sheet 6248 ب س
A1: No Of Journal Entry | C1: Fuel | D1: Oils | E1: Spare Parts | F1: Maintenance | G1: Communication | H1: Insurance | I1: Stamp Exp | J1: Total
A2: January | C2: =+Jan!#REF! ->  | D2: =+Jan!#REF! ->  | E2: =+Jan!#REF! ->  | F2: =+Jan!#REF! ->  | G2: =+Jan!#REF! ->  | H2: =+Jan!#REF! ->  | I2: =+Jan!#REF! ->  | J2: =SUM(C2:I2) -> 
A3: February | C3: =+Feb!#REF! ->  | D3: =+Feb!#REF! ->  | E3: =+Feb!#REF! ->  | F3: =+Feb!#REF! ->  | G3: =+Feb!#REF! ->  | H3: =+Feb!#REF! ->  | I3: =+Feb!#REF! -> 
A4: March | C4: =+Mar!#REF! ->  | D4: =+Mar!#REF! ->  | E4: =+Mar!#REF! ->  | F4: =+Mar!#REF! ->  | G4: =+Mar!#REF! ->  | H4: =+Mar!#REF! ->  | I4: =+Mar!#REF! -> 
A5: April | C5: =+Apr!#REF! ->  | D5: =+Apr!#REF! ->  | E5: =+Apr!#REF! ->  | F5: =+Apr!#REF! ->  | G5: =+Apr!#REF! ->  | H5: =+Apr!#REF! ->  | I5: =+Apr!#REF! -> 
A6: May | C6: =+May!#REF! ->  | D6: =+May!#REF! ->  | E6: =+May!#REF! ->  | F6: =+May!#REF! ->  | G6: =+May!#REF! ->  | H6: =+May!#REF! ->  | I6: =+May!#REF! -> 
A7: June | C7: =+Jun!#REF! ->  | D7: =+Jun!#REF! ->  | E7: =+Jun!#REF! ->  | F7: =+Jun!#REF! ->  | G7: =+Jun!#REF! ->  | H7: =+Jun!#REF! ->  | I7: =+Jun!#REF! -> 
A8: July | C8: =+Jul!#REF! ->  | D8: =+Jul!#REF! ->  | E8: =+Jul!#REF! ->  | F8: =+Jul!#REF! ->  | G8: =+Jul!#REF! ->  | H8: =+Jul!#REF! ->  | I8: =+Jul!#REF! -> 
A9: August | C9: =+Aug!#REF! ->  | D9: =+Aug!#REF! ->  | E9: =+Aug!#REF! ->  | F9: =+Aug!#REF! ->  | G9: =+Aug!#REF! ->  | H9: =+Aug!#REF! ->  | I9: =+Aug!#REF! -> 
A10: September | C10: =+Sep!#REF! ->  | D10: =+Sep!#REF! ->  | E10: =+Sep!#REF! ->  | F10: =+Sep!#REF! ->  | G10: =+Sep!#REF! ->  | H10: =+Sep!#REF! ->  | I10: =+Sep!#REF! -> 
A11: October | C11: =+Oct!#REF! ->  | D11: =+Oct!#REF! ->  | E11: =+Oct!#REF! ->  | F11: =+Oct!#REF! ->  | G11: =+Oct!#REF! ->  | H11: =+Oct!#REF! ->  | I11: =+Oct!#REF! -> 
A12: November | C12: =+Nov!#REF! ->  | D12: =+Nov!#REF! ->  | E12: =+Nov!#REF! ->  | F12: =+Nov!#REF! ->  | G12: =+Nov!#REF! ->  | H12: =+Nov!#REF! ->  | I12: =+Nov!#REF! -> 
A13: December | C13: =+Dec!#REF! ->  | D13: =+Dec!#REF! ->  | E13: =+Dec!#REF! ->  | F13: =+Dec!#REF! ->  | G13: =+Dec!#REF! ->  | H13: =+Dec!#REF! ->  | I13: =+Dec!#REF! -> 
A14: Total | C14: =SUM(C2:C13) -> 
A17: Fuel | C17: =+C14 -> 
A18: Oils | C18: =D14 -> 
A19: Spare Parts | C19: =+E14 -> 
A20: Maintenance | C20: =+F14 -> 
A21: Communication | C21: =+G14 -> 
A22: Insurance | C22: =+H14 -> 
A23: Stamp Exp | C23: =+I14 -> 
A24: Total | C24: =+J14 -> 
D28: Issue No | E28: Code | F28: Item Name | G28: Q | H28: P | I28: Value

Sheet 6463 ن ل
A1: No Of Journal Entry | C1: Fuel | D1: Oils | E1: Spare Parts | F1: Maintenance | G1: Communication | H1: Insurance | I1: Stamp Exp | J1: Total
A2: January | C2: =+Jan!#REF! ->  | D2: =+Jan!#REF! ->  | E2: =+Jan!#REF! ->  | F2: =+Jan!#REF! ->  | G2: =+Jan!#REF! ->  | H2: =+Jan!#REF! ->  | I2: =+Jan!#REF! ->  | J2: =SUM(C2:I2) -> 
A3: February | C3: =+Feb!#REF! ->  | D3: =+Feb!#REF! ->  | E3: =+Feb!#REF! ->  | F3: =+Feb!#REF! ->  | G3: =+Feb!#REF! ->  | H3: =+Feb!#REF! ->  | I3: =+Feb!#REF! -> 
A4: March | C4: =+Mar!#REF! ->  | D4: =+Mar!#REF! ->  | E4: =+Mar!#REF! ->  | F4: =+Mar!#REF! ->  | G4: =+Mar!#REF! ->  | H4: =+Mar!#REF! ->  | I4: =+Mar!#REF! -> 
A5: April | C5: =+Apr!#REF! ->  | D5: =+Apr!#REF! ->  | E5: =+Apr!#REF! ->  | F5: =+Apr!#REF! ->  | G5: =+Apr!#REF! ->  | H5: =+Apr!#REF! ->  | I5: =+Apr!#REF! -> 
A6: May | C6: =+May!#REF! ->  | D6: =+May!#REF! ->  | E6: =+May!#REF! ->  | F6: =+May!#REF! ->  | G6: =+May!#REF! ->  | H6: =+May!#REF! ->  | I6: =+May!#REF! -> 
A7: June | C7: =+Jun!#REF! ->  | D7: =+Jun!#REF! ->  | E7: =+Jun!#REF! ->  | F7: =+Jun!#REF! ->  | G7: =+Jun!#REF! ->  | H7: =+Jun!#REF! ->  | I7: =+Jun!#REF! -> 
A8: July | C8: =+Jul!#REF! ->  | D8: =+Jul!#REF! ->  | E8: =+Jul!#REF! ->  | F8: =+Jul!#REF! ->  | G8: =+Jul!#REF! ->  | H8: =+Jul!#REF! ->  | I8: =+Jul!#REF! -> 
A9: August | C9: =+Aug!#REF! ->  | D9: =+Aug!#REF! ->  | E9: =+Aug!#REF! ->  | F9: =+Aug!#REF! ->  | G9: =+Aug!#REF! ->  | H9: =+Aug!#REF! ->  | I9: =+Aug!#REF! -> 
A10: September | C10: =+Sep!#REF! ->  | D10: =+Sep!#REF! ->  | E10: =+Sep!#REF! ->  | F10: =+Sep!#REF! ->  | G10: =+Sep!#REF! ->  | H10: =+Sep!#REF! ->  | I10: =+Sep!#REF! -> 
A11: October | C11: =+Oct!#REF! ->  | D11: =+Oct!#REF! ->  | E11: =+Oct!#REF! ->  | F11: =+Oct!#REF! ->  | G11: =+Oct!#REF! ->  | H11: =+Oct!#REF! ->  | I11: =+Oct!#REF! -> 
A12: November | C12: =+Nov!#REF! ->  | D12: =+Nov!#REF! ->  | E12: =+Nov!#REF! ->  | F12: =+Nov!#REF! ->  | G12: =+Nov!#REF! ->  | H12: =+Nov!#REF! ->  | I12: =+Nov!#REF! -> 
A13: December | C13: =+Dec!#REF! ->  | D13: =+Dec!#REF! ->  | E13: =+Dec!#REF! ->  | F13: =+Dec!#REF! ->  | G13: =+Dec!#REF! ->  | H13: =+Dec!#REF! ->  | I13: =+Dec!#REF! -> 
A14: Total | C14: =SUM(C2:C13) -> 
A17: Fuel | C17: =+C14 -> 
A18: Oils | C18: =D14 -> 
A19: Spare Parts | C19: =+E14 -> 
A20: Maintenance | C20: =+F14 -> 
A21: Communication | C21: =+G14 -> 
A22: Insurance | C22: =+H14 -> 
A23: Stamp Exp | C23: =+I14 -> 
A24: Total | C24: =+J14 -> 
D28: Issue No | E28: Code | F28: Item Name | G28: Q | H28: P | I28: Value

Sheet 6689 ن ل
A1: No Of Journal Entry | C1: Fuel | D1: Oils | E1: Spare Parts | F1: Maintenance | G1: Communication | H1: Insurance | I1: Stamp Exp | J1: Total
A2: January | C2: =+Jan!C28 -> 1040 | D2: =+Jan!D28 -> 0 | E2: =+Jan!E28 -> 497 | F2: =+Jan!F28 -> 0 | G2: =+Jan!G28 -> 132.97 | H2: =+Jan!H28 -> 0 | I2: =+Jan!I28 -> 205 | J2: =SUM(C2:I2) -> 1874.97
A3: February | C3: =+Feb!C28 -> 500.0225 | D3: =+Feb!D28 -> 0 | E3: =+Feb!E28 -> 0 | F3: =+Feb!F28 -> 0 | G3: =+Feb!G28 -> 123.12 | H3: =+Feb!H28 -> 0 | I3: =+Feb!I28 -> 35 | J3: 658.1425
A4: March | C4: =+Mar!C28 -> 0 | D4: =+Mar!D28 -> 0 | E4: =+Mar!E28 -> 0 | F4: =+Mar!F28 -> 0 | G4: =+Mar!G28 -> 0 | H4: =+Mar!H28 -> 0 | I4: =+Mar!I28 -> 0 | J4: 0
A5: April | C5: =+Apr!C28 -> 0 | D5: =+Apr!D28 -> 0 | E5: =+Apr!E28 -> 0 | F5: =+Apr!F28 -> 0 | G5: =+Apr!G28 -> 0 | H5: =+Apr!H28 -> 0 | I5: =+Apr!I28 -> 0 | J5: 0
A6: May | C6: =+May!C28 -> 0 | D6: =+May!D28 -> 0 | E6: =+May!E28 -> 0 | F6: =+May!F28 -> 0 | G6: =+May!G28 -> 0 | H6: =+May!H28 -> 0 | I6: =+May!I28 -> 0 | J6: 0
A7: June | C7: =+Jun!C28 -> 0 | D7: =+Jun!D28 -> 0 | E7: =+Jun!E28 -> 0 | F7: =+Jun!F28 -> 0 | G7: =+Jun!G28 -> 0 | H7: =+Jun!H28 -> 0 | I7: =+Jun!I28 -> 0 | J7: 0
A8: July | C8: =+Jul!C28 -> 0 | D8: =+Jul!D28 -> 0 | E8: =+Jul!E28 -> 0 | F8: =+Jul!F28 -> 0 | G8: =+Jul!G28 -> 0 | H8: =+Jul!H28 -> 0 | I8: =+Jul!I28 -> 0 | J8: 0
A9: August | C9: =+Aug!C28 -> 0 | D9: =+Aug!D28 -> 0 | E9: =+Aug!E28 -> 0 | F9: =+Aug!F28 -> 0 | G9: =+Aug!G28 -> 0 | H9: =+Aug!H28 -> 0 | I9: =+Aug!I28 -> 0 | J9: 0
A10: September | C10: =+Sep!C28 -> 0 | D10: =+Sep!D28 -> 0 | E10: =+Sep!E28 -> 0 | F10: =+Sep!F28 -> 0 | G10: =+Sep!G28 -> 0 | H10: =+Sep!H28 -> 0 | I10: =+Sep!I28 -> 0 | J10: 0
A11: October | C11: =+Oct!C28 -> 0 | D11: =+Oct!D28 -> 0 | E11: =+Oct!E28 -> 0 | F11: =+Oct!F28 -> 0 | G11: =+Oct!G28 -> 0 | H11: =+Oct!H28 -> 0 | I11: =+Oct!I28 -> 0 | J11: 0
A12: November | C12: =+Nov!C28 -> 0 | D12: =+Nov!D28 -> 0 | E12: =+Nov!E28 -> 0 | F12: =+Nov!F28 -> 0 | G12: =+Nov!G28 -> 0 | H12: =+Nov!H28 -> 0 | I12: =+Nov!I28 -> 0 | J12: 0
A13: December | C13: =+Dec!C28 -> 0 | D13: =+Dec!D28 -> 0 | E13: =+Dec!E28 -> 0 | F13: =+Dec!F28 -> 0 | G13: =+Dec!G28 -> 0 | H13: =+Dec!H28 -> 0 | I13: =+Dec!I28 -> 0 | J13: 0
A14: Total | C14: =SUM(C2:C13) -> 1540.0225 | D14: 0 | E14: 497 | F14: 0 | G14: 256.09 | H14: 0 | I14: 240 | J14: 2533.1125
A17: Fuel | C17: =+C14 -> 1540.0225
A18: Oils | C18: =D14 -> 0
A19: Spare Parts | C19: =+E14 -> 497
A20: Maintenance | C20: =+F14 -> 0
A21: Communication | C21: =+G14 -> 256.09
A22: Insurance | C22: =+H14 -> 0
A23: Stamp Exp | C23: =+I14 -> 240
A24: Total | C24: =+J14 -> 2533.1125
D28: Issue No | E28: Code | F28: Item Name | G28: Q | H28: P | I28: Value

Sheet 6723 ط ص
A1: No Of Journal Entry | C1: Fuel | D1: Oils | E1: Spare Parts | F1: Maintenance | G1: Communication | H1: Insurance | I1: Stamp Exp | J1: Total
A2: January | C2: =+Jan!C29 -> 4881.3 | D2: =+Jan!D29 -> 0 | E2: =+Jan!E29 -> 797.5148308 | F2: =+Jan!F29 -> 0 | G2: =+Jan!G29 -> 163.75 | H2: =+Jan!H29 -> 0 | I2: =+Jan!I29 -> 0 | J2: =SUM(C2:I2) -> 5842.564831
A3: February | C3: =+Feb!C29 -> 0 | D3: =+Feb!D29 -> 0 | E3: =+Feb!E29 -> 142.5 | F3: =+Feb!F29 -> 0 | G3: =+Feb!G29 -> 153.9 | H3: =+Feb!H29 -> 0 | I3: =+Feb!I29 -> 530 | J3: 826.4
A4: March | C4: =+Mar!C29 -> 0 | D4: =+Mar!D29 -> 0 | E4: =+Mar!E29 -> 0 | F4: =+Mar!F29 -> 0 | G4: =+Mar!G29 -> 0 | H4: =+Mar!H29 -> 0 | I4: =+Mar!I29 -> 0 | J4: 0
A5: April | C5: =+Apr!C29 -> 0 | D5: =+Apr!D29 -> 0 | E5: =+Apr!E29 -> 0 | F5: =+Apr!F29 -> 0 | G5: =+Apr!G29 -> 0 | H5: =+Apr!H29 -> 0 | I5: =+Apr!I29 -> 0 | J5: 0
A6: May | C6: =+May!C29 -> 0 | D6: =+May!D29 -> 0 | E6: =+May!E29 -> 0 | F6: =+May!F29 -> 0 | G6: =+May!G29 -> 0 | H6: =+May!H29 -> 0 | I6: =+May!I29 -> 0 | J6: 0
A7: June | C7: =+Jun!C29 -> 0 | D7: =+Jun!D29 -> 0 | E7: =+Jun!E29 -> 0 | F7: =+Jun!F29 -> 0 | G7: =+Jun!G29 -> 0 | H7: =+Jun!H29 -> 0 | I7: =+Jun!I29 -> 0 | J7: 0
A8: July | C8: =+Jul!C29 -> 0 | D8: =+Jul!D29 -> 0 | E8: =+Jul!E29 -> 0 | F8: =+Jul!F29 -> 0 | G8: =+Jul!G29 -> 0 | H8: =+Jul!H29 -> 0 | I8: =+Jul!I29 -> 0 | J8: 0
A9: August | C9: =+Aug!C29 -> 0 | D9: =+Aug!D29 -> 0 | E9: =+Aug!E29 -> 0 | F9: =+Aug!F29 -> 0 | G9: =+Aug!G29 -> 0 | H9: =+Aug!H29 -> 0 | I9: =+Aug!I29 -> 0 | J9: 0
A10: September | C10: =+Sep!C29 -> 0 | D10: =+Sep!D29 -> 0 | E10: =+Sep!E29 -> 0 | F10: =+Sep!F29 -> 0 | G10: =+Sep!G29 -> 0 | H10: =+Sep!H29 -> 0 | I10: =+Sep!I29 -> 0 | J10: 0
A11: October | C11: =+Oct!C29 -> 0 | D11: =+Oct!D29 -> 0 | E11: =+Oct!E29 -> 0 | F11: =+Oct!F29 -> 0 | G11: =+Oct!G29 -> 0 | H11: =+Oct!H29 -> 0 | I11: =+Oct!I29 -> 0 | J11: 0
A12: November | C12: =+Nov!C29 -> 0 | D12: =+Nov!D29 -> 0 | E12: =+Nov!E29 -> 0 | F12: =+Nov!F29 -> 0 | G12: =+Nov!G29 -> 0 | H12: =+Nov!H29 -> 0 | I12: =+Nov!I29 -> 0 | J12: 0
A13: December | C13: =+Dec!C29 -> 0 | D13: =+Dec!D29 -> 0 | E13: =+Dec!E29 -> 0 | F13: =+Dec!F29 -> 0 | G13: =+Dec!G29 -> 0 | H13: =+Dec!H29 -> 0 | I13: =+Dec!I29 -> 0 | J13: 0
A14: Total | C14: =SUM(C2:C13) -> 4881.3 | D14: 0 | E14: 940.0148308 | F14: 0 | G14: 317.65 | H14: 0 | I14: 530 | J14: 6668.964831
A17: Fuel | C17: =+C14 -> 4881.3
A18: Oils | C18: =D14 -> 0
A19: Spare Parts | C19: =+E14 -> 940.0148308
A20: Maintenance | C20: =+F14 -> 0
A21: Communication | C21: =+G14 -> 317.65
A22: Insurance | C22: =+H14 -> 0
A23: Stamp Exp | C23: =+I14 -> 530
A24: Total | C24: =+J14 -> 6668.964831
D28: Issue No | E28: Code | F28: Item Name | G28: Q | H28: P | I28: Value

Sheet 6783 ط س
A1: No Of Journal Entry | C1: Fuel | D1: Oils | E1: Spare Parts | F1: Maintenance | G1: Communication | H1: Insurance | I1: Stamp Exp | J1: Total
A2: January | C2: =+Jan!C30 -> 5996.475 | D2: =+Jan!D30 -> 235 | E2: =+Jan!E30 -> 334.84 | F2: =+Jan!F30 -> 32547 | G2: =+Jan!G30 -> 132.97 | H2: =+Jan!H30 -> 0 | I2: =+Jan!I30 -> 1815 | J2: =SUM(C2:I2) -> 41061.285
A3: February | C3: =+Feb!C30 -> 5824.1625 | D3: =+Feb!D30 -> 0 | E3: =+Feb!E30 -> 476.5152312 | F3: =+Feb!F30 -> 0 | G3: =+Feb!G30 -> 123.12 | H3: =+Feb!H30 -> 0 | I3: =+Feb!I30 -> 0 | J3: 6423.797731
A4: March | C4: =+Mar!C30 -> 0 | D4: =+Mar!D30 -> 0 | E4: =+Mar!E30 -> 0 | F4: =+Mar!F30 -> 0 | G4: =+Mar!G30 -> 0 | H4: =+Mar!H30 -> 0 | I4: =+Mar!I30 -> 0 | J4: 0
A5: April | C5: =+Apr!C30 -> 0 | D5: =+Apr!D30 -> 0 | E5: =+Apr!E30 -> 0 | F5: =+Apr!F30 -> 0 | G5: =+Apr!G30 -> 0 | H5: =+Apr!H30 -> 0 | I5: =+Apr!I30 -> 0 | J5: 0
A6: May | C6: =+May!C30 -> 0 | D6: =+May!D30 -> 0 | E6: =+May!E30 -> 0 | F6: =+May!F30 -> 0 | G6: =+May!G30 -> 0 | H6: =+May!H30 -> 0 | I6: =+May!I30 -> 0 | J6: 0
A7: June | C7: =+Jun!C30 -> 0 | D7: =+Jun!D30 -> 0 | E7: =+Jun!E30 -> 0 | F7: =+Jun!F30 -> 0 | G7: =+Jun!G30 -> 0 | H7: =+Jun!H30 -> 0 | I7: =+Jun!I30 -> 0 | J7: 0
A8: July | C8: =+Jul!C30 -> 0 | D8: =+Jul!D30 -> 0 | E8: =+Jul!E30 -> 0 | F8: =+Jul!F30 -> 0 | G8: =+Jul!G30 -> 0 | H8: =+Jul!H30 -> 0 | I8: =+Jul!I30 -> 0 | J8: 0
A9: August | C9: =+Aug!C30 -> 0 | D9: =+Aug!D30 -> 0 | E9: =+Aug!E30 -> 0 | F9: =+Aug!F30 -> 0 | G9: =+Aug!G30 -> 0 | H9: =+Aug!H30 -> 0 | I9: =+Aug!I30 -> 0 | J9: 0
A10: September | C10: =+Sep!C30 -> 0 | D10: =+Sep!D30 -> 0 | E10: =+Sep!E30 -> 0 | F10: =+Sep!F30 -> 0 | G10: =+Sep!G30 -> 0 | H10: =+Sep!H30 -> 0 | I10: =+Sep!I30 -> 0 | J10: 0
A11: October | C11: =+Oct!C30 -> 0 | D11: =+Oct!D30 -> 0 | E11: =+Oct!E30 -> 0 | F11: =+Oct!F30 -> 0 | G11: =+Oct!G30 -> 0 | H11: =+Oct!H30 -> 0 | I11: =+Oct!I30 -> 0 | J11: 0
A12: November | C12: =+Nov!C30 -> 0 | D12: =+Nov!D30 -> 0 | E12: =+Nov!E30 -> 0 | F12: =+Nov!F30 -> 0 | G12: =+Nov!G30 -> 0 | H12: =+Nov!H30 -> 0 | I12: =+Nov!I30 -> 0 | J12: 0
A13: December | C13: =+Dec!C30 -> 0 | D13: =+Dec!D30 -> 0 | E13: =+Dec!E30 -> 0 | F13: =+Dec!F30 -> 0 | G13: =+Dec!G30 -> 0 | H13: =+Dec!H30 -> 0 | I13: =+Dec!I30 -> 0 | J13: 0
A14: Total | C14: =SUM(C2:C13) -> 11820.6375 | D14: 235 | E14: 811.3552312 | F14: 32547 | G14: 256.09 | H14: 0 | I14: 1815 | J14: 47485.08273
A17: Fuel | C17: =+C14 -> 11820.6375
A18: Oils | C18: =D14 -> 235
A19: Spare Parts | C19: =+E14 -> 811.3552312
A20: Maintenance | C20: =+F14 -> 32547
A21: Communication | C21: =+G14 -> 256.09
A22: Insurance | C22: =+H14 -> 0
A23: Stamp Exp | C23: =+I14 -> 1815
A24: Total | C24: =+J14 -> 47485.08273
D28: Issue No | E28: Code | F28: Item Name | G28: Q | H28: P | I28: Value

Sheet 7429 ط ج
A1: No Of Journal Entry | C1: Fuel | D1: Oils | E1: Spare Parts | F1: Maintenance | G1: Communication | H1: Insurance | I1: Stamp Exp | J1: Total
A2: January | C2: =+Jan!C31 -> 0 | D2: =+Jan!D31 -> 0 | E2: =+Jan!E31 -> 0 | F2: =+Jan!F31 -> 0 | G2: =+Jan!G31 -> 0 | H2: =+Jan!H31 -> 0 | I2: =+Jan!I31 -> 0 | J2: =SUM(C2:I2) -> 0
A3: February | C3: =+Feb!C31 -> 0 | D3: =+Feb!D31 -> 0 | E3: =+Feb!E31 -> 0 | F3: =+Feb!F31 -> 0 | G3: =+Feb!G31 -> 0 | H3: =+Feb!H31 -> 0 | I3: =+Feb!I31 -> 0 | J3: 0
A4: March | C4: =+Mar!C31 -> 0 | D4: =+Mar!D31 -> 0 | E4: =+Mar!E31 -> 0 | F4: =+Mar!F31 -> 0 | G4: =+Mar!G31 -> 0 | H4: =+Mar!H31 -> 0 | I4: =+Mar!I31 -> 0 | J4: 0
A5: April | C5: =+Apr!C31 -> 0 | D5: =+Apr!D31 -> 0 | E5: =+Apr!E31 -> 0 | F5: =+Apr!F31 -> 0 | G5: =+Apr!G31 -> 0 | H5: =+Apr!H31 -> 0 | I5: =+Apr!I31 -> 0 | J5: 0
A6: May | C6: =+May!C31 -> 0 | D6: =+May!D31 -> 0 | E6: =+May!E31 -> 0 | F6: =+May!F31 -> 0 | G6: =+May!G31 -> 0 | H6: =+May!H31 -> 0 | I6: =+May!I31 -> 0 | J6: 0
A7: June | C7: =+Jun!C31 -> 0 | D7: =+Jun!D31 -> 0 | E7: =+Jun!E31 -> 0 | F7: =+Jun!F31 -> 0 | G7: =+Jun!G31 -> 0 | H7: =+Jun!H31 -> 0 | I7: =+Jun!I31 -> 0 | J7: 0
A8: July | C8: =+Jul!C31 -> 0 | D8: =+Jul!D31 -> 0 | E8: =+Jul!E31 -> 0 | F8: =+Jul!F31 -> 0 | G8: =+Jul!G31 -> 0 | H8: =+Jul!H31 -> 0 | I8: =+Jul!I31 -> 0 | J8: 0
A9: August | C9: =+Aug!C31 -> 0 | D9: =+Aug!D31 -> 0 | E9: =+Aug!E31 -> 0 | F9: =+Aug!F31 -> 0 | G9: =+Aug!G31 -> 0 | H9: =+Aug!H31 -> 0 | I9: =+Aug!I31 -> 0 | J9: 0
A10: September | C10: =+Sep!C31 -> 0 | D10: =+Sep!D31 -> 0 | E10: =+Sep!E31 -> 0 | F10: =+Sep!F31 -> 0 | G10: =+Sep!G31 -> 0 | H10: =+Sep!H31 -> 0 | I10: =+Sep!I31 -> 0 | J10: 0
A11: October | C11: =+Oct!C31 -> 0 | D11: =+Oct!D31 -> 0 | E11: =+Oct!E31 -> 0 | F11: =+Oct!F31 -> 0 | G11: =+Oct!G31 -> 0 | H11: =+Oct!H31 -> 0 | I11: =+Oct!I31 -> 0 | J11: 0
A12: November | C12: =+Nov!C31 -> 0 | D12: =+Nov!D31 -> 0 | E12: =+Nov!E31 -> 0 | F12: =+Nov!F31 -> 0 | G12: =+Nov!G31 -> 0 | H12: =+Nov!H31 -> 0 | I12: =+Nov!I31 -> 0 | J12: 0
A13: December | C13: =+Dec!C31 -> 0 | D13: =+Dec!D31 -> 0 | E13: =+Dec!E31 -> 0 | F13: =+Dec!F31 -> 0 | G13: =+Dec!G31 -> 0 | H13: =+Dec!H31 -> 0 | I13: =+Dec!I31 -> 0 | J13: 0
A14: Total | C14: =SUM(C2:C13) -> 0 | D14: 0 | E14: 0 | F14: 0 | G14: 0 | H14: 0 | I14: 0 | J14: 0
A17: Fuel | C17: =+C14 -> 0
A18: Oils | C18: =D14 -> 0
A19: Spare Parts | C19: =+E14 -> 0
A20: Maintenance | C20: =+F14 -> 0
A21: Communication | C21: =+G14 -> 0
A22: Insurance | C22: =+H14 -> 0
A23: Stamp Exp | C23: =+I14 -> 0
A24: Total | C24: =+J14 -> 0
D28: Issue No | E28: Code | F28: Item Name | G28: Q | H28: P | I28: Value

Sheet 7862 ط ص
A1: No Of Journal Entry | C1: Fuel | D1: Oils | E1: Spare Parts | F1: Maintenance | G1: Communication | H1: Insurance | I1: Stamp Exp | J1: Total
A2: January | C2: =+Jan!C32 -> 12755 | D2: =+Jan!D32 -> 361.6 | E2: =+Jan!E32 -> 510.7 | F2: =+Jan!F32 -> 100 | G2: =+Jan!G32 -> 163.75 | H2: =+Jan!H32 -> 0 | I2: =+Jan!I32 -> 4320 | J2: =SUM(C2:I2) -> 18211.05
A3: February | C3: =+Feb!C32 -> 10580 | D3: =+Feb!D32 -> 1627.218954 | E3: =+Feb!E32 -> 330.453975 | F3: =+Feb!F32 -> 0 | G3: =+Feb!G32 -> 153.9 | H3: =+Feb!H32 -> 0 | I3: =+Feb!I32 -> 3485 | J3: 16176.57293
A4: March | C4: =+Mar!C32 -> 0 | D4: =+Mar!D32 -> 0 | E4: =+Mar!E32 -> 0 | F4: =+Mar!F32 -> 0 | G4: =+Mar!G32 -> 0 | H4: =+Mar!H32 -> 0 | I4: =+Mar!I32 -> 0 | J4: 0
A5: April | C5: =+Apr!C32 -> 0 | D5: =+Apr!D32 -> 0 | E5: =+Apr!E32 -> 0 | F5: =+Apr!F32 -> 0 | G5: =+Apr!G32 -> 0 | H5: =+Apr!H32 -> 0 | I5: =+Apr!I32 -> 0 | J5: 0
A6: May | C6: =+May!C32 -> 0 | D6: =+May!D32 -> 0 | E6: =+May!E32 -> 0 | F6: =+May!F32 -> 0 | G6: =+May!G32 -> 0 | H6: =+May!H32 -> 0 | I6: =+May!I32 -> 0 | J6: 0
A7: June | C7: =+Jun!C32 -> 0 | D7: =+Jun!D32 -> 0 | E7: =+Jun!E32 -> 0 | F7: =+Jun!F32 -> 0 | G7: =+Jun!G32 -> 0 | H7: =+Jun!H32 -> 0 | I7: =+Jun!I32 -> 0 | J7: 0
A8: July | C8: =+Jul!C32 -> 0 | D8: =+Jul!D32 -> 0 | E8: =+Jul!E32 -> 0 | F8: =+Jul!F32 -> 0 | G8: =+Jul!G32 -> 0 | H8: =+Jul!H32 -> 0 | I8: =+Jul!I32 -> 0 | J8: 0
A9: August | C9: =+Aug!C32 -> 0 | D9: =+Aug!D32 -> 0 | E9: =+Aug!E32 -> 0 | F9: =+Aug!F32 -> 0 | G9: =+Aug!G32 -> 0 | H9: =+Aug!H32 -> 0 | I9: =+Aug!I32 -> 0 | J9: 0
A10: September | C10: =+Sep!C32 -> 0 | D10: =+Sep!D32 -> 0 | E10: =+Sep!E32 -> 0 | F10: =+Sep!F32 -> 0 | G10: =+Sep!G32 -> 0 | H10: =+Sep!H32 -> 0 | I10: =+Sep!I32 -> 0 | J10: 0
A11: October | C11: =+Oct!C32 -> 0 | D11: =+Oct!D32 -> 0 | E11: =+Oct!E32 -> 0 | F11: =+Oct!F32 -> 0 | G11: =+Oct!G32 -> 0 | H11: =+Oct!H32 -> 0 | I11: =+Oct!I32 -> 0 | J11: 0
A12: November | C12: =+Nov!C32 -> 0 | D12: =+Nov!D32 -> 0 | E12: =+Nov!E32 -> 0 | F12: =+Nov!F32 -> 0 | G12: =+Nov!G32 -> 0 | H12: =+Nov!H32 -> 0 | I12: =+Nov!I32 -> 0 | J12: 0
A13: December | C13: =+Dec!C32 -> 0 | D13: =+Dec!D32 -> 0 | E13: =+Dec!E32 -> 0 | F13: =+Dec!F32 -> 0 | G13: =+Dec!G32 -> 0 | H13: =+Dec!H32 -> 0 | I13: =+Dec!I32 -> 0 | J13: 0
A14: Total | C14: =SUM(C2:C13) -> 23335 | D14: 1988.818954 | E14: 841.153975 | F14: 100 | G14: 317.65 | H14: 0 | I14: 7805 | J14: 34387.62293
A17: Fuel | C17: =+C14 -> 23335
A18: Oils | C18: =D14 -> 1988.818954
A19: Spare Parts | C19: =+E14 -> 841.153975
A20: Maintenance | C20: =+F14 -> 100
A21: Communication | C21: =+G14 -> 317.65
A22: Insurance | C22: =+H14 -> 0
A23: Stamp Exp | C23: =+I14 -> 7805
A24: Total | C24: =+J14 -> 34387.62293
D28: Issue No | E28: Code | F28: Item Name | G28: Q | H28: P | I28: Value

Sheet 8457 ه س
A1: No Of Journal Entry | C1: Fuel | D1: Oils | E1: Spare Parts | F1: Maintenance | G1: Communication | H1: Insurance | I1: Stamp Exp | J1: Total
A2: January | C2: =+Jan!C33 -> 0 | D2: =+Jan!D33 -> 0 | E2: =+Jan!E33 -> 0 | F2: =+Jan!F33 -> 0 | G2: =+Jan!G33 -> 102.19 | H2: =+Jan!H33 -> 0 | I2: =+Jan!I33 -> 0 | J2: =SUM(C2:I2) -> 102.19
A3: February | C3: =+Feb!C33 -> 0 | D3: =+Feb!D33 -> 0 | E3: =+Feb!E33 -> 1110 | F3: =+Feb!F33 -> 0 | G3: =+Feb!G33 -> 92.34 | H3: =+Feb!H33 -> 2100 | I3: =+Feb!I33 -> 500 | J3: 3802.34
A4: March | C4: =+Mar!C33 -> 0 | D4: =+Mar!D33 -> 0 | E4: =+Mar!E33 -> 0 | F4: =+Mar!F33 -> 0 | G4: =+Mar!G33 -> 0 | H4: =+Mar!H33 -> 0 | I4: =+Mar!I33 -> 0 | J4: 0
A5: April | C5: =+Apr!C33 -> 0 | D5: =+Apr!D33 -> 0 | E5: =+Apr!E33 -> 0 | F5: =+Apr!F33 -> 0 | G5: =+Apr!G33 -> 0 | H5: =+Apr!H33 -> 0 | I5: =+Apr!I33 -> 0 | J5: 0
A6: May | C6: =+May!C33 -> 0 | D6: =+May!D33 -> 0 | E6: =+May!E33 -> 0 | F6: =+May!F33 -> 0 | G6: =+May!G33 -> 0 | H6: =+May!H33 -> 0 | I6: =+May!I33 -> 0 | J6: 0
A7: June | C7: =+Jun!C33 -> 0 | D7: =+Jun!D33 -> 0 | E7: =+Jun!E33 -> 0 | F7: =+Jun!F33 -> 0 | G7: =+Jun!G33 -> 0 | H7: =+Jun!H33 -> 0 | I7: =+Jun!I33 -> 0 | J7: 0
A8: July | C8: =+Jul!C33 -> 0 | D8: =+Jul!D33 -> 0 | E8: =+Jul!E33 -> 0 | F8: =+Jul!F33 -> 0 | G8: =+Jul!G33 -> 0 | H8: =+Jul!H33 -> 0 | I8: =+Jul!I33 -> 0 | J8: 0
A9: August | C9: =+Aug!C33 -> 0 | D9: =+Aug!D33 -> 0 | E9: =+Aug!E33 -> 0 | F9: =+Aug!F33 -> 0 | G9: =+Aug!G33 -> 0 | H9: =+Aug!H33 -> 0 | I9: =+Aug!I33 -> 0 | J9: 0
A10: September | C10: =+Sep!C33 -> 0 | D10: =+Sep!D33 -> 0 | E10: =+Sep!E33 -> 0 | F10: =+Sep!F33 -> 0 | G10: =+Sep!G33 -> 0 | H10: =+Sep!H33 -> 0 | I10: =+Sep!I33 -> 0 | J10: 0
A11: October | C11: =+Oct!C33 -> 0 | D11: =+Oct!D33 -> 0 | E11: =+Oct!E33 -> 0 | F11: =+Oct!F33 -> 0 | G11: =+Oct!G33 -> 0 | H11: =+Oct!H33 -> 0 | I11: =+Oct!I33 -> 0 | J11: 0
A12: November | C12: =+Nov!C33 -> 0 | D12: =+Nov!D33 -> 0 | E12: =+Nov!E33 -> 0 | F12: =+Nov!F33 -> 0 | G12: =+Nov!G33 -> 0 | H12: =+Nov!H33 -> 0 | I12: =+Nov!I33 -> 0 | J12: 0
A13: December | C13: =+Dec!C33 -> 0 | D13: =+Dec!D33 -> 0 | E13: =+Dec!E33 -> 0 | F13: =+Dec!F33 -> 0 | G13: =+Dec!G33 -> 0 | H13: =+Dec!H33 -> 0 | I13: =+Dec!I33 -> 0 | J13: 0
A14: Total | C14: =SUM(C2:C13) -> 0 | D14: 0 | E14: 1110 | F14: 0 | G14: 194.53 | H14: 2100 | I14: 500 | J14: 3904.53
A17: Fuel | C17: =+C14 -> 0
A18: Oils | C18: =D14 -> 0
A19: Spare Parts | C19: =+E14 -> 1110
A20: Maintenance | C20: =+F14 -> 0
A21: Communication | C21: =+G14 -> 194.53
A22: Insurance | C22: =+H14 -> 2100
A23: Stamp Exp | C23: =+I14 -> 500
A24: Total | C24: =+J14 -> 3904.53
D28: Issue No | E28: Code | F28: Item Name | G28: Q | H28: P | I28: Value

Sheet 8492 ف س
A1: No Of Journal Entry | C1: Fuel | D1: Oils | E1: Spare Parts | F1: Maintenance | G1: Communication | H1: Insurance | I1: Stamp Exp | J1: Total
A2: January | C2: =+Jan!C34 -> 4393.0125 | D2: =+Jan!D34 -> 0 | E2: =+Jan!E34 -> 319.2117696 | F2: =+Jan!F34 -> 200 | G2: =+Jan!G34 -> 102.19 | H2: =+Jan!H34 -> 0 | I2: =+Jan!I34 -> 180 | J2: =SUM(C2:I2) -> 5194.41427
A3: February | C3: =+Feb!C34 -> 1870 | D3: =+Feb!D34 -> 0 | E3: =+Feb!E34 -> 499.1945738 | F3: =+Feb!F34 -> 0 | G3: =+Feb!G34 -> 92.34 | H3: =+Feb!H34 -> 0 | I3: =+Feb!I34 -> 95 | J3: 2556.534574
A4: March | C4: =+Mar!C34 -> 0 | D4: =+Mar!D34 -> 0 | E4: =+Mar!E34 -> 0 | F4: =+Mar!F34 -> 0 | G4: =+Mar!G34 -> 0 | H4: =+Mar!H34 -> 0 | I4: =+Mar!I34 -> 0 | J4: 0
A5: April | C5: =+Apr!C34 -> 0 | D5: =+Apr!D34 -> 0 | E5: =+Apr!E34 -> 0 | F5: =+Apr!F34 -> 0 | G5: =+Apr!G34 -> 0 | H5: =+Apr!H34 -> 0 | I5: =+Apr!I34 -> 0 | J5: 0
A6: May | C6: =+May!C34 -> 0 | D6: =+May!D34 -> 0 | E6: =+May!E34 -> 0 | F6: =+May!F34 -> 0 | G6: =+May!G34 -> 0 | H6: =+May!H34 -> 0 | I6: =+May!I34 -> 0 | J6: 0
A7: June | C7: =+Jun!C34 -> 0 | D7: =+Jun!D34 -> 0 | E7: =+Jun!E34 -> 0 | F7: =+Jun!F34 -> 0 | G7: =+Jun!G34 -> 0 | H7: =+Jun!H34 -> 0 | I7: =+Jun!I34 -> 0 | J7: 0
A8: July | C8: =+Jul!C34 -> 0 | D8: =+Jul!D34 -> 0 | E8: =+Jul!E34 -> 0 | F8: =+Jul!F34 -> 0 | G8: =+Jul!G34 -> 0 | H8: =+Jul!H34 -> 0 | I8: =+Jul!I34 -> 0 | J8: 0
A9: August | C9: =+Aug!C34 -> 0 | D9: =+Aug!D34 -> 0 | E9: =+Aug!E34 -> 0 | F9: =+Aug!F34 -> 0 | G9: =+Aug!G34 -> 0 | H9: =+Aug!H34 -> 0 | I9: =+Aug!I34 -> 0 | J9: 0
A10: September | C10: =+Sep!C34 -> 0 | D10: =+Sep!D34 -> 0 | E10: =+Sep!E34 -> 0 | F10: =+Sep!F34 -> 0 | G10: =+Sep!G34 -> 0 | H10: =+Sep!H34 -> 0 | I10: =+Sep!I34 -> 0 | J10: 0
A11: October | C11: =+Oct!C34 -> 0 | D11: =+Oct!D34 -> 0 | E11: =+Oct!E34 -> 0 | F11: =+Oct!F34 -> 0 | G11: =+Oct!G34 -> 0 | H11: =+Oct!H34 -> 0 | I11: =+Oct!I34 -> 0 | J11: 0
A12: November | C12: =+Nov!C34 -> 0 | D12: =+Nov!D34 -> 0 | E12: =+Nov!E34 -> 0 | F12: =+Nov!F34 -> 0 | G12: =+Nov!G34 -> 0 | H12: =+Nov!H34 -> 0 | I12: =+Nov!I34 -> 0 | J12: 0
A13: December | C13: =+Dec!C34 -> 0 | D13: =+Dec!D34 -> 0 | E13: =+Dec!E34 -> 0 | F13: =+Dec!F34 -> 0 | G13: =+Dec!G34 -> 0 | H13: =+Dec!H34 -> 0 | I13: =+Dec!I34 -> 0 | J13: 0
A14: Total | C14: =SUM(C2:C13) -> 6263.0125 | D14: 0 | E14: 818.4063434 | F14: 200 | G14: 194.53 | H14: 0 | I14: 275 | J14: 7750.948843
A17: Fuel | C17: =+C14 -> 6263.0125
A18: Oils | C18: =D14 -> 0
A19: Spare Parts | C19: =+E14 -> 818.4063434
A20: Maintenance | C20: =+F14 -> 200
A21: Communication | C21: =+G14 -> 194.53
A22: Insurance | C22: =+H14 -> 0
A23: Stamp Exp | C23: =+I14 -> 275
A24: Total | C24: =+J14 -> 7750.948843
D28: Issue No | E28: Code | F28: Item Name | G28: Q | H28: P | I28: Value

Sheet 8734 ط ج
A1: No Of Journal Entry | C1: Fuel | D1: Oils | E1: Spare Parts | F1: Maintenance | G1: Communication | H1: Insurance | I1: Stamp Exp | J1: Total
A2: January | C2: =+Jan!C35 -> 5813.0125 | D2: =+Jan!D35 -> 0 | E2: =+Jan!E35 -> 622.2161593 | F2: =+Jan!F35 -> 0 | G2: =+Jan!G35 -> 102.19 | H2: =+Jan!H35 -> 0 | I2: =+Jan!I35 -> 2205 | J2: =SUM(C2:I2) -> 8742.418659
A3: February | C3: =+Feb!C35 -> 3205 | D3: =+Feb!D35 -> 0 | E3: =+Feb!E35 -> 1737 | F3: =+Feb!F35 -> 1325.52 | G3: =+Feb!G35 -> 92.34 | H3: =+Feb!H35 -> 7745 | I3: =+Feb!I35 -> 1385 | J3: 15489.86
A4: March | C4: =+Mar!C35 -> 0 | D4: =+Mar!D35 -> 0 | E4: =+Mar!E35 -> 0 | F4: =+Mar!F35 -> 0 | G4: =+Mar!G35 -> 0 | H4: =+Mar!H35 -> 0 | I4: =+Mar!I35 -> 0 | J4: 0
A5: April | C5: =+Apr!C35 -> 0 | D5: =+Apr!D35 -> 0 | E5: =+Apr!E35 -> 0 | F5: =+Apr!F35 -> 0 | G5: =+Apr!G35 -> 0 | H5: =+Apr!H35 -> 0 | I5: =+Apr!I35 -> 0 | J5: 0
A6: May | C6: =+May!C35 -> 0 | D6: =+May!D35 -> 0 | E6: =+May!E35 -> 0 | F6: =+May!F35 -> 0 | G6: =+May!G35 -> 0 | H6: =+May!H35 -> 0 | I6: =+May!I35 -> 0 | J6: 0
A7: June | C7: =+Jun!C35 -> 0 | D7: =+Jun!D35 -> 0 | E7: =+Jun!E35 -> 0 | F7: =+Jun!F35 -> 0 | G7: =+Jun!G35 -> 0 | H7: =+Jun!H35 -> 0 | I7: =+Jun!I35 -> 0 | J7: 0
A8: July | C8: =+Jul!C35 -> 0 | D8: =+Jul!D35 -> 0 | E8: =+Jul!E35 -> 0 | F8: =+Jul!F35 -> 0 | G8: =+Jul!G35 -> 0 | H8: =+Jul!H35 -> 0 | I8: =+Jul!I35 -> 0 | J8: 0
A9: August | C9: =+Aug!C35 -> 0 | D9: =+Aug!D35 -> 0 | E9: =+Aug!E35 -> 0 | F9: =+Aug!F35 -> 0 | G9: =+Aug!G35 -> 0 | H9: =+Aug!H35 -> 0 | I9: =+Aug!I35 -> 0 | J9: 0
A10: September | C10: =+Sep!C35 -> 0 | D10: =+Sep!D35 -> 0 | E10: =+Sep!E35 -> 0 | F10: =+Sep!F35 -> 0 | G10: =+Sep!G35 -> 0 | H10: =+Sep!H35 -> 0 | I10: =+Sep!I35 -> 0 | J10: 0
A11: October | C11: =+Oct!C35 -> 0 | D11: =+Oct!D35 -> 0 | E11: =+Oct!E35 -> 0 | F11: =+Oct!F35 -> 0 | G11: =+Oct!G35 -> 0 | H11: =+Oct!H35 -> 0 | I11: =+Oct!I35 -> 0 | J11: 0
A12: November | C12: =+Nov!C35 -> 0 | D12: =+Nov!D35 -> 0 | E12: =+Nov!E35 -> 0 | F12: =+Nov!F35 -> 0 | G12: =+Nov!G35 -> 0 | H12: =+Nov!H35 -> 0 | I12: =+Nov!I35 -> 0 | J12: 0
A13: December | C13: =+Dec!C35 -> 0 | D13: =+Dec!D35 -> 0 | E13: =+Dec!E35 -> 0 | F13: =+Dec!F35 -> 0 | G13: =+Dec!G35 -> 0 | H13: =+Dec!H35 -> 0 | I13: =+Dec!I35 -> 0 | J13: 0
A14: Total | C14: =SUM(C2:C13) -> 9018.0125 | D14: 0 | E14: 2359.216159 | F14: 1325.52 | G14: 194.53 | H14: 7745 | I14: 3590 | J14: 24232.27866
A17: Fuel | C17: =+C14 -> 9018.0125
A18: Oils | C18: =D14 -> 0
A19: Spare Parts | C19: =+E14 -> 2359.216159
A20: Maintenance | C20: =+F14 -> 1325.52
A21: Communication | C21: =+G14 -> 194.53
A22: Insurance | C22: =+H14 -> 7745
A23: Stamp Exp | C23: =+I14 -> 3590
A24: Total | C24: =+J14 -> 24232.27866
D28: Issue No | E28: Code | F28: Item Name | G28: Q | H28: P | I28: Value

Sheet 9361 ب س
A1: No Of Journal Entry | C1: Fuel | D1: Oils | E1: Spare Parts | F1: Maintenance | G1: Communication | H1: Insurance | I1: Stamp Exp | J1: Total
A2: January | C2: =+Jan!C36 -> 0 | D2: =+Jan!D36 -> 0 | E2: =+Jan!E36 -> 425 | F2: =+Jan!F36 -> 0 | G2: =+Jan!G36 -> 102.19 | H2: =+Jan!H36 -> 0 | I2: =+Jan!I36 -> 0 | J2: =SUM(C2:I2) -> 527.19
A3: February | C3: =+Feb!C36 -> 0 | D3: =+Feb!D36 -> 0 | E3: =+Feb!E36 -> 275 | F3: =+Feb!F36 -> 0 | G3: =+Feb!G36 -> 92.34 | H3: =+Feb!H36 -> 0 | I3: =+Feb!I36 -> 0 | J3: 367.34
A4: March | C4: =+Mar!C36 -> 0 | D4: =+Mar!D36 -> 0 | E4: =+Mar!E36 -> 0 | F4: =+Mar!F36 -> 0 | G4: =+Mar!G36 -> 0 | H4: =+Mar!H36 -> 0 | I4: =+Mar!I36 -> 0 | J4: 0
A5: April | C5: =+Apr!C36 -> 0 | D5: =+Apr!D36 -> 0 | E5: =+Apr!E36 -> 0 | F5: =+Apr!F36 -> 0 | G5: =+Apr!G36 -> 0 | H5: =+Apr!H36 -> 0 | I5: =+Apr!I36 -> 0 | J5: 0
A6: May | C6: =+May!C36 -> 0 | D6: =+May!D36 -> 0 | E6: =+May!E36 -> 0 | F6: =+May!F36 -> 0 | G6: =+May!G36 -> 0 | H6: =+May!H36 -> 0 | I6: =+May!I36 -> 0 | J6: 0
A7: June | C7: =+Jun!C36 -> 0 | D7: =+Jun!D36 -> 0 | E7: =+Jun!E36 -> 0 | F7: =+Jun!F36 -> 0 | G7: =+Jun!G36 -> 0 | H7: =+Jun!H36 -> 0 | I7: =+Jun!I36 -> 0 | J7: 0
A8: July | C8: =+Jul!C36 -> 0 | D8: =+Jul!D36 -> 0 | E8: =+Jul!E36 -> 0 | F8: =+Jul!F36 -> 0 | G8: =+Jul!G36 -> 0 | H8: =+Jul!H36 -> 0 | I8: =+Jul!I36 -> 0 | J8: 0
A9: August | C9: =+Aug!C36 -> 0 | D9: =+Aug!D36 -> 0 | E9: =+Aug!E36 -> 0 | F9: =+Aug!F36 -> 0 | G9: =+Aug!G36 -> 0 | H9: =+Aug!H36 -> 0 | I9: =+Aug!I36 -> 0 | J9: 0
A10: September | C10: =+Sep!C36 -> 0 | D10: =+Sep!D36 -> 0 | E10: =+Sep!E36 -> 0 | F10: =+Sep!F36 -> 0 | G10: =+Sep!G36 -> 0 | H10: =+Sep!H36 -> 0 | I10: =+Sep!I36 -> 0 | J10: 0
A11: October | C11: =+Oct!C36 -> 0 | D11: =+Oct!D36 -> 0 | E11: =+Oct!E36 -> 0 | F11: =+Oct!F36 -> 0 | G11: =+Oct!G36 -> 0 | H11: =+Oct!H36 -> 0 | I11: =+Oct!I36 -> 0 | J11: 0
A12: November | C12: =+Nov!C36 -> 0 | D12: =+Nov!D36 -> 0 | E12: =+Nov!E36 -> 0 | F12: =+Nov!F36 -> 0 | G12: =+Nov!G36 -> 0 | H12: =+Nov!H36 -> 0 | I12: =+Nov!I36 -> 0 | J12: 0
A13: December | C13: =+Dec!C36 -> 0 | D13: =+Dec!D36 -> 0 | E13: =+Dec!E36 -> 0 | F13: =+Dec!F36 -> 0 | G13: =+Dec!G36 -> 0 | H13: =+Dec!H36 -> 0 | I13: =+Dec!I36 -> 0 | J13: 0
A14: Total | C14: =SUM(C2:C13) -> 0 | D14: 0 | E14: 700 | F14: 0 | G14: 194.53 | H14: 0 | I14: 0 | J14: 894.53
A17: Fuel | C17: =+C14 -> 0
A18: Oils | C18: =D14 -> 0
A19: Spare Parts | C19: =+E14 -> 700
A20: Maintenance | C20: =+F14 -> 0
A21: Communication | C21: =+G14 -> 194.53
A22: Insurance | C22: =+H14 -> 0
A23: Stamp Exp | C23: =+I14 -> 0
A24: Total | C24: =+J14 -> 894.53
D28: Issue No | E28: Code | F28: Item Name | G28: Q | H28: P | I28: Value

Sheet 9417 ن س
A1: No Of Journal Entry | C1: Fuel | D1: Oils | E1: Spare Parts | F1: Maintenance | G1: Communication | H1: Insurance | I1: Stamp Exp | J1: Total
A2: January | C2: =+Jan!C38 -> 13035 | D2: =+Jan!D38 -> 1898.4 | E2: =+Jan!E38 -> 1642.6 | F2: =+Jan!F38 -> 6748 | G2: =+Jan!G38 -> 163.75 | H2: =+Jan!H38 -> 0 | I2: =+Jan!I38 -> 5265 | J2: =SUM(C2:I2) -> 28752.75
A3: February | C3: =+Feb!C38 -> 11285 | D3: =+Feb!D38 -> 1627.218954 | E3: =+Feb!E38 -> 1074.175083 | F3: =+Feb!F38 -> 60 | G3: =+Feb!G38 -> 153.9 | H3: =+Feb!H38 -> 0 | I3: =+Feb!I38 -> 6840 | J3: 21040.29404
A4: March | C4: =+Mar!C38 -> 0 | D4: =+Mar!D38 -> 0 | E4: =+Mar!E38 -> 0 | F4: =+Mar!F38 -> 0 | G4: =+Mar!G38 -> 0 | H4: =+Mar!H38 -> 0 | I4: =+Mar!I38 -> 0 | J4: 0
A5: April | C5: =+Apr!C38 -> 0 | D5: =+Apr!D38 -> 0 | E5: =+Apr!E38 -> 0 | F5: =+Apr!F38 -> 0 | G5: =+Apr!G38 -> 0 | H5: =+Apr!H38 -> 0 | I5: =+Apr!I38 -> 0 | J5: 0
A6: May | C6: =+May!C38 -> 0 | D6: =+May!D38 -> 0 | E6: =+May!E38 -> 0 | F6: =+May!F38 -> 0 | G6: =+May!G38 -> 0 | H6: =+May!H38 -> 0 | I6: =+May!I38 -> 0 | J6: 0
A7: June | C7: =+Jun!C38 -> 0 | D7: =+Jun!D38 -> 0 | E7: =+Jun!E38 -> 0 | F7: =+Jun!F38 -> 0 | G7: =+Jun!G38 -> 0 | H7: =+Jun!H38 -> 0 | I7: =+Jun!I38 -> 0 | J7: 0
A8: July | C8: =+Jul!C38 -> 0 | D8: =+Jul!D38 -> 0 | E8: =+Jul!E38 -> 0 | F8: =+Jul!F38 -> 0 | G8: =+Jul!G38 -> 0 | H8: =+Jul!H38 -> 0 | I8: =+Jul!I38 -> 0 | J8: 0
A9: August | C9: =+Aug!C38 -> 0 | D9: =+Aug!D38 -> 0 | E9: =+Aug!E38 -> 0 | F9: =+Aug!F38 -> 0 | G9: =+Aug!G38 -> 0 | H9: =+Aug!H38 -> 0 | I9: =+Aug!I38 -> 0 | J9: 0
A10: September | C10: =+Sep!C38 -> 0 | D10: =+Sep!D38 -> 0 | E10: =+Sep!E38 -> 0 | F10: =+Sep!F38 -> 0 | G10: =+Sep!G38 -> 0 | H10: =+Sep!H38 -> 0 | I10: =+Sep!I38 -> 0 | J10: 0
A11: October | C11: =+Oct!C38 -> 0 | D11: =+Oct!D38 -> 0 | E11: =+Oct!E38 -> 0 | F11: =+Oct!F38 -> 0 | G11: =+Oct!G38 -> 0 | H11: =+Oct!H38 -> 0 | I11: =+Oct!I38 -> 0 | J11: 0
A12: November | C12: =+Nov!C38 -> 0 | D12: =+Nov!D38 -> 0 | E12: =+Nov!E38 -> 0 | F12: =+Nov!F38 -> 0 | G12: =+Nov!G38 -> 0 | H12: =+Nov!H38 -> 0 | I12: =+Nov!I38 -> 0 | J12: 0
A13: December | C13: =+Dec!C38 -> 0 | D13: =+Dec!D38 -> 0 | E13: =+Dec!E38 -> 0 | F13: =+Dec!F38 -> 0 | G13: =+Dec!G38 -> 0 | H13: =+Dec!H38 -> 0 | I13: =+Dec!I38 -> 0 | J13: 0
A14: Total | C14: =SUM(C2:C13) -> 24320 | D14: 3525.618954 | E14: 2716.775083 | F14: 6808 | G14: 317.65 | H14: 0 | I14: 12105 | J14: 49793.04404
A17: Fuel | C17: =+C14 -> 24320
A18: Oils | C18: =D14 -> 3525.618954
A19: Spare Parts | C19: =+E14 -> 2716.775083
A20: Maintenance | C20: =+F14 -> 6808
A21: Communication | C21: =+G14 -> 317.65
A22: Insurance | C22: =+H14 -> 0
A23: Stamp Exp | C23: =+I14 -> 12105
A24: Total | C24: =+J14 -> 49793.04404
D28: Issue No | E28: Code | F28: Item Name | G28: Q | H28: P | I28: Value

Sheet 9678 ب س
A1: No Of Journal Entry | C1: Fuel | D1: Oils | E1: Spare Parts | F1: Maintenance | G1: Communication | H1: Insurance | I1: Stamp Exp | J1: Total
A2: January | C2: =+Jan!C40 -> 2690 | D2: =+Jan!D40 -> 1943.6 | E2: =+Jan!E40 -> 681.5 | F2: =+Jan!F40 -> 0 | G2: =+Jan!G40 -> 102.19 | H2: =+Jan!H40 -> 0 | I2: =+Jan!I40 -> 390 | J2: =SUM(C2:I2) -> 5807.29
A3: February | C3: =+Feb!C40 -> 1410 | D3: =+Feb!D40 -> 316.4036854 | E3: =+Feb!E40 -> 390.3659468 | F3: =+Feb!F40 -> 0 | G3: =+Feb!G40 -> 92.34 | H3: =+Feb!H40 -> 0 | I3: =+Feb!I40 -> 145 | J3: 2354.109632
A4: March | C4: =+Mar!C40 -> 0 | D4: =+Mar!D40 -> 0 | E4: =+Mar!E40 -> 0 | F4: =+Mar!F40 -> 0 | G4: =+Mar!G40 -> 0 | H4: =+Mar!H40 -> 0 | I4: =+Mar!I40 -> 0 | J4: 0
A5: April | C5: =+Apr!C40 -> 0 | D5: =+Apr!D40 -> 0 | E5: =+Apr!E40 -> 0 | F5: =+Apr!F40 -> 0 | G5: =+Apr!G40 -> 0 | H5: =+Apr!H40 -> 0 | I5: =+Apr!I40 -> 0 | J5: 0
A6: May | C6: =+May!C40 -> 0 | D6: =+May!D40 -> 0 | E6: =+May!E40 -> 0 | F6: =+May!F40 -> 0 | G6: =+May!G40 -> 0 | H6: =+May!H40 -> 0 | I6: =+May!I40 -> 0 | J6: 0
A7: June | C7: =+Jun!C40 -> 0 | D7: =+Jun!D40 -> 0 | E7: =+Jun!E40 -> 0 | F7: =+Jun!F40 -> 0 | G7: =+Jun!G40 -> 0 | H7: =+Jun!H40 -> 0 | I7: =+Jun!I40 -> 0 | J7: 0
A8: July | C8: =+Jul!C40 -> 0 | D8: =+Jul!D40 -> 0 | E8: =+Jul!E40 -> 0 | F8: =+Jul!F40 -> 0 | G8: =+Jul!G40 -> 0 | H8: =+Jul!H40 -> 0 | I8: =+Jul!I40 -> 0 | J8: 0
A9: August | C9: =+Aug!C40 -> 0 | D9: =+Aug!D40 -> 0 | E9: =+Aug!E40 -> 0 | F9: =+Aug!F40 -> 0 | G9: =+Aug!G40 -> 0 | H9: =+Aug!H40 -> 0 | I9: =+Aug!I40 -> 0 | J9: 0
A10: September | C10: =+Sep!C40 -> 0 | D10: =+Sep!D40 -> 0 | E10: =+Sep!E40 -> 0 | F10: =+Sep!F40 -> 0 | G10: =+Sep!G40 -> 0 | H10: =+Sep!H40 -> 0 | I10: =+Sep!I40 -> 0 | J10: 0
A11: October | C11: =+Oct!C40 -> 0 | D11: =+Oct!D40 -> 0 | E11: =+Oct!E40 -> 0 | F11: =+Oct!F40 -> 0 | G11: =+Oct!G40 -> 0 | H11: =+Oct!H40 -> 0 | I11: =+Oct!I40 -> 0 | J11: 0
A12: November | C12: =+Nov!C40 -> 0 | D12: =+Nov!D40 -> 0 | E12: =+Nov!E40 -> 0 | F12: =+Nov!F40 -> 0 | G12: =+Nov!G40 -> 0 | H12: =+Nov!H40 -> 0 | I12: =+Nov!I40 -> 0 | J12: 0
A13: December | C13: =+Dec!C40 -> 0 | D13: =+Dec!D40 -> 0 | E13: =+Dec!E40 -> 0 | F13: =+Dec!F40 -> 0 | G13: =+Dec!G40 -> 0 | H13: =+Dec!H40 -> 0 | I13: =+Dec!I40 -> 0 | J13: 0
A14: Total | C14: =SUM(C2:C13) -> 4100 | D14: 2260.003685 | E14: 1071.865947 | F14: 0 | G14: 194.53 | H14: 0 | I14: 535 | J14: 8161.399632
A17: Fuel | C17: =+C14 -> 4100
A18: Oils | C18: =D14 -> 2260.003685
A19: Spare Parts | C19: =+E14 -> 1071.865947
A20: Maintenance | C20: =+F14 -> 0
A21: Communication | C21: =+G14 -> 194.53
A22: Insurance | C22: =+H14 -> 0
A23: Stamp Exp | C23: =+I14 -> 535
A24: Total | C24: =+J14 -> 8161.399632
D28: Issue No | E28: Code | F28: Item Name | G28: Q | H28: P | I28: Value
